Workbook

Sheet MENU
L4: =+TABLAS!A81 -> 1-3-5-6-2-8-7-4-11-9-10-Total general
L5: =+TABLAS!A118 -> 1-8-2-7-4-5-6-3-11-9-10-Total general
H27: CONTROL DE MESES
H29: =+TABLAS!A81 -> 1-3-5-6-2-8-7-4-11-9-10-Total general

Sheet TABLAS (hidden)
C8: Valores | I8: Tabla | J8: =IF(I9="(Todas)","CUSCO ","") -> 
C9: RED | D9: 03 - LA CONVENCION | I9: =IF(MID(D9,1,2)="99","(All)",MID(D9,1,2)) -> 03 | J9: =IF(I9="(All)"," ",I9) -> 03 | M9: =LEN(MID(D9,5,90)) -> 14 | O9: =IF(MID(D9,6,5)="(All)","",D9) -> 03 - LA CONVENCION
C10: Micro RED | D10: 0399 - (All) | I10: =IF(MID(D10,3,2)="99","(All)",MID(D10,1,4)) -> (All) | M10: =LEN(MID(D10,7,90)) -> 6 | O10: =IF(MID(D10,8,5)="(All)","",D10) -> 
C11: Establecimiento | D11: 999999999 - (All) | I11: =IF(OR(MID(D11,1,9)="999999999",MID(D11,1,9)="000000000"),"(All)",MID(D11,1,9)) -> (All) | M11: =LEN(MID(D11,12,90)) -> 6 | O11: =IF(MID(D11,13,5)="(All)","",D11) -> 
C12: Provincia | D12: 00 - (All) | I12: =IF(MID(D12,1,2)="00","(All)",MID(D12,1,2)) -> (All) | M12: =LEN(MID(D12,6,90)) -> 5 | O12: =IF(MID(D12,6,5)="(All)","",D12) -> 
C13: Distrito | D13: 0000 - (All) | I13: =IF(OR(MID(D13,1,4)="0000",MID(D13,3,2)="00"),"(All)",MID(D13,1,4)) -> (All) | M13: =LEN(MID(D13,8,90)) -> 5 | O13: =IF(MID(D13,8,5)="(All)","",D13) -> 
C14: Ejecutira | D14: 99 - (ALL) | I14: =IF(MID(D14,1,2)="99","(All)",MID(D14,1,2)) -> (All) | M14: =LEN(MID(D14,5,90)) -> 6 | O14: =IF(MID(D14,6,5)="(All)","",D14) -> 
C16: Año | D16: 2024 | I16: =+D16 -> 2024 | J16: =IF(I16="(Todas)"," ",I16) -> 2024
B20: 1 | C20: 1 | D20: 1 | E20: 1 | F20: 1 | G20: 1 | H20: 1 | I20: 1 | J20: 1 | K20: 1 | L20: 1 | M20: 0 | N20: =SUM(B20:M20) -> 11
B21: =IF(B20=1,"ENERO","") -> ENERO | C21: =IF(C20=1,"FEBRERO","") -> FEBRERO | D21: =IF(D20=1,"MARZO","") -> MARZO | E21: =IF(E20=1,"ABRIL","") -> ABRIL | F21: =IF(F20=1,"MAYO","") -> MAYO | G21: =IF(G20=1,"JUNIO","") -> JUNIO | H21: =IF(H20=1,"JULIO","") -> JULIO | I21: =IF(I20=1,"AGOSTO","") -> AGOSTO | J21: =IF(J20=1,"SETIEMBRE","") -> SETIEMBRE | K21: =IF(K20=1,"OCTUBRE","") -> OCTUBRE | L21: =IF(L20=1,"NOVIEMBRE","") -> NOVIEMBRE | M21: =IF(M20=1,"DICIEMBRE","") ->  | N21: =IF(B20=1,B21,IF(C20=1,C21,IF(D20=1,D21,IF(E20=1,E21,IF(F20=1,F21,IF(G20=1,G21,IF(H20=1,H21,IF(I20=1,I21,IF(J20=1,J21,IF(K20=1,K21,IF(L20=1,L21,IF(M20=1,M21,"")))))))))))) -> ENERO
N22: =IF(N20=1,N21,"") -> 
B23: 2 | C23: 4 | D23: 6 | E23: 8 | F23: 10 | G23: 12 | H23: 14 | I23: 16 | J23: 18 | K23: 20 | L23: 22 | N23: =MIN(B23:M23) -> 2 | O23: =MAX(B23:M23) -> 22 | P23: =MAX(C23:N23) -> 22
B24: =IF(B23=2,"ENE","") -> ENE | C24: =IF(C23=4,"FEB","") -> FEB | D24: =IF(D23=6,"MAR","") -> MAR | E24: =IF(E23=8,"ABR","") -> ABR | F24: =IF(F23=10,"MAY","") -> MAY | G24: =IF(G23=12,"JUN","") -> JUN | H24: =IF(H23=14,"JUL","") -> JUL | I24: =IF(I23=16,"AGO","") -> AGO | J24: =IF(J23=18,"SET","") -> SET | K24: =IF(K23=20,"OCT","") -> OCT | L24: =IF(L23=22,"NOV","") -> NOV | M24: =IF(M23=24,"DIC","") ->  | N24: =IF(N23=B23,B24,IF(N23=C23,C24,IF(N23=D23,D24,IF(N23=E23,E24,IF(N23=F23,F24,IF(N23=G23,G24,IF(N23=H23,#REF!,IF(N23=I23,I24,IF(N23=J23,J24,IF(N23=K23,K24,IF(N23=L23,L24,IF(N23=M23,M24,"")))))))))))) -> ENE | O24: =IF(O23=C23,C24,IF(O23=D23,D24,IF(O23=E23,E24,IF(O23=F23,F24,IF(O23=G23,G24,IF(O23=H23,H24,IF(O23=I23,I24,IF(O23=J23,J24,IF(O23=K23,K24,IF(O23=L23,L24,IF(O23=M23,M24,""))))))))))) -> NOV | P24: =IF(P23=D23,D24,IF(P23=E23,E24,IF(P23=F23,F24,IF(P23=G23,G24,IF(P23=H23,H24,IF(P23=I23,I24,IF(P23=J23,J24,IF(P23=K23,K24,IF(P23=L23,L24,IF(P23=M23,M24,IF(P23=N23,N24,""))))))))))) -> NOV
N25: =CONCATENATE(N24," - ",O24) -> ENE - NOV
N26: =IF(N23=O23,N22,N25) -> ENE - NOV
A50: ADULTO_01
A51: anno | B51: 2024
A52: cod_red | B52: 03
A53: codmic | B53: (Todas)
A54: cod_prov | B54: (Todas)
A55: coddist | B55: (Todas)
A56: cod_estab | B56: (Todas)
A57: cod_eje | B57: (Todas)
B59: Valores
A60: Etiquetas de fila | B60: BAS001 | C60: BAS002 | D60: BAS003 | E60: BAS004 | F60: BAS005 | G60: BAS006 | H60: BAS007 | I60: BAS008 | J60: BAS009 | K60: BAS010 | L60: BAS011 | M60: BAS012 | N60: BAS013 | O60: BAS014 | P60: BAS015 | Q60: BAS016 | R60: BAS017 | S60: BAS018 | T60: BAS019 | U60: BAS020 | V60: BAS021 | W60: BAS022 | X60: BAS023 | Y60: BAS024 | Z60: BAS025 | AA60: BAS026 | AB60: BAS027 | AC60: BAS028 | AD60: BAS029 | AE60: BAS030 | AF60: BAS031 | AG60: BAS032 | AH60: BAS033 | AI60: BAS034 | AJ60: BAS035 | AK60: BAS036 | AL60: BAS037 | AM60: BAS038 | AN60: BAS039 | AO60: BAS040 | AP60: BAS041 | AQ60: BAS042 | AR60: BAS043 | AS60: BAS044 | AT60: BAS045 | AU60: BAS046 | AV60: BAS047 | AW60: BAS048 | AX60: BAS049 | AY60: BAS050 | AZ60: BAS051 | BA60: BAS052 | BB60: BAS053 | BC60: BAS054 | BD60: BAS055 | BE60: BAS056 | BF60: BAS057 | BG60: BAS058 | BH60: BAS059 | BI60: BAS060 | BJ60: BAS061 | BK60: BAS062 | BL60: BAS063 | BM60: BAS064 | BN60: BAS065 | BO60: BAS066 | BP60: BAS067 | BQ60: BAS068 | BR60: BAS069 | BS60: BAS070 | BT60: BAS071 | BU60: BAS072 | BV60: BAS073 | BW60: BAS074 | BX60: BAS075 | BY60: BAS076 | BZ60: BAS077 | CA60: BAS078 | CB60: BAS079 | CC60: BAS080 | CD60: BAS081 | CE60: BAS082 | CF60: BAS083 | CG60: BAS084 | CH60: BAS085 | CI60: BAS086 | CJ60: BAS087 | CK60: BAS088 | CL60: BAS089 | CM60: BAS090 | CN60: BAS091 | CO60: BAS092 | CP60: BAS093 | CQ60: BAS094 | CR60: BAS095 | CS60: BAS096 | CT60: BAS097 | CU60: BAS098 | CV60: BAS099 | CW60: BAS100 | CX60: BAS101 | CY60: BAS102 | CZ60: BAS103 | DA60: BAS104 | DB60: BAS105 | DC60: BAS106 | DD60: BAS107 | DE60: BAS108 | DF60: BAS109 | DG60: BAS110 | DH60: BAS111 | DI60: BAS112 | DJ60: BAS113 | DK60: BAS114 | DL60: BAS115 | DM60: BAS116 | DN60: BAS117 | DO60: BAS118 | DP60: BAS119 | DQ60: BAS120 | DR60: BAS121 | DS60: BAS122 | DT60: BAS123 | DU60: BAS124 | DV60: BAS125 | DW60: BAS126 | DX60: BAS127 | DY60: BAS128 | DZ60: BAS129 | EA60: BAS130 | EB60: BAS131 | EC60: BAS132 | ED60: BAS133 | EE60: BAS134 | EF60: BAS135 | EG60: BAS136 | EH60: BAS137 | EI60: BAS138 | EJ60: BAS139 | EK60: BAS140 | EL60: BAS141 | EM60: BAS142 | EN60: BAS143 | EO60: BAS144 | EP60: BAS145 | EQ60: BAS146 | ER60: BAS147 | ES60: BAS148 | ET60: BAS149 | EU60: BAS150 | EV60: BAS151 | EW60: BAS152 | EX60: BAS153 | EY60: BAS154 | EZ60: BAS155 | FA60: BAS156 | FB60: BAS157 | FC60: BAS158 | FD60: BAS159 | FE60: BAS160 | FF60: BAS161 | FG60: BAS162 | FH60: BAS163 | FI60: BAS164 | FJ60: BAS165 | FK60: BAS166 | FL60: BAS167 | FM60: BAS168 | FN60: BAS169 | FO60: BAS170 | FP60: BAS171 | FQ60: BAS172 | FR60: BAS173 | FS60: BAS174 | FT60: BAS175 | FU60: BAS176 | FV60: BAS177 | FW60: BAS178 | FX60: BAS179 | FY60: BAS180 | FZ60: BAS181 | GA60: BAS182 | GB60: BAS183 | GC60: BAS184 | GD60: BAS185 | GE60: BAS186 | GF60: BAS187 | GG60: BAS188 | GH60: BAS189 | GI60: BAS190 | GJ60: BAS191 | GK60: BAS192 | GL60: BAS193 | GM60: BAS194 | GN60: BAS195 | GO60: BAS196 | GP60: BAS197 | GQ60: BAS198 | GR60: BAS199 | GS60: BAS200 | GT60: BAS201 | GU60: BAS202 | GV60: BAS203 | GW60: BAS204 | GX60: BAS205 | GY60: BAS206 | GZ60: BAS207 | HA60: BAS208 | HB60: BAS209 | HC60: BAS210 | HD60: BAS211 | HE60: BAS212 | HF60: BAS213 | HG60: BAS214 | HH60: BAS215 | HI60: BAS216 | HJ60: BAS217 | HK60: BAS218 | HL60: BAS219 | HM60: BAS220 | HN60: BAS221 | HO60: BAS222 | HP60: BAS223 | HQ60: BAS224 | HR60: BAS225 | HS60: BAS226 | HT60: BAS227 | HU60: BAS228 | HV60: BAS229 | HW60: BAS230
A61: 1 | B61: 0 | C61: 168 | D61: 58 | E61: 276 | F61: 71 | G61: 125 | H61: 195 | I61: 313 | J61: 29 | K61: 44 | L61: 103 | M61: 316 | N61: 64 | O61: 162 | P61: 104 | Q61: 229 | R61: 220 | S61: 348 | T61: 79 | U61: 508 | V61: 4 | W61: 7 | X61: 0 | Y61: 0 | Z61: 0 | AA61: 0 | AB61: 0 | AC61: 0 | AD61: 0 | AE61: 0 | AF61: 12 | AG61: 56 | AH61: 11 | AI61: 50 | AJ61: 5 | AK61: 43 | AL61: 0 | AM61: 0 | AN61: 0 | AO61: 0 | AP61: 15 | AQ61: 10 | AR61: 7 | AS61: 23 | AT61: 6 | AU61: 0 | AV61: 0 | AW61: 0 | AX61: 0 | AY61: 0 | AZ61: 4 | BA61: 2 | BB61: 36 | BC61: 131 | BD61: 0 | BE61: 0 | BF61: 16 | BG61: 17 | BH61: 0 | BI61: 0 | BJ61: 0 | BK61: 0 | BL61: 0 | BM61: 0 | BN61: 7 | BO61: 17 | BP61: 0 | BQ61: 0 | BR61: 0 | BS61: 3 | BT61: 0 | BU61: 0 | BV61: 0 | BW61: 0 | BX61: 64 | BY61: 1252 | BZ61: 0 | CA61: 23 | CB61: 0 | CC61: 54 | CD61: 0 | CE61: 27 | CF61: 0 | CG61: 0 | CH61: 0 | CI61: 0 | CJ61: 1 | CK61: 2 | CL61: 1 | CM61: 0 | CN61: 51 | CO61: 176 | CP61: 90 | CQ61: 704 | CR61: 190 | CS61: 435 | CT61: 190 | CU61: 436 | CV61: 131 | CW61: 144 | CX61: 129 | CY61: 142 | CZ61: 28 | DA61: 24 | DB61: 24 | DC61: 7 | DD61: 25 | DE61: 26 | DF61: 790 | DG61: 3222 | DH61: 1 | DI61: 0 | DJ61: 10 | DK61: 0 | DL61: 3 | DM61: 0 | DN61: 0 | DO61: 0 | DP61: 2 | DQ61: 0 | DR61: 0 | DS61: 0 | DT61: 4 | DU61: 0 | DV61: 0 | DW61: 0 | DX61: 1 | DY61: 0 | DZ61: 4 | EA61: 0 | EB61: 174 | EC61: 1234 | ED61: 2 | EE61: 105 | EF61: 0 | EG61: 1 | EH61: 0 | EI61: 0 | EJ61: 0 | EK61: 0 | EL61: 0 | EM61: 0 | EN61: 0 | EO61: 0 | EP61: 0 | EQ61: 0 | ER61: 95 | ES61: 243 | ET61: 0 | EU61: 8 | EV61: 64 | EW61: 2 | EX61: 86 | EY61: 224 | EZ61: 0 | FA61: 15 | FB61: 60 | FC61: 1 | FD61: 9 | FE61: 21 | FF61: 1 | FG61: 0 | FH61: 1 | FI61: 0 | FJ61: 13 | FK61: 25 | FL61: 0 | FM61: 0 | FN61: 53 | FO61: 1 | FP61: 0 | FQ61: 6 | FR61: 0 | FS61: 0 | FT61: 4 | FU61: 0 | FV61: 0 | FW61: 0 | FX61: 0 | FY61: 0 | FZ61: 0 | GA61: 0 | GB61: 0 | GC61: 0 | GD61: 0 | GE61: 0 | GF61: 6 | GG61: 37 | GH61: 0 | GI61: 0 | GJ61: 16 | GK61: 0 | GL61: 0 | GM61: 0 | GN61: 0 | GO61: 0 | GP61: 0 | GQ61: 0 | GR61: 76 | GS61: 131 | GT61: 84 | GU61: 151 | GV61: 0 | GW61: 0 | GX61: 0 | GY61: 0 | GZ61: 0 | HA61: 0 | HB61: 0 | HC61: 0 | HD61: 0 | HE61: 0 | HF61: 0 | HG61: 0 | HH61: 0 | HI61: 0 | HJ61: 0 | HK61: 0 | HL61: 0 | HM61: 0 | HN61: 0 | HO61: 0 | HP61: 0 | HQ61: 0 | HR61: 0 | HS61: 0 | HT61: 0 | HU61: 0 | HV61: 0 | HW61: 0
A62: 3 | B62: 1 | C62: 170 | D62: 108 | E62: 320 | F62: 67 | G62: 98 | H62: 180 | I62: 272 | J62: 24 | K62: 33 | L62: 74 | M62: 237 | N62: 64 | O62: 132 | P62: 85 | Q62: 189 | R62: 203 | S62: 302 | T62: 95 | U62: 465 | V62: 4 | W62: 3 | X62: 0 | Y62: 0 | Z62: 0 | AA62: 0 | AB62: 0 | AC62: 0 | AD62: 0 | AE62: 0 | AF62: 8 | AG62: 39 | AH62: 14 | AI62: 55 | AJ62: 4 | AK62: 31 | AL62: 0 | AM62: 3 | AN62: 0 | AO62: 2 | AP62: 4 | AQ62: 15 | AR62: 8 | AS62: 20 | AT62: 8 | AU62: 0 | AV62: 0 | AW62: 0 | AX62: 0 | AY62: 0 | AZ62: 1 | BA62: 7 | BB62: 87 | BC62: 174 | BD62: 0 | BE62: 0 | BF62: 6 | BG62: 4 | BH62: 1 | BI62: 0 | BJ62: 0 | BK62: 0 | BL62: 1 | BM62: 2 | BN62: 6 | BO62: 8 | BP62: 0 | BQ62: 3 | BR62: 0 | BS62: 4 | BT62: 0 | BU62: 0 | BV62: 0 | BW62: 0 | BX62: 53 | BY62: 898 | BZ62: 4 | CA62: 178 | CB62: 0 | CC62: 33 | CD62: 0 | CE62: 51 | CF62: 0 | CG62: 0 | CH62: 0 | CI62: 0 | CJ62: 3 | CK62: 5 | CL62: 3 | CM62: 0 | CN62: 38 | CO62: 163 | CP62: 65 | CQ62: 649 | CR62: 143 | CS62: 394 | CT62: 141 | CU62: 398 | CV62: 87 | CW62: 236 | CX62: 86 | CY62: 236 | CZ62: 19 | DA62: 29 | DB62: 19 | DC62: 13 | DD62: 16 | DE62: 35 | DF62: 1140 | DG62: 3600 | DH62: 4 | DI62: 0 | DJ62: 50 | DK62: 0 | DL62: 0 | DM62: 1 | DN62: 0 | DO62: 0 | DP62: 1 | DQ62: 0 | DR62: 1 | DS62: 0 | DT62: 3 | DU62: 2 | DV62: 0 | DW62: 0 | DX62: 0 | DY62: 0 | DZ62: 8 | EA62: 0 | EB62: 306 | EC62: 1129 | ED62: 52 | EE62: 437 | EF62: 0 | EG62: 0 | EH62: 0 | EI62: 0 | EJ62: 0 | EK62: 0 | EL62: 0 | EM62: 0 | EN62: 0 | EO62: 0 | EP62: 0 | EQ62: 0 | ER62: 80 | ES62: 187 | ET62: 4 | EU62: 5 | EV62: 43 | EW62: 20 | EX62: 69 | EY62: 174 | EZ62: 6 | FA62: 16 | FB62: 41 | FC62: 23 | FD62: 9 | FE62: 18 | FF62: 1 | FG62: 0 | FH62: 1 | FI62: 0 | FJ62: 11 | FK62: 32 | FL62: 0 | FM62: 3 | FN62: 37 | FO62: 20 | FP62: 0 | FQ62: 3 | FR62: 0 | FS62: 0 | FT62: 0 | FU62: 0 | FV62: 0 | FW62: 0 | FX62: 0 | FY62: 0 | FZ62: 0 | GA62: 0 | GB62: 0 | GC62: 0 | GD62: 0 | GE62: 0 | GF62: 7 | GG62: 35 | GH62: 0 | GI62: 0 | GJ62: 19 | GK62: 1 | GL62: 0 | GM62: 0 | GN62: 0 | GO62: 0 | GP62: 0 | GQ62: 0 | GR62: 112 | GS62: 141 | GT62: 114 | GU62: 146 | GV62: 0 | GW62: 0 | GX62: 0 | GY62: 0 | GZ62: 0 | HA62: 0 | HB62: 0 | HC62: 0 | HD62: 0 | HE62: 0 | HF62: 0 | HG62: 0 | HH62: 0 | HI62: 0 | HJ62: 0 | HK62: 0 | HL62: 0 | HM62: 0 | HN62: 0 | HO62: 0 | HP62: 0 | HQ62: 0 | HR62: 0 | HS62: 0 | HT62: 0 | HU62: 0 | HV62: 0 | HW62: 0
A63: 5 | B63: 1 | C63: 145 | D63: 64 | E63: 266 | F63: 91 | G63: 157 | H63: 298 | I63: 444 | J63: 42 | K63: 69 | L63: 58 | M63: 166 | N63: 54 | O63: 82 | P63: 76 | Q63: 151 | R63: 214 | S63: 316 | T63: 94 | U63: 429 | V63: 9 | W63: 29 | X63: 0 | Y63: 0 | Z63: 0 | AA63: 0 | AB63: 0 | AC63: 0 | AD63: 0 | AE63: 0 | AF63: 9 | AG63: 45 | AH63: 7 | AI63: 32 | AJ63: 6 | AK63: 38 | AL63: 1 | AM63: 2 | AN63: 0 | AO63: 3 | AP63: 6 | AQ63: 13 | AR63: 6 | AS63: 10 | AT63: 7 | AU63: 0 | AV63: 0 | AW63: 3 | AX63: 0 | AY63: 0 | AZ63: 2 | BA63: 7 | BB63: 44 | BC63: 155 | BD63: 0 | BE63: 0 | BF63: 6 | BG63: 7 | BH63: 2 | BI63: 1 | BJ63: 0 | BK63: 0 | BL63: 0 | BM63: 0 | BN63: 4 | BO63: 7 | BP63: 0 | BQ63: 1 | BR63: 0 | BS63: 2 | BT63: 0 | BU63: 0 | BV63: 0 | BW63: 0 | BX63: 57 | BY63: 365 | BZ63: 18 | CA63: 553 | CB63: 0 | CC63: 49 | CD63: 0 | CE63: 42 | CF63: 0 | CG63: 1 | CH63: 0 | CI63: 0 | CJ63: 2 | CK63: 2 | CL63: 1 | CM63: 0 | CN63: 47 | CO63: 184 | CP63: 63 | CQ63: 739 | CR63: 87 | CS63: 522 | CT63: 79 | CU63: 564 | CV63: 61 | CW63: 282 | CX63: 59 | CY63: 311 | CZ63: 25 | DA63: 23 | DB63: 24 | DC63: 6 | DD63: 33 | DE63: 44 | DF63: 850 | DG63: 3690 | DH63: 3 | DI63: 0 | DJ63: 20 | DK63: 0 | DL63: 0 | DM63: 0 | DN63: 0 | DO63: 0 | DP63: 0 | DQ63: 0 | DR63: 1 | DS63: 0 | DT63: 1 | DU63: 0 | DV63: 0 | DW63: 0 | DX63: 0 | DY63: 0 | DZ63: 15 | EA63: 0 | EB63: 162 | EC63: 733 | ED63: 82 | EE63: 444 | EF63: 0 | EG63: 0 | EH63: 0 | EI63: 0 | EJ63: 0 | EK63: 0 | EL63: 0 | EM63: 0 | EN63: 0 | EO63: 0 | EP63: 0 | EQ63: 0 | ER63: 60 | ES63: 117 | ET63: 7 | EU63: 18 | EV63: 29 | EW63: 29 | EX63: 57 | EY63: 109 | EZ63: 11 | FA63: 20 | FB63: 30 | FC63: 28 | FD63: 8 | FE63: 10 | FF63: 0 | FG63: 0 | FH63: 0 | FI63: 0 | FJ63: 4 | FK63: 18 | FL63: 4 | FM63: 6 | FN63: 30 | FO63: 27 | FP63: 3 | FQ63: 11 | FR63: 0 | FS63: 1 | FT63: 4 | FU63: 0 | FV63: 0 | FW63: 0 | FX63: 0 | FY63: 0 | FZ63: 0 | GA63: 0 | GB63: 0 | GC63: 0 | GD63: 0 | GE63: 0 | GF63: 1 | GG63: 25 | GH63: 0 | GI63: 0 | GJ63: 8 | GK63: 1 | GL63: 0 | GM63: 0 | GN63: 0 | GO63: 0 | GP63: 0 | GQ63: 0 | GR63: 114 | GS63: 144 | GT63: 121 | GU63: 149 | GV63: 0 | GW63: 0 | GX63: 0 | GY63: 0 | GZ63: 0 | HA63: 0 | HB63: 0 | HC63: 0 | HD63: 0 | HE63: 0 | HF63: 0 | HG63: 0 | HH63: 0 | HI63: 0 | HJ63: 0 | HK63: 0 | HL63: 0 | HM63: 0 | HN63: 0 | HO63: 0 | HP63: 0 | HQ63: 0 | HR63: 0 | HS63: 0 | HT63: 0 | HU63: 0 | HV63: 0 | HW63: 0
A64: 6 | B64: 1 | C64: 155 | D64: 71 | E64: 284 | F64: 94 | G64: 166 | H64: 266 | I64: 420 | J64: 38 | K64: 46 | L64: 75 | M64: 229 | N64: 52 | O64: 130 | P64: 87 | Q64: 172 | R64: 190 | S64: 319 | T64: 71 | U64: 333 | V64: 17 | W64: 54 | X64: 0 | Y64: 0 | Z64: 0 | AA64: 0 | AB64: 0 | AC64: 0 | AD64: 0 | AE64: 0 | AF64: 5 | AG64: 56 | AH64: 5 | AI64: 37 | AJ64: 7 | AK64: 40 | AL64: 1 | AM64: 1 | AN64: 0 | AO64: 1 | AP64: 6 | AQ64: 4 | AR64: 2 | AS64: 8 | AT64: 3 | AU64: 0 | AV64: 0 | AW64: 0 | AX64: 0 | AY64: 0 | AZ64: 2 | BA64: 3 | BB64: 55 | BC64: 178 | BD64: 0 | BE64: 0 | BF64: 5 | BG64: 4 | BH64: 0 | BI64: 0 | BJ64: 0 | BK64: 0 | BL64: 0 | BM64: 0 | BN64: 5 | BO64: 7 | BP64: 0 | BQ64: 4 | BR64: 0 | BS64: 2 | BT64: 0 | BU64: 0 | BV64: 0 | BW64: 1 | BX64: 59 | BY64: 337 | BZ64: 32 | CA64: 515 | CB64: 1 | CC64: 73 | CD64: 0 | CE64: 47 | CF64: 0 | CG64: 0 | CH64: 0 | CI64: 0 | CJ64: 2 | CK64: 2 | CL64: 2 | CM64: 0 | CN64: 40 | CO64: 161 | CP64: 51 | CQ64: 644 | CR64: 86 | CS64: 460 | CT64: 84 | CU64: 459 | CV64: 67 | CW64: 287 | CX64: 64 | CY64: 286 | CZ64: 22 | DA64: 35 | DB64: 21 | DC64: 15 | DD64: 26 | DE64: 58 | DF64: 820 | DG64: 4280 | DH64: 6 | DI64: 1 | DJ64: 50 | DK64: 30 | DL64: 0 | DM64: 0 | DN64: 0 | DO64: 0 | DP64: 0 | DQ64: 0 | DR64: 0 | DS64: 0 | DT64: 5 | DU64: 0 | DV64: 0 | DW64: 0 | DX64: 0 | DY64: 0 | DZ64: 16 | EA64: 0 | EB64: 169 | EC64: 702 | ED64: 171 | EE64: 1002 | EF64: 0 | EG64: 0 | EH64: 0 | EI64: 0 | EJ64: 0 | EK64: 0 | EL64: 0 | EM64: 0 | EN64: 0 | EO64: 0 | EP64: 0 | EQ64: 0 | ER64: 69 | ES64: 180 | ET64: 5 | EU64: 29 | EV64: 54 | EW64: 21 | EX64: 73 | EY64: 175 | EZ64: 5 | FA64: 30 | FB64: 47 | FC64: 21 | FD64: 4 | FE64: 14 | FF64: 0 | FG64: 0 | FH64: 1 | FI64: 0 | FJ64: 11 | FK64: 42 | FL64: 2 | FM64: 13 | FN64: 43 | FO64: 18 | FP64: 1 | FQ64: 2 | FR64: 0 | FS64: 1 | FT64: 1 | FU64: 0 | FV64: 1 | FW64: 0 | FX64: 0 | FY64: 0 | FZ64: 0 | GA64: 0 | GB64: 0 | GC64: 0 | GD64: 0 | GE64: 0 | GF64: 2 | GG64: 32 | GH64: 0 | GI64: 0 | GJ64: 5 | GK64: 1 | GL64: 0 | GM64: 0 | GN64: 0 | GO64: 0 | GP64: 0 | GQ64: 0 | GR64: 132 | GS64: 200 | GT64: 133 | GU64: 219 | GV64: 0 | GW64: 0 | GX64: 0 | GY64: 0 | GZ64: 0 | HA64: 0 | HB64: 0 | HC64: 0 | HD64: 0 | HE64: 0 | HF64: 0 | HG64: 0 | HH64: 0 | HI64: 0 | HJ64: 0 | HK64: 0 | HL64: 0 | HM64: 0 | HN64: 0 | HO64: 0 | HP64: 0 | HQ64: 0 | HR64: 0 | HS64: 0 | HT64: 0 | HU64: 0 | HV64: 0 | HW64: 0
A65: 2 | B65: 3 | C65: 132 | D65: 55 | E65: 259 | F65: 30 | G65: 89 | H65: 134 | I65: 210 | J65: 14 | K65: 22 | L65: 66 | M65: 208 | N65: 50 | O65: 111 | P65: 88 | Q65: 163 | R65: 199 | S65: 306 | T65: 79 | U65: 419 | V65: 2 | W65: 5 | X65: 0 | Y65: 0 | Z65: 0 | AA65: 0 | AB65: 0 | AC65: 0 | AD65: 0 | AE65: 0 | AF65: 4 | AG65: 36 | AH65: 10 | AI65: 28 | AJ65: 2 | AK65: 17 | AL65: 0 | AM65: 0 | AN65: 0 | AO65: 1 | AP65: 3 | AQ65: 7 | AR65: 3 | AS65: 10 | AT65: 5 | AU65: 0 | AV65: 0 | AW65: 0 | AX65: 0 | AY65: 0 | AZ65: 2 | BA65: 6 | BB65: 42 | BC65: 180 | BD65: 0 | BE65: 0 | BF65: 6 | BG65: 8 | BH65: 0 | BI65: 0 | BJ65: 0 | BK65: 0 | BL65: 1 | BM65: 0 | BN65: 4 | BO65: 5 | BP65: 0 | BQ65: 0 | BR65: 0 | BS65: 3 | BT65: 0 | BU65: 0 | BV65: 0 | BW65: 0 | BX65: 90 | BY65: 1092 | BZ65: 5 | CA65: 174 | CB65: 0 | CC65: 50 | CD65: 0 | CE65: 34 | CF65: 0 | CG65: 0 | CH65: 0 | CI65: 0 | CJ65: 11 | CK65: 2 | CL65: 10 | CM65: 1 | CN65: 62 | CO65: 180 | CP65: 107 | CQ65: 717 | CR65: 150 | CS65: 446 | CT65: 149 | CU65: 454 | CV65: 94 | CW65: 218 | CX65: 93 | CY65: 218 | CZ65: 30 | DA65: 31 | DB65: 29 | DC65: 13 | DD65: 41 | DE65: 48 | DF65: 1530 | DG65: 3720 | DH65: 1 | DI65: 0 | DJ65: 10 | DK65: 0 | DL65: 0 | DM65: 0 | DN65: 0 | DO65: 0 | DP65: 0 | DQ65: 0 | DR65: 1 | DS65: 0 | DT65: 5 | DU65: 0 | DV65: 0 | DW65: 0 | DX65: 0 | DY65: 0 | DZ65: 4 | EA65: 0 | EB65: 173 | EC65: 1122 | ED65: 25 | EE65: 217 | EF65: 0 | EG65: 0 | EH65: 0 | EI65: 0 | EJ65: 0 | EK65: 0 | EL65: 0 | EM65: 0 | EN65: 0 | EO65: 0 | EP65: 0 | EQ65: 0 | ER65: 63 | ES65: 139 | ET65: 0 | EU65: 8 | EV65: 35 | EW65: 11 | EX65: 57 | EY65: 139 | EZ65: 2 | FA65: 11 | FB65: 35 | FC65: 13 | FD65: 4 | FE65: 5 | FF65: 0 | FG65: 0 | FH65: 0 | FI65: 0 | FJ65: 2 | FK65: 11 | FL65: 0 | FM65: 0 | FN65: 30 | FO65: 13 | FP65: 0 | FQ65: 5 | FR65: 0 | FS65: 0 | FT65: 2 | FU65: 0 | FV65: 1 | FW65: 1 | FX65: 0 | FY65: 0 | FZ65: 0 | GA65: 0 | GB65: 0 | GC65: 0 | GD65: 0 | GE65: 0 | GF65: 2 | GG65: 35 | GH65: 0 | GI65: 0 | GJ65: 5 | GK65: 0 | GL65: 0 | GM65: 0 | GN65: 0 | GO65: 0 | GP65: 0 | GQ65: 0 | GR65: 115 | GS65: 117 | GT65: 114 | GU65: 117 | GV65: 0 | GW65: 0 | GX65: 0 | GY65: 0 | GZ65: 0 | HA65: 0 | HB65: 0 | HC65: 0 | HD65: 0 | HE65: 0 | HF65: 0 | HG65: 0 | HH65: 0 | HI65: 0 | HJ65: 0 | HK65: 0 | HL65: 0 | HM65: 0 | HN65: 0 | HO65: 0 | HP65: 0 | HQ65: 0 | HR65: 0 | HS65: 0 | HT65: 0 | HU65: 0 | HV65: 0 | HW65: 0
A66: 8 | B66: 0 | C66: 140 | D66: 70 | E66: 266 | F66: 67 | G66: 143 | H66: 202 | I66: 373 | J66: 22 | K66: 40 | L66: 65 | M66: 206 | N66: 55 | O66: 130 | P66: 85 | Q66: 199 | R66: 191 | S66: 309 | T66: 71 | U66: 407 | V66: 13 | W66: 28 | X66: 0 | Y66: 4 | Z66: 0 | AA66: 0 | AB66: 0 | AC66: 0 | AD66: 0 | AE66: 0 | AF66: 19 | AG66: 69 | AH66: 11 | AI66: 35 | AJ66: 3 | AK66: 36 | AL66: 0 | AM66: 1 | AN66: 0 | AO66: 1 | AP66: 9 | AQ66: 6 | AR66: 5 | AS66: 9 | AT66: 3 | AU66: 0 | AV66: 0 | AW66: 0 | AX66: 0 | AY66: 0 | AZ66: 6 | BA66: 13 | BB66: 52 | BC66: 173 | BD66: 0 | BE66: 0 | BF66: 5 | BG66: 4 | BH66: 1 | BI66: 0 | BJ66: 0 | BK66: 0 | BL66: 2 | BM66: 2 | BN66: 6 | BO66: 8 | BP66: 0 | BQ66: 2 | BR66: 0 | BS66: 2 | BT66: 1 | BU66: 0 | BV66: 0 | BW66: 0 | BX66: 56 | BY66: 336 | BZ66: 20 | CA66: 291 | CB66: 1 | CC66: 67 | CD66: 0 | CE66: 43 | CF66: 0 | CG66: 0 | CH66: 0 | CI66: 0 | CJ66: 0 | CK66: 1 | CL66: 0 | CM66: 0 | CN66: 47 | CO66: 171 | CP66: 53 | CQ66: 675 | CR66: 102 | CS66: 517 | CT66: 101 | CU66: 516 | CV66: 78 | CW66: 275 | CX66: 73 | CY66: 284 | CZ66: 25 | DA66: 13 | DB66: 25 | DC66: 7 | DD66: 37 | DE66: 38 | DF66: 946 | DG66: 3481 | DH66: 2 | DI66: 0 | DJ66: 11 | DK66: 0 | DL66: 0 | DM66: 0 | DN66: 0 | DO66: 0 | DP66: 0 | DQ66: 0 | DR66: 1 | DS66: 0 | DT66: 4 | DU66: 0 | DV66: 0 | DW66: 0 | DX66: 3 | DY66: 0 | DZ66: 58 | EA66: 0 | EB66: 150 | EC66: 545 | ED66: 67 | EE66: 407 | EF66: 0 | EG66: 0 | EH66: 0 | EI66: 0 | EJ66: 0 | EK66: 0 | EL66: 0 | EM66: 0 | EN66: 0 | EO66: 0 | EP66: 0 | EQ66: 0 | ER66: 61 | ES66: 142 | ET66: 6 | EU66: 27 | EV66: 48 | EW66: 28 | EX66: 56 | EY66: 140 | EZ66: 12 | FA66: 34 | FB66: 45 | FC66: 26 | FD66: 5 | FE66: 19 | FF66: 0 | FG66: 0 | FH66: 0 | FI66: 0 | FJ66: 8 | FK66: 27 | FL66: 0 | FM66: 5 | FN66: 34 | FO66: 24 | FP66: 1 | FQ66: 0 | FR66: 0 | FS66: 0 | FT66: 0 | FU66: 0 | FV66: 0 | FW66: 0 | FX66: 0 | FY66: 0 | FZ66: 0 | GA66: 0 | GB66: 0 | GC66: 0 | GD66: 0 | GE66: 0 | GF66: 6 | GG66: 43 | GH66: 0 | GI66: 0 | GJ66: 7 | GK66: 0 | GL66: 0 | GM66: 0 | GN66: 0 | GO66: 0 | GP66: 0 | GQ66: 0 | GR66: 23 | GS66: 16 | GT66: 20 | GU66: 17 | GV66: 0 | GW66: 0 | GX66: 0 | GY66: 0 | GZ66: 0 | HA66: 0 | HB66: 0 | HC66: 0 | HD66: 0 | HE66: 0 | HF66: 0 | HG66: 0 | HH66: 0 | HI66: 0 | HJ66: 0 | HK66: 0 | HL66: 0 | HM66: 0 | HN66: 0 | HO66: 0 | HP66: 0 | HQ66: 0 | HR66: 0 | HS66: 0 | HT66: 0 | HU66: 0 | HV66: 0 | HW66: 0
A67: 7 | B67: 1 | C67: 137 | D67: 116 | E67: 290 | F67: 132 | G67: 172 | H67: 322 | I67: 502 | J67: 35 | K67: 71 | L67: 89 | M67: 226 | N67: 80 | O67: 126 | P67: 78 | Q67: 149 | R67: 213 | S67: 269 | T67: 67 | U67: 372 | V67: 26 | W67: 31 | X67: 0 | Y67: 0 | Z67: 0 | AA67: 0 | AB67: 0 | AC67: 0 | AD67: 0 | AE67: 1 | AF67: 12 | AG67: 53 | AH67: 11 | AI67: 37 | AJ67: 6 | AK67: 37 | AL67: 1 | AM67: 1 | AN67: 0 | AO67: 0 | AP67: 5 | AQ67: 7 | AR67: 8 | AS67: 6 | AT67: 6 | AU67: 0 | AV67: 0 | AW67: 0 | AX67: 0 | AY67: 0 | AZ67: 4 | BA67: 2 | BB67: 90 | BC67: 185 | BD67: 0 | BE67: 0 | BF67: 7 | BG67: 4 | BH67: 0 | BI67: 0 | BJ67: 0 | BK67: 0 | BL67: 0 | BM67: 0 | BN67: 4 | BO67: 7 | BP67: 0 | BQ67: 2 | BR67: 0 | BS67: 3 | BT67: 0 | BU67: 0 | BV67: 0 | BW67: 0 | BX67: 40 | BY67: 293 | BZ67: 19 | CA67: 359 | CB67: 1 | CC67: 45 | CD67: 0 | CE67: 45 | CF67: 0 | CG67: 1 | CH67: 0 | CI67: 0 | CJ67: 3 | CK67: 1 | CL67: 2 | CM67: 0 | CN67: 35 | CO67: 158 | CP67: 70 | CQ67: 632 | CR67: 100 | CS67: 519 | CT67: 100 | CU67: 521 | CV67: 69 | CW67: 278 | CX67: 64 | CY67: 279 | CZ67: 23 | DA67: 20 | DB67: 22 | DC67: 4 | DD67: 18 | DE67: 36 | DF67: 690 | DG67: 3490 | DH67: 4 | DI67: 3 | DJ67: 40 | DK67: 90 | DL67: 0 | DM67: 0 | DN67: 0 | DO67: 0 | DP67: 1 | DQ67: 0 | DR67: 0 | DS67: 0 | DT67: 3 | DU67: 0 | DV67: 0 | DW67: 0 | DX67: 0 | DY67: 0 | DZ67: 17 | EA67: 0 | EB67: 217 | EC67: 801 | ED67: 76 | EE67: 552 | EF67: 0 | EG67: 0 | EH67: 0 | EI67: 0 | EJ67: 0 | EK67: 0 | EL67: 0 | EM67: 0 | EN67: 0 | EO67: 0 | EP67: 0 | EQ67: 0 | ER67: 82 | ES67: 149 | ET67: 7 | EU67: 30 | EV67: 57 | EW67: 25 | EX67: 65 | EY67: 145 | EZ67: 11 | FA67: 29 | FB67: 52 | FC67: 25 | FD67: 7 | FE67: 15 | FF67: 0 | FG67: 0 | FH67: 1 | FI67: 0 | FJ67: 16 | FK67: 29 | FL67: 1 | FM67: 5 | FN67: 50 | FO67: 25 | FP67: 0 | FQ67: 2 | FR67: 0 | FS67: 0 | FT67: 0 | FU67: 0 | FV67: 0 | FW67: 0 | FX67: 0 | FY67: 0 | FZ67: 0 | GA67: 0 | GB67: 0 | GC67: 0 | GD67: 0 | GE67: 0 | GF67: 8 | GG67: 36 | GH67: 0 | GI67: 0 | GJ67: 10 | GK67: 0 | GL67: 0 | GM67: 0 | GN67: 0 | GO67: 0 | GP67: 0 | GQ67: 0 | GR67: 30 | GS67: 41 | GT67: 32 | GU67: 38 | GV67: 0 | GW67: 0 | GX67: 0 | GY67: 0 | GZ67: 0 | HA67: 0 | HB67: 0 | HC67: 0 | HD67: 0 | HE67: 0 | HF67: 0 | HG67: 0 | HH67: 0 | HI67: 0 | HJ67: 0 | HK67: 0 | HL67: 0 | HM67: 0 | HN67: 0 | HO67: 0 | HP67: 0 | HQ67: 0 | HR67: 0 | HS67: 0 | HT67: 0 | HU67: 0 | HV67: 0 | HW67: 0
A68: 4 | B68: 1 | C68: 167 | D68: 98 | E68: 361 | F68: 62 | G68: 106 | H68: 191 | I68: 300 | J68: 34 | K68: 45 | L68: 111 | M68: 233 | N68: 76 | O68: 131 | P68: 92 | Q68: 206 | R68: 222 | S68: 345 | T68: 86 | U68: 563 | V68: 6 | W68: 6 | X68: 0 | Y68: 0 | Z68: 0 | AA68: 1 | AB68: 0 | AC68: 0 | AD68: 0 | AE68: 0 | AF68: 12 | AG68: 56 | AH68: 16 | AI68: 41 | AJ68: 8 | AK68: 39 | AL68: 0 | AM68: 6 | AN68: 0 | AO68: 3 | AP68: 7 | AQ68: 17 | AR68: 7 | AS68: 5 | AT68: 6 | AU68: 0 | AV68: 0 | AW68: 0 | AX68: 0 | AY68: 0 | AZ68: 4 | BA68: 11 | BB68: 71 | BC68: 225 | BD68: 0 | BE68: 0 | BF68: 9 | BG68: 13 | BH68: 0 | BI68: 0 | BJ68: 0 | BK68: 0 | BL68: 0 | BM68: 0 | BN68: 4 | BO68: 11 | BP68: 0 | BQ68: 3 | BR68: 0 | BS68: 4 | BT68: 0 | BU68: 0 | BV68: 0 | BW68: 0 | BX68: 64 | BY68: 564 | BZ68: 9 | CA68: 489 | CB68: 0 | CC68: 68 | CD68: 0 | CE68: 55 | CF68: 0 | CG68: 0 | CH68: 0 | CI68: 1 | CJ68: 2 | CK68: 2 | CL68: 2 | CM68: 0 | CN68: 39 | CO68: 167 | CP68: 53 | CQ68: 665 | CR68: 127 | CS68: 512 | CT68: 124 | CU68: 511 | CV68: 99 | CW68: 264 | CX68: 95 | CY68: 264 | CZ68: 38 | DA68: 29 | DB68: 38 | DC68: 10 | DD68: 36 | DE68: 28 | DF68: 1082 | DG68: 3200 | DH68: 4 | DI68: 0 | DJ68: 50 | DK68: 0 | DL68: 0 | DM68: 0 | DN68: 0 | DO68: 0 | DP68: 0 | DQ68: 0 | DR68: 0 | DS68: 0 | DT68: 0 | DU68: 1 | DV68: 0 | DW68: 0 | DX68: 1 | DY68: 0 | DZ68: 13 | EA68: 0 | EB68: 231 | EC68: 1075 | ED68: 128 | EE68: 430 | EF68: 0 | EG68: 0 | EH68: 0 | EI68: 0 | EJ68: 0 | EK68: 0 | EL68: 0 | EM68: 0 | EN68: 0 | EO68: 0 | EP68: 0 | EQ68: 0 | ER68: 107 | ES68: 187 | ET68: 8 | EU68: 23 | EV68: 46 | EW68: 37 | EX68: 94 | EY68: 169 | EZ68: 9 | FA68: 25 | FB68: 43 | FC68: 34 | FD68: 12 | FE68: 13 | FF68: 0 | FG68: 0 | FH68: 0 | FI68: 0 | FJ68: 27 | FK68: 50 | FL68: 1 | FM68: 9 | FN68: 34 | FO68: 33 | FP68: 1 | FQ68: 6 | FR68: 0 | FS68: 1 | FT68: 2 | FU68: 0 | FV68: 0 | FW68: 0 | FX68: 0 | FY68: 0 | FZ68: 0 | GA68: 0 | GB68: 0 | GC68: 0 | GD68: 0 | GE68: 0 | GF68: 5 | GG68: 39 | GH68: 0 | GI68: 0 | GJ68: 19 | GK68: 1 | GL68: 0 | GM68: 0 | GN68: 0 | GO68: 0 | GP68: 0 | GQ68: 0 | GR68: 109 | GS68: 159 | GT68: 117 | GU68: 170 | GV68: 0 | GW68: 0 | GX68: 0 | GY68: 0 | GZ68: 0 | HA68: 0 | HB68: 0 | HC68: 0 | HD68: 0 | HE68: 0 | HF68: 0 | HG68: 0 | HH68: 0 | HI68: 0 | HJ68: 0 | HK68: 0 | HL68: 0 | HM68: 0 | HN68: 0 | HO68: 0 | HP68: 0 | HQ68: 0 | HR68: 0 | HS68: 0 | HT68: 0 | HU68: 0 | HV68: 0 | HW68: 0
A69: 11 | B69: 1 | C69: 164 | D69: 62 | E69: 224 | F69: 57 | G69: 86 | H69: 157 | I69: 270 | J69: 11 | K69: 31 | L69: 52 | M69: 179 | N69: 54 | O69: 133 | P69: 95 | Q69: 212 | R69: 219 | S69: 385 | T69: 56 | U69: 500 | V69: 0 | W69: 3 | X69: 0 | Y69: 1 | Z69: 0 | AA69: 0 | AB69: 0 | AC69: 0 | AD69: 0 | AE69: 0 | AF69: 8 | AG69: 37 | AH69: 2 | AI69: 34 | AJ69: 6 | AK69: 21 | AL69: 0 | AM69: 0 | AN69: 0 | AO69: 1 | AP69: 0 | AQ69: 1 | AR69: 2 | AS69: 5 | AT69: 4 | AU69: 0 | AV69: 0 | AW69: 0 | AX69: 0 | AY69: 0 | AZ69: 3 | BA69: 6 | BB69: 51 | BC69: 153 | BD69: 0 | BE69: 0 | BF69: 4 | BG69: 8 | BH69: 0 | BI69: 0 | BJ69: 0 | BK69: 0 | BL69: 0 | BM69: 0 | BN69: 4 | BO69: 8 | BP69: 0 | BQ69: 0 | BR69: 0 | BS69: 0 | BT69: 0 | BU69: 1 | BV69: 0 | BW69: 0 | BX69: 55 | BY69: 250 | BZ69: 18 | CA69: 175 | CB69: 3 | CC69: 44 | CD69: 0 | CE69: 47 | CF69: 0 | CG69: 0 | CH69: 0 | CI69: 0 | CJ69: 1 | CK69: 1 | CL69: 1 | CM69: 0 | CN69: 35 | CO69: 150 | CP69: 53 | CQ69: 592 | CR69: 52 | CS69: 518 | CT69: 49 | CU69: 514 | CV69: 64 | CW69: 295 | CX69: 59 | CY69: 294 | CZ69: 22 | DA69: 11 | DB69: 22 | DC69: 34 | DD69: 43 | DE69: 50 | DF69: 1050 | DG69: 3370 | DH69: 1 | DI69: 0 | DJ69: 10 | DK69: 0 | DL69: 0 | DM69: 0 | DN69: 0 | DO69: 0 | DP69: 0 | DQ69: 0 | DR69: 1 | DS69: 0 | DT69: 3 | DU69: 0 | DV69: 0 | DW69: 0 | DX69: 0 | DY69: 0 | DZ69: 3 | EA69: 0 | EB69: 156 | EC69: 553 | ED69: 167 | EE69: 405 | EF69: 0 | EG69: 0 | EH69: 0 | EI69: 0 | EJ69: 1 | EK69: 0 | EL69: 0 | EM69: 0 | EN69: 0 | EO69: 0 | EP69: 0 | EQ69: 0 | ER69: 48 | ES69: 138 | ET69: 15 | EU69: 33 | EV69: 43 | EW69: 24 | EX69: 46 | EY69: 130 | EZ69: 14 | FA69: 40 | FB69: 41 | FC69: 23 | FD69: 4 | FE69: 9 | FF69: 0 | FG69: 1 | FH69: 0 | FI69: 1 | FJ69: 5 | FK69: 19 | FL69: 4 | FM69: 8 | FN69: 41 | FO69: 23 | FP69: 1 | FQ69: 1 | FR69: 0 | FS69: 0 | FT69: 0 | FU69: 0 | FV69: 0 | FW69: 1 | FX69: 0 | FY69: 0 | FZ69: 0 | GA69: 0 | GB69: 0 | GC69: 0 | GD69: 0 | GE69: 0 | GF69: 2 | GG69: 22 | GH69: 0 | GI69: 0 | GJ69: 17 | GK69: 1 | GL69: 0 | GM69: 0 | GN69: 0 | GO69: 0 | GP69: 0 | GQ69: 0 | GR69: 4 | GS69: 19 | GT69: 3 | GU69: 20 | GV69: 0 | GW69: 0 | GX69: 0 | GY69: 0 | GZ69: 0 | HA69: 0 | HB69: 0 | HC69: 0 | HD69: 0 | HE69: 0 | HF69: 0 | HG69: 0 | HH69: 0 | HI69: 0 | HJ69: 0 | HK69: 0 | HL69: 0 | HM69: 0 | HN69: 0 | HO69: 0 | HP69: 0 | HQ69: 0 | HR69: 0 | HS69: 0 | HT69: 0 | HU69: 0 | HV69: 0 | HW69: 0
A70: 9 | B70: 1 | C70: 115 | D70: 87 | E70: 263 | F70: 55 | G70: 126 | H70: 165 | I70: 358 | J70: 21 | K70: 46 | L70: 97 | M70: 190 | N70: 63 | O70: 111 | P70: 95 | Q70: 208 | R70: 228 | S70: 293 | T70: 74 | U70: 429 | V70: 5 | W70: 9 | X70: 2 | Y70: 4 | Z70: 0 | AA70: 0 | AB70: 0 | AC70: 0 | AD70: 0 | AE70: 0 | AF70: 11 | AG70: 39 | AH70: 8 | AI70: 34 | AJ70: 3 | AK70: 27 | AL70: 0 | AM70: 2 | AN70: 0 | AO70: 0 | AP70: 7 | AQ70: 6 | AR70: 1 | AS70: 7 | AT70: 3 | AU70: 0 | AV70: 0 | AW70: 0 | AX70: 0 | AY70: 0 | AZ70: 4 | BA70: 11 | BB70: 64 | BC70: 164 | BD70: 0 | BE70: 0 | BF70: 3 | BG70: 7 | BH70: 1 | BI70: 0 | BJ70: 0 | BK70: 0 | BL70: 1 | BM70: 0 | BN70: 6 | BO70: 12 | BP70: 0 | BQ70: 0 | BR70: 0 | BS70: 2 | BT70: 0 | BU70: 0 | BV70: 0 | BW70: 0 | BX70: 43 | BY70: 297 | BZ70: 23 | CA70: 238 | CB70: 0 | CC70: 72 | CD70: 0 | CE70: 52 | CF70: 0 | CG70: 0 | CH70: 0 | CI70: 0 | CJ70: 0 | CK70: 0 | CL70: 0 | CM70: 0 | CN70: 30 | CO70: 193 | CP70: 59 | CQ70: 776 | CR70: 76 | CS70: 476 | CT70: 76 | CU70: 483 | CV70: 100 | CW70: 289 | CX70: 72 | CY70: 289 | CZ70: 27 | DA70: 28 | DB70: 25 | DC70: 10 | DD70: 19 | DE70: 57 | DF70: 690 | DG70: 4180 | DH70: 2 | DI70: 1 | DJ70: 20 | DK70: 13 | DL70: 0 | DM70: 0 | DN70: 0 | DO70: 0 | DP70: 0 | DQ70: 0 | DR70: 0 | DS70: 0 | DT70: 1 | DU70: 2 | DV70: 0 | DW70: 0 | DX70: 0 | DY70: 0 | DZ70: 50 | EA70: 2 | EB70: 137 | EC70: 557 | ED70: 56 | EE70: 404 | EF70: 0 | EG70: 0 | EH70: 0 | EI70: 0 | EJ70: 0 | EK70: 0 | EL70: 0 | EM70: 0 | EN70: 0 | EO70: 0 | EP70: 0 | EQ70: 0 | ER70: 79 | ES70: 141 | ET70: 9 | EU70: 28 | EV70: 38 | EW70: 27 | EX70: 66 | EY70: 130 | EZ70: 15 | FA70: 38 | FB70: 38 | FC70: 26 | FD70: 7 | FE70: 12 | FF70: 0 | FG70: 0 | FH70: 0 | FI70: 0 | FJ70: 3 | FK70: 11 | FL70: 2 | FM70: 13 | FN70: 34 | FO70: 26 | FP70: 1 | FQ70: 1 | FR70: 0 | FS70: 0 | FT70: 0 | FU70: 0 | FV70: 0 | FW70: 0 | FX70: 0 | FY70: 0 | FZ70: 0 | GA70: 0 | GB70: 0 | GC70: 0 | GD70: 0 | GE70: 0 | GF70: 5 | GG70: 42 | GH70: 0 | GI70: 0 | GJ70: 15 | GK70: 3 | GL70: 0 | GM70: 0 | GN70: 0 | GO70: 0 | GP70: 0 | GQ70: 0 | GR70: 7 | GS70: 14 | GT70: 7 | GU70: 10 | GV70: 0 | GW70: 0 | GX70: 0 | GY70: 0 | GZ70: 0 | HA70: 0 | HB70: 0 | HC70: 0 | HD70: 0 | HE70: 0 | HF70: 0 | HG70: 0 | HH70: 0 | HI70: 0 | HJ70: 0 | HK70: 0 | HL70: 0 | HM70: 0 | HN70: 0 | HO70: 0 | HP70: 0 | HQ70: 0 | HR70: 0 | HS70: 0 | HT70: 0 | HU70: 0 | HV70: 0 | HW70: 0
A71: 10 | B71: 0 | C71: 141 | D71: 69 | E71: 245 | F71: 56 | G71: 123 | H71: 155 | I71: 312 | J71: 31 | K71: 39 | L71: 80 | M71: 201 | N71: 66 | O71: 147 | P71: 94 | Q71: 173 | R71: 246 | S71: 351 | T71: 63 | U71: 471 | V71: 6 | W71: 16 | X71: 8 | Y71: 3 | Z71: 0 | AA71: 0 | AB71: 0 | AC71: 0 | AD71: 1 | AE71: 0 | AF71: 12 | AG71: 44 | AH71: 8 | AI71: 35 | AJ71: 3 | AK71: 31 | AL71: 0 | AM71: 0 | AN71: 0 | AO71: 2 | AP71: 5 | AQ71: 3 | AR71: 7 | AS71: 4 | AT71: 3 | AU71: 0 | AV71: 0 | AW71: 0 | AX71: 0 | AY71: 0 | AZ71: 4 | BA71: 5 | BB71: 55 | BC71: 153 | BD71: 0 | BE71: 0 | BF71: 2 | BG71: 7 | BH71: 0 | BI71: 1 | BJ71: 0 | BK71: 0 | BL71: 0 | BM71: 0 | BN71: 2 | BO71: 5 | BP71: 0 | BQ71: 3 | BR71: 0 | BS71: 4 | BT71: 0 | BU71: 0 | BV71: 0 | BW71: 0 | BX71: 53 | BY71: 355 | BZ71: 18 | CA71: 232 | CB71: 0 | CC71: 46 | CD71: 1 | CE71: 47 | CF71: 0 | CG71: 0 | CH71: 0 | CI71: 0 | CJ71: 2 | CK71: 0 | CL71: 2 | CM71: 0 | CN71: 36 | CO71: 163 | CP71: 44 | CQ71: 671 | CR71: 68 | CS71: 541 | CT71: 65 | CU71: 529 | CV71: 64 | CW71: 293 | CX71: 62 | CY71: 290 | CZ71: 30 | DA71: 15 | DB71: 28 | DC71: 9 | DD71: 19 | DE71: 42 | DF71: 770 | DG71: 4450 | DH71: 0 | DI71: 0 | DJ71: 0 | DK71: 0 | DL71: 0 | DM71: 0 | DN71: 0 | DO71: 0 | DP71: 4 | DQ71: 0 | DR71: 0 | DS71: 0 | DT71: 1 | DU71: 0 | DV71: 1 | DW71: 0 | DX71: 0 | DY71: 0 | DZ71: 1 | EA71: 0 | EB71: 218 | EC71: 736 | ED71: 190 | EE71: 858 | EF71: 0 | EG71: 0 | EH71: 0 | EI71: 0 | EJ71: 0 | EK71: 0 | EL71: 0 | EM71: 0 | EN71: 0 | EO71: 0 | EP71: 0 | EQ71: 0 | ER71: 71 | ES71: 141 | ET71: 9 | EU71: 36 | EV71: 33 | EW71: 16 | EX71: 62 | EY71: 140 | EZ71: 7 | FA71: 40 | FB71: 31 | FC71: 17 | FD71: 10 | FE71: 18 | FF71: 0 | FG71: 0 | FH71: 0 | FI71: 0 | FJ71: 13 | FK71: 21 | FL71: 0 | FM71: 4 | FN71: 27 | FO71: 15 | FP71: 1 | FQ71: 3 | FR71: 0 | FS71: 2 | FT71: 0 | FU71: 0 | FV71: 0 | FW71: 1 | FX71: 0 | FY71: 0 | FZ71: 0 | GA71: 0 | GB71: 0 | GC71: 0 | GD71: 0 | GE71: 0 | GF71: 5 | GG71: 30 | GH71: 0 | GI71: 0 | GJ71: 6 | GK71: 1 | GL71: 0 | GM71: 0 | GN71: 0 | GO71: 0 | GP71: 0 | GQ71: 0 | GR71: 14 | GS71: 13 | GT71: 13 | GU71: 12 | GV71: 0 | GW71: 0 | GX71: 0 | GY71: 0 | GZ71: 0 | HA71: 0 | HB71: 0 | HC71: 0 | HD71: 0 | HE71: 0 | HF71: 0 | HG71: 0 | HH71: 0 | HI71: 0 | HJ71: 0 | HK71: 0 | HL71: 0 | HM71: 0 | HN71: 0 | HO71: 0 | HP71: 0 | HQ71: 0 | HR71: 0 | HS71: 0 | HT71: 0 | HU71: 0 | HV71: 0 | HW71: 0
A72: Total general | B72: 10 | C72: 1634 | D72: 858 | E72: 3054 | F72: 782 | G72: 1391 | H72: 2265 | I72: 3774 | J72: 301 | K72: 486 | L72: 870 | M72: 2391 | N72: 678 | O72: 1395 | P72: 979 | Q72: 2051 | R72: 2345 | S72: 3543 | T72: 835 | U72: 4896 | V72: 92 | W72: 191 | X72: 10 | Y72: 12 | Z72: 0 | AA72: 1 | AB72: 0 | AC72: 0 | AD72: 1 | AE72: 1 | AF72: 112 | AG72: 530 | AH72: 103 | AI72: 418 | AJ72: 53 | AK72: 360 | AL72: 3 | AM72: 16 | AN72: 0 | AO72: 14 | AP72: 67 | AQ72: 89 | AR72: 56 | AS72: 107 | AT72: 54 | AU72: 0 | AV72: 0 | AW72: 3 | AX72: 0 | AY72: 0 | AZ72: 36 | BA72: 73 | BB72: 647 | BC72: 1871 | BD72: 0 | BE72: 0 | BF72: 69 | BG72: 83 | BH72: 5 | BI72: 2 | BJ72: 0 | BK72: 0 | BL72: 5 | BM72: 4 | BN72: 52 | BO72: 95 | BP72: 0 | BQ72: 18 | BR72: 0 | BS72: 29 | BT72: 1 | BU72: 1 | BV72: 0 | BW72: 1 | BX72: 634 | BY72: 6039 | BZ72: 166 | CA72: 3227 | CB72: 6 | CC72: 601 | CD72: 1 | CE72: 490 | CF72: 0 | CG72: 2 | CH72: 0 | CI72: 1 | CJ72: 27 | CK72: 18 | CL72: 24 | CM72: 1 | CN72: 460 | CO72: 1866 | CP72: 708 | CQ72: 7464 | CR72: 1181 | CS72: 5340 | CT72: 1158 | CU72: 5385 | CV72: 914 | CW72: 2861 | CX72: 856 | CY72: 2893 | CZ72: 289 | DA72: 258 | DB72: 277 | DC72: 128 | DD72: 313 | DE72: 462 | DF72: 10358 | DG72: 40683 | DH72: 28 | DI72: 5 | DJ72: 271 | DK72: 133 | DL72: 3 | DM72: 1 | DN72: 0 | DO72: 0 | DP72: 8 | DQ72: 0 | DR72: 5 | DS72: 0 | DT72: 30 | DU72: 5 | DV72: 1 | DW72: 0 | DX72: 5 | DY72: 0 | DZ72: 189 | EA72: 2 | EB72: 2093 | EC72: 9187 | ED72: 1016 | EE72: 5261 | EF72: 0 | EG72: 1 | EH72: 0 | EI72: 0 | EJ72: 1 | EK72: 0 | EL72: 0 | EM72: 0 | EN72: 0 | EO72: 0 | EP72: 0 | EQ72: 0 | ER72: 815 | ES72: 1764 | ET72: 70 | EU72: 245 | EV72: 490 | EW72: 240 | EX72: 731 | EY72: 1675 | EZ72: 92 | FA72: 298 | FB72: 463 | FC72: 237 | FD72: 79 | FE72: 154 | FF72: 2 | FG72: 1 | FH72: 4 | FI72: 1 | FJ72: 113 | FK72: 285 | FL72: 14 | FM72: 66 | FN72: 413 | FO72: 225 | FP72: 9 | FQ72: 40 | FR72: 0 | FS72: 5 | FT72: 13 | FU72: 0 | FV72: 2 | FW72: 3 | FX72: 0 | FY72: 0 | FZ72: 0 | GA72: 0 | GB72: 0 | GC72: 0 | GD72: 0 | GE72: 0 | GF72: 49 | GG72: 376 | GH72: 0 | GI72: 0 | GJ72: 127 | GK72: 9 | GL72: 0 | GM72: 0 | GN72: 0 | GO72: 0 | GP72: 0 | GQ72: 0 | GR72: 736 | GS72: 995 | GT72: 758 | GU72: 1049 | GV72: 0 | GW72: 0 | GX72: 0 | GY72: 0 | GZ72: 0 | HA72: 0 | HB72: 0 | HC72: 0 | HD72: 0 | HE72: 0 | HF72: 0 | HG72: 0 | HH72: 0 | HI72: 0 | HJ72: 0 | HK72: 0 | HL72: 0 | HM72: 0 | HN72: 0 | HO72: 0 | HP72: 0 | HQ72: 0 | HR72: 0 | HS72: 0 | HT72: 0 | HU72: 0 | HV72: 0 | HW72: 0
A79: TOTAL
A80: =COUNT(A61:A77) -> 11 | B80: =SUM(B61:B77) -> 20 | C80: =SUM(C61:C77) -> 3268 | D80: 1716 | E80: 6108 | F80: 1564 | G80: 2782 | H80: 4530 | I80: 7548 | J80: 602 | K80: 972 | L80: 1740 | M80: 4782 | N80: 1356 | O80: 2790 | P80: 1958 | Q80: 4102 | R80: 4690 | S80: 7086 | T80: 1670 | U80: 9792 | V80: 184 | W80: 382 | X80: 20 | Y80: 24 | Z80: 0 | AA80: 2 | AB80: 0 | AC80: 0 | AD80: 2 | AE80: 2 | AF80: 224 | AG80: 1060 | AH80: 206 | AI80: 836 | AJ80: 106 | AK80: 720 | AL80: 6 | AM80: 32 | AN80: 0 | AO80: 28 | AP80: 134 | AQ80: 178 | AR80: 112 | AS80: 214 | AT80: 108 | AU80: 0 | AV80: 0 | AW80: 6 | AX80: 0 | AY80: 0 | AZ80: 72 | BA80: 146 | BB80: 1294 | BC80: 3742 | BD80: 0 | BE80: 0 | BF80: 138 | BG80: 166 | BH80: 10 | BI80: 4 | BJ80: 0 | BK80: 0 | BL80: 10 | BM80: 8 | BN80: 104 | BO80: =SUM(BO61:BO77) -> 190 | BP80: 0 | BQ80: 36 | BR80: 0 | BS80: 58 | BT80: 2 | BU80: 2 | BV80: 0 | BW80: 2 | BX80: 1268 | BY80: 12078 | BZ80: 332 | CA80: 6454 | CB80: 12 | CC80: 1202 | CD80: 2 | CE80: 980 | CF80: 0 | CG80: 4 | CH80: 0 | CI80: 2 | CJ80: 54 | CK80: 36 | CL80: 48 | CM80: 2 | CN80: 920 | CO80: 3732 | CP80: 1416 | CQ80: 14928 | CR80: 2362 | CS80: 10680 | CT80: 2316 | CU80: 10770 | CV80: 1828 | CW80: 5722 | CX80: 1712 | CY80: 5786 | CZ80: 578 | DA80: 516 | DB80: 554 | DC80: 256 | DD80: 626 | DE80: 924 | DF80: 20716 | DG80: 81366 | DH80: 56 | DI80: 10 | DJ80: 542 | DK80: 266 | DL80: 6 | DM80: 2 | DN80: 0 | DO80: 0 | DP80: 16 | DQ80: 0 | DR80: 10 | DS80: 0 | DT80: 60 | DU80: 10 | DV80: 2 | DW80: 0 | DX80: 10 | DY80: 0 | DZ80: 378 | EA80: =SUM(EA61:EA77) -> 4 | EB80: 4186 | EC80: 18374 | ED80: 2032 | EE80: 10522 | EF80: 0 | EG80: 2 | EH80: 0 | EI80: 0 | EJ80: 2 | EK80: 0 | EL80: 0 | EM80: 0 | EN80: 0 | EO80: 0 | EP80: 0 | EQ80: 0 | ER80: 1630 | ES80: 3528 | ET80: 140 | EU80: 490 | EV80: 980 | EW80: 480 | EX80: 1462 | EY80: 3350 | EZ80: 184 | FA80: 596 | FB80: 926 | FC80: 474 | FD80: 158 | FE80: 308 | FF80: 4 | FG80: 2 | FH80: 8 | FI80: 2 | FJ80: 226 | FK80: 570 | FL80: 28 | FM80: 132 | FN80: 826 | FO80: 450 | FP80: 18 | FQ80: 80 | FR80: 0 | FS80: 10 | FT80: 26 | FU80: 0 | FV80: 4 | FW80: 6 | FX80: 0 | FY80: 0 | FZ80: 0 | GA80: 0 | GB80: 0 | GC80: 0 | GD80: 0 | GE80: 0 | GF80: 98 | GG80: 752 | GH80: 0 | GI80: 0 | GJ80: 254 | GK80: 18 | GL80: 0 | GM80: =SUM(GM61:GM77) -> 0 | GN80: 0 | GO80: 0 | GP80: 0 | GQ80: 0 | GR80: 1472 | GS80: 1990 | GT80: 1516 | GU80: 2098 | GV80: 0 | GW80: 0 | GX80: 0 | GY80: 0 | GZ80: 0 | HA80: 0 | HB80: 0 | HC80: 0 | HD80: 0 | HE80: 0 | HF80: 0 | HG80: 0 | HH80: 0 | HI80: 0 | HJ80: 0 | HK80: 0 | HL80: 0 | HM80: 0 | HN80: 0 | HO80: 0 | HP80: 0 | HQ80: 0 | HR80: 0 | HS80: 0 | HT80: 0 | HU80: 0 | HV80: 0 | HW80: 0 | HX80: 0
A81: =CONCATENATE(A61,"-",A62,"-",A63,"-",A64,"-",A65,"-",A66,"-",A67,"-",A68,"-",A69,"-",A70,"-",A71,"-",A72) -> 1-3-5-6-2-8-7-4-11-9-10-Total general
B82: BAS001 | C82: BAS002 | D82: BAS003 | E82: BAS004 | F82: BAS005 | G82: BAS006 | H82: BAS007 | I82: BAS008 | J82: BAS009 | K82: BAS010 | L82: BAS011 | M82: BAS012 | N82: BAS013 | O82: BAS014 | P82: BAS015 | Q82: BAS016 | R82: BAS017 | S82: BAS018 | T82: BAS019 | U82: BAS020 | V82: BAS021 | W82: BAS022 | X82: BAS023 | Y82: BAS024 | Z82: BAS025 | AA82: BAS026 | AB82: BAS027 | AC82: BAS028 | AD82: BAS029 | AE82: BAS030 | AF82: BAS031 | AG82: BAS032 | AH82: BAS033 | AI82: BAS034 | AJ82: BAS035 | AK82: BAS036 | AL82: BAS037 | AM82: BAS038 | AN82: BAS039 | AO82: BAS040 | AP82: BAS041 | AQ82: BAS042 | AR82: BAS043 | AS82: BAS044 | AT82: BAS045 | AU82: BAS046 | AV82: BAS047 | AW82: BAS048 | AX82: BAS049 | AY82: BAS050 | AZ82: BAS051 | BA82: BAS052 | BB82: BAS053 | BC82: BAS054 | BD82: BAS055 | BE82: BAS056 | BF82: BAS057 | BG82: BAS058 | BH82: BAS059 | BI82: BAS060 | BJ82: BAS061 | BK82: BAS062 | BL82: BAS063 | BM82: BAS064 | BN82: BAS065 | BO82: BAS066 | BP82: BAS067 | BQ82: BAS068 | BR82: BAS069 | BS82: BAS070 | BT82: BAS071 | BU82: BAS072 | BV82: BAS073 | BW82: BAS074 | BX82: BAS075 | BY82: BAS076 | BZ82: BAS077 | CA82: BAS078 | CB82: BAS079 | CC82: BAS080 | CD82: BAS081 | CE82: BAS082 | CF82: BAS083 | CG82: BAS084 | CH82: BAS085 | CI82: BAS086 | CJ82: BAS087 | CK82: BAS088 | CL82: BAS089 | CM82: BAS090 | CN82: BAS091 | CO82: BAS092 | CP82: BAS093 | CQ82: BAS094 | CR82: BAS095 | CS82: BAS096 | CT82: BAS097 | CU82: BAS098 | CV82: BAS099 | CW82: BAS100 | CX82: BAS101 | CY82: BAS102 | CZ82: BAS103 | DA82: BAS104 | DB82: BAS105 | DC82: BAS106 | DD82: BAS107 | DE82: BAS108 | DF82: BAS109 | DG82: BAS110 | DH82: BAS111 | DI82: BAS112 | DJ82: BAS113 | DK82: BAS114 | DL82: BAS115 | DM82: BAS116 | DN82: BAS117 | DO82: BAS118 | DP82: BAS119 | DQ82: BAS120 | DR82: BAS121 | DS82: BAS122 | DT82: BAS123 | DU82: BAS124 | DV82: BAS125 | DW82: BAS126 | DX82: BAS127 | DY82: BAS128 | DZ82: BAS129 | EA82: BAS130 | EB82: BAS131 | EC82: BAS132 | ED82: BAS133 | EE82: BAS134 | EF82: BAS135 | EG82: BAS136 | EH82: BAS137 | EI82: BAS138 | EJ82: BAS139 | EK82: BAS140 | EL82: BAS141 | EM82: BAS142 | EN82: BAS143 | EO82: BAS144 | EP82: BAS145 | EQ82: BAS146 | ER82: BAS147 | ES82: BAS148 | ET82: BAS149 | EU82: BAS150 | EV82: BAS151 | EW82: BAS152 | EX82: BAS153 | EY82: BAS154 | EZ82: BAS155 | FA82: BAS156 | FB82: BAS157 | FC82: BAS158 | FD82: BAS159 | FE82: BAS160 | FF82: BAS161 | FG82: BAS162 | FH82: BAS163 | FI82: BAS164 | FJ82: BAS165 | FK82: BAS166 | FL82: BAS167 | FM82: BAS168 | FN82: BAS169 | FO82: BAS170 | FP82: BAS171 | FQ82: BAS172 | FR82: BAS173 | FS82: BAS174 | FT82: BAS175 | FU82: BAS176 | FV82: BAS177 | FW82: BAS178 | FX82: BAS179 | FY82: BAS180 | FZ82: BAS181 | GA82: BAS182 | GB82: BAS183 | GC82: BAS184 | GD82: BAS185 | GE82: BAS186 | GF82: BAS187 | GG82: BAS188 | GH82: BAS189 | GI82: BAS190 | GJ82: BAS191 | GK82: BAS192 | GL82: BAS193 | GM82: BAS194 | GN82: BAS195 | GO82: BAS196 | GP82: BAS197 | GQ82: BAS198 | GR82: BAS199 | GS82: BAS200 | GT82: BAS201 | GU82: BAS202 | GV82: BAS203 | GW82: BAS204 | GX82: BAS205 | GY82: BAS206 | GZ82: BAS207 | HA82: BAS208 | HB82: BAS209 | HC82: BAS210 | HD82: BAS211 | HE82: BAS212 | HF82: BAS213 | HG82: BAS214 | HH82: BAS215 | HI82: BAS216 | HJ82: BAS217 | HK82: BAS218 | HL82: BAS219 | HM82: BAS220 | HN82: BAS221 | HO82: BAS222 | HP82: BAS223 | HQ82: BAS224 | HR82: BAS225 | HS82: BAS226 | HT82: BAS227 | HU82: BAS228 | HV82: BAS229 | HW82: BAS230
B83: =IF(B82=B60,"SI","NO") -> SI | C83: =IF(C82=C60,"SI","NO") -> SI | D83: SI | E83: SI | F83: SI | G83: SI | H83: SI | I83: SI | J83: SI | K83: SI | L83: SI | M83: SI | N83: SI | O83: SI | P83: SI | Q83: SI | R83: SI | S83: SI | T83: SI | U83: SI | V83: SI | W83: SI | X83: SI | Y83: SI | Z83: SI | AA83: SI | AB83: SI | AC83: SI | AD83: SI | AE83: SI | AF83: SI | AG83: SI | AH83: SI | AI83: SI | AJ83: SI | AK83: SI | AL83: SI | AM83: SI | AN83: SI | AO83: SI | AP83: SI | AQ83: SI | AR83: SI | AS83: SI | AT83: SI | AU83: SI | AV83: SI | AW83: SI | AX83: SI | AY83: SI | AZ83: SI | BA83: SI | BB83: SI | BC83: SI | BD83: SI | BE83: SI | BF83: SI | BG83: SI | BH83: SI | BI83: SI | BJ83: SI | BK83: SI | BL83: SI | BM83: SI | BN83: SI | BO83: =IF(BO82=BO60,"SI","NO") -> SI | BP83: SI | BQ83: SI | BR83: SI | BS83: SI | BT83: SI | BU83: SI | BV83: SI | BW83: SI | BX83: SI | BY83: SI | BZ83: SI | CA83: SI | CB83: SI | CC83: SI | CD83: SI | CE83: SI | CF83: SI | CG83: SI | CH83: SI | CI83: SI | CJ83: SI | CK83: SI | CL83: SI | CM83: SI | CN83: SI | CO83: SI | CP83: SI | CQ83: SI | CR83: SI | CS83: SI | CT83: SI | CU83: SI | CV83: SI | CW83: SI | CX83: SI | CY83: SI | CZ83: SI | DA83: SI | DB83: SI | DC83: SI | DD83: SI | DE83: SI | DF83: SI | DG83: SI | DH83: SI | DI83: SI | DJ83: SI | DK83: SI | DL83: SI | DM83: SI | DN83: SI | DO83: SI | DP83: SI | DQ83: SI | DR83: SI | DS83: SI | DT83: SI | DU83: SI | DV83: SI | DW83: SI | DX83: SI | DY83: SI | DZ83: SI | EA83: =IF(EA82=EA60,"SI","NO") -> SI | EB83: SI | EC83: SI | ED83: SI | EE83: SI | EF83: SI | EG83: SI | EH83: SI | EI83: SI | EJ83: SI | EK83: SI | EL83: SI | EM83: SI | EN83: SI | EO83: SI | EP83: SI | EQ83: SI | ER83: SI | ES83: SI | ET83: SI | EU83: SI | EV83: SI | EW83: SI | EX83: SI | EY83: SI | EZ83: SI | FA83: SI | FB83: SI | FC83: SI | FD83: SI | FE83: SI | FF83: SI | FG83: SI | FH83: SI | FI83: SI | FJ83: SI | FK83: SI | FL83: SI | FM83: SI | FN83: SI | FO83: SI | FP83: SI | FQ83: SI | FR83: SI | FS83: SI | FT83: SI | FU83: SI | FV83: SI | FW83: SI | FX83: SI | FY83: SI | FZ83: SI | GA83: SI | GB83: SI | GC83: SI | GD83: SI | GE83: SI | GF83: SI | GG83: SI | GH83: SI | GI83: SI | GJ83: SI | GK83: SI | GL83: SI | GM83: =IF(GM82=GM60,"SI","NO") -> SI | GN83: SI | GO83: SI | GP83: SI | GQ83: SI | GR83: SI | GS83: SI | GT83: SI | GU83: SI | GV83: SI | GW83: SI | GX83: SI | GY83: SI | GZ83: SI | HA83: SI | HB83: SI | HC83: SI | HD83: SI | HE83: SI | HF83: SI | HG83: SI | HH83: SI | HI83: SI | HJ83: SI | HK83: SI | HL83: SI | HM83: SI | HN83: SI | HO83: SI | HP83: SI | HQ83: SI | HR83: SI | HS83: SI | HT83: SI | HU83: SI | HV83: SI | HW83: SI
A88: ADULTO_02
A89: anno | B89: 2024
A90: cod_red | B90: 03
A91: codmic | B91: (Todas)
A92: cod_prov | B92: (Todas)
A93: coddist | B93: (Todas)
A94: cod_estab | B94: (Todas)
A95: cod_eje | B95: (Todas)
B97: Valores
A98: Etiquetas de fila | B98: BAS001 | C98: BAS002 | D98: BAS003 | E98: BAS004 | F98: BAS005 | G98: BAS006 | H98: BAS007 | I98: BAS008 | J98: BAS009 | K98: BAS010 | L98: BAS011 | M98: BAS012 | N98: BAS013 | O98: BAS014 | P98: BAS015 | Q98: BAS016 | R98: BAS017 | S98: BAS018 | T98: BAS019 | U98: BAS020 | V98: BAS021 | W98: BAS022 | X98: BAS023 | Y98: BAS024 | Z98: BAS025 | AA98: BAS026 | AB98: BAS027 | AC98: BAS028 | AD98: BAS029 | AE98: BAS030 | AF98: BAS032 | AG98: BAS033 | AH98: BAS034 | AI98: BAS035 | AJ98: BAS036 | AK98: BAS037 | AL98: BAS038 | AM98: BAS039 | AN98: BAS040 | AO98: BAS041 | AP98: BAS042 | AQ98: BAS043 | AR98: BAS044 | AS98: BAS045 | AT98: BAS046 | AU98: BAS047 | AV98: BAS048 | AW98: BAS049 | AX98: BAS050 | AY98: BAS051 | AZ98: BAS052 | BA98: BAS053 | BB98: BAS054 | BC98: BAS055 | BD98: BAS056 | BE98: BAS057 | BF98: BAS058 | BG98: BAS059 | BH98: BAS060 | BI98: BAS061 | BJ98: BAS062 | BK98: BAS063 | BL98: BAS064 | BM98: BAS065 | BN98: BAS066 | BO98: BAS067 | BP98: BAS068 | BQ98: BAS069 | BR98: BAS070 | BS98: BAS071 | BT98: BAS072 | BU98: BAS073 | BV98: BAS074 | BW98: BAS075 | BX98: BAS076 | BY98: BAS077 | BZ98: BAS078 | CA98: BAS079 | CB98: BAS080 | CC98: BAS081 | CD98: BAS082 | CE98: BAS083 | CF98: BAS084 | CG98: BAS085 | CH98: BAS086 | CI98: BAS087 | CJ98: BAS088 | CK98: BAS089 | CL98: BAS090 | CM98: BAS091 | CN98: BAS092 | CO98: BAS093 | CP98: BAS094 | CQ98: BAS095 | CR98: BAS096 | CS98: BAS097 | CT98: BAS098 | CU98: BAS099 | CV98: BAS100 | CW98: BAS101 | CX98: BAS102 | CY98: BAS103 | CZ98: BAS104 | DA98: BAS105 | DB98: BAS106 | DC98: BAS107 | DD98: BAS108 | DE98: BAS109 | DF98: BAS110 | DG98: BAS111 | DH98: BAS112 | DI98: BAS113 | DJ98: BAS114 | DK98: BAS115 | DL98: BAS116 | DM98: BAS117 | DN98: BAS118 | DO98: BAS119 | DP98: BAS120 | DQ98: BAS121 | DR98: BAS122 | DS98: BAS123 | DT98: BAS124 | DU98: BAS125 | DV98: BAS126 | DW98: BAS127 | DX98: BAS128 | DY98: BAS129 | DZ98: BAS130 | EA98: BAS131 | EB98: BAS132 | EC98: BAS133 | ED98: BAS134 | EE98: BAS135 | EF98: BAS136 | EG98: BAS137 | EH98: BAS138 | EI98: BAS139 | EJ98: BAS140 | EK98: BAS141 | EL98: BAS142 | EM98: BAS143 | EN98: BAS144 | EO98: BAS145 | EP98: BAS146 | EQ98: BAS147 | ER98: BAS148 | ES98: BAS149 | ET98: BAS150 | EU98: BAS151 | EV98: BAS152 | EW98: BAS153 | EX98: BAS154 | EY98: BAS155 | EZ98: BAS156 | FA98: BAS157 | FB98: BAS158 | FC98: BAS159 | FD98: BAS160 | FE98: BAS161 | FF98: BAS162 | FG98: BAS163 | FH98: BAS164 | FI98: BAS165 | FJ98: BAS166 | FK98: BAS167 | FL98: BAS168 | FM98: BAS169 | FN98: BAS170 | FO98: BAS171 | FP98: BAS172 | FQ98: BAS173 | FR98: BAS174 | FS98: BAS175 | FT98: BAS176 | FU98: BAS177 | FV98: BAS178 | FW98: BAS179 | FX98: BAS180 | FY98: BAS181 | FZ98: BAS182 | GA98: BAS183 | GB98: BAS184 | GC98: BAS185 | GD98: BAS186 | GE98: BAS187 | GF98: BAS188 | GG98: BAS189 | GH98: BAS190 | GI98: BAS191 | GJ98: BAS192 | GK98: BAS193 | GL98: BAS194 | GM98: BAS195 | GN98: BAS196 | GO98: BAS197 | GP98: BAS198 | GQ98: BAS199 | GR98: BAS200 | GS98: BAS201 | GT98: BAS202 | GU98: BAS203 | GV98: BAS204 | GW98: BAS205 | GX98: BAS206 | GY98: BAS207 | GZ98: BAS208 | HA98: BAS209 | HB98: BAS210 | HC98: BAS211 | HD98: BAS212 | HE98: BAS213 | HF98: BAS214 | HG98: BAS215 | HH98: BAS216 | HI98: BAS217 | HJ98: BAS218 | HK98: BAS219 | HL98: BAS220 | HM98: BAS221 | HN98: BAS222 | HO98: BAS223 | HP98: BAS224 | HQ98: BAS225 | HR98: BAS226 | HS98: BAS227 | HT98: BAS228 | HU98: BAS229 | HV98: BAS230
A99: 1 | B99: 1 | C99: 0 | D99: 0 | E99: 0 | F99: 41 | G99: 15 | H99: 3 | I99: 47 | J99: 14 | K99: 0 | L99: 0 | M99: 24 | N99: 0 | O99: 0 | P99: 0 | Q99: 0 | R99: 0 | S99: 252 | T99: 777 | U99: 276 | V99: 699 | W99: 1 | X99: 13 | Y99: 272 | Z99: 689 | AA99: 0 | AB99: 0 | AC99: 0 | AD99: 0 | AE99: 24 | AF99: 56 | AG99: 92 | AH99: 0 | AI99: 0 | AJ99: 0 | AK99: 1 | AL99: 23 | AM99: 113 | AN99: 12 | AO99: 20 | AP99: 8 | AQ99: 7 | AR99: 0 | AS99: 0 | AT99: 0 | AU99: 0 | AV99: 1 | AW99: 1 | AX99: 0 | AY99: 0 | AZ99: 0 | BA99: 0 | BB99: 0 | BC99: 0 | BD99: 0 | BE99: 0 | BF99: 0 | BG99: 0 | BH99: 0 | BI99: 0 | BJ99: 0 | BK99: 0 | BL99: 0 | BM99: 0 | BN99: 0 | BO99: 0 | BP99: 0 | BQ99: 0 | BR99: 0 | BS99: 0 | BT99: 0 | BU99: 0 | BV99: 0 | BW99: 0 | BX99: 0 | BY99: 0 | BZ99: 613 | CA99: 1546 | CB99: 0 | CC99: 964 | CD99: 148 | CE99: 0 | CF99: 0 | CG99: 0 | CH99: 0 | CI99: 0 | CJ99: 0 | CK99: 0 | CL99: 0 | CM99: 0 | CN99: 0 | CO99: 0 | CP99: 0 | CQ99: 0 | CR99: 0 | CS99: 0 | CT99: 0 | CU99: 0 | CV99: 0 | CW99: 0 | CX99: 0 | CY99: 0 | CZ99: 0 | DA99: 0 | DB99: 0 | DC99: 0 | DD99: 0 | DE99: 0 | DF99: 0 | DG99: 0 | DH99: 0 | DI99: 0 | DJ99: 0 | DK99: 0 | DL99: 0 | DM99: 0 | DN99: 0 | DO99: 0 | DP99: 0 | DQ99: 0 | DR99: 0 | DS99: 0 | DT99: 0 | DU99: 0 | DV99: 0 | DW99: 0 | DX99: 0 | DY99: 0 | DZ99: 0 | EA99: 0 | EB99: 0 | EC99: 0 | ED99: 0 | EE99: 0 | EF99: 0 | EG99: 0 | EH99: 0 | EI99: 0 | EJ99: 0 | EK99: 0 | EL99: 0 | EM99: 0 | EN99: 0 | EO99: 0 | EP99: 0 | EQ99: 0 | ER99: 0 | ES99: 0 | ET99: 0 | EU99: 0 | EV99: 0 | EW99: 0 | EX99: 0 | EY99: 0 | EZ99: 0 | FA99: 0 | FB99: 0 | FC99: 0 | FD99: 0 | FE99: 0 | FF99: 0 | FG99: 0 | FH99: 0 | FI99: 0 | FJ99: 0 | FK99: 0 | FL99: 0 | FM99: 0 | FN99: 0 | FO99: 0 | FP99: 0 | FQ99: 0 | FR99: 0 | FS99: 0 | FT99: 0 | FU99: 0 | FV99: 0 | FW99: 0 | FX99: 0 | FY99: 0 | FZ99: 0 | GA99: 0 | GB99: 0 | GC99: 0 | GD99: 0 | GE99: 0 | GF99: 0 | GG99: 0 | GH99: 0 | GI99: 0 | GJ99: 0 | GK99: 0 | GL99: 0 | GM99: 0 | GN99: 0 | GO99: 0 | GP99: 0 | GQ99: 0 | GR99: 0 | GS99: 0 | GT99: 0 | GU99: 0 | GV99: 0 | GW99: 0 | GX99: 0 | GY99: 0 | GZ99: 0 | HA99: 0 | HB99: 0 | HC99: 0 | HD99: 0 | HE99: 0 | HF99: 0 | HG99: 0 | HH99: 0 | HI99: 0 | HJ99: 0 | HK99: 0 | HL99: 0 | HM99: 0 | HN99: 0 | HO99: 0 | HP99: 0 | HQ99: 0 | HR99: 0 | HS99: 0 | HT99: 0 | HU99: 0 | HV99: 0
A100: 8 | B100: 1 | C100: 0 | D100: 0 | E100: 0 | F100: 41 | G100: 18 | H100: 2 | I100: 41 | J100: 19 | K100: 0 | L100: 0 | M100: 13 | N100: 2 | O100: 0 | P100: 0 | Q100: 0 | R100: 0 | S100: 456 | T100: 650 | U100: 456 | V100: 575 | W100: 3 | X100: 0 | Y100: 454 | Z100: 569 | AA100: 0 | AB100: 0 | AC100: 0 | AD100: 0 | AE100: 13 | AF100: 31 | AG100: 78 | AH100: 0 | AI100: 0 | AJ100: 0 | AK100: 0 | AL100: 32 | AM100: 128 | AN100: 1 | AO100: 4 | AP100: 1 | AQ100: 2 | AR100: 1 | AS100: 1 | AT100: 1 | AU100: 2 | AV100: 0 | AW100: 0 | AX100: 0 | AY100: 0 | AZ100: 0 | BA100: 0 | BB100: 0 | BC100: 0 | BD100: 0 | BE100: 0 | BF100: 0 | BG100: 0 | BH100: 0 | BI100: 0 | BJ100: 0 | BK100: 0 | BL100: 0 | BM100: 0 | BN100: 0 | BO100: 0 | BP100: 0 | BQ100: 0 | BR100: 0 | BS100: 0 | BT100: 0 | BU100: 0 | BV100: 0 | BW100: 0 | BX100: 0 | BY100: 0 | BZ100: 628 | CA100: 1188 | CB100: 0 | CC100: 322 | CD100: 109 | CE100: 0 | CF100: 0 | CG100: 0 | CH100: 0 | CI100: 0 | CJ100: 0 | CK100: 0 | CL100: 0 | CM100: 0 | CN100: 0 | CO100: 0 | CP100: 0 | CQ100: 0 | CR100: 0 | CS100: 0 | CT100: 0 | CU100: 0 | CV100: 0 | CW100: 0 | CX100: 0 | CY100: 0 | CZ100: 0 | DA100: 0 | DB100: 0 | DC100: 0 | DD100: 0 | DE100: 0 | DF100: 0 | DG100: 0 | DH100: 0 | DI100: 0 | DJ100: 0 | DK100: 0 | DL100: 0 | DM100: 0 | DN100: 0 | DO100: 0 | DP100: 0 | DQ100: 0 | DR100: 0 | DS100: 0 | DT100: 0 | DU100: 0 | DV100: 0 | DW100: 0 | DX100: 0 | DY100: 0 | DZ100: 0 | EA100: 0 | EB100: 0 | EC100: 0 | ED100: 0 | EE100: 0 | EF100: 0 | EG100: 0 | EH100: 0 | EI100: 0 | EJ100: 0 | EK100: 0 | EL100: 0 | EM100: 0 | EN100: 0 | EO100: 0 | EP100: 0 | EQ100: 0 | ER100: 0 | ES100: 0 | ET100: 0 | EU100: 0 | EV100: 0 | EW100: 0 | EX100: 0 | EY100: 0 | EZ100: 0 | FA100: 0 | FB100: 0 | FC100: 0 | FD100: 0 | FE100: 0 | FF100: 0 | FG100: 0 | FH100: 0 | FI100: 0 | FJ100: 0 | FK100: 0 | FL100: 0 | FM100: 0 | FN100: 0 | FO100: 0 | FP100: 0 | FQ100: 0 | FR100: 0 | FS100: 0 | FT100: 0 | FU100: 0 | FV100: 0 | FW100: 0 | FX100: 0 | FY100: 0 | FZ100: 0 | GA100: 0 | GB100: 0 | GC100: 0 | GD100: 0 | GE100: 0 | GF100: 0 | GG100: 0 | GH100: 0 | GI100: 0 | GJ100: 0 | GK100: 0 | GL100: 0 | GM100: 0 | GN100: 0 | GO100: 0 | GP100: 0 | GQ100: 0 | GR100: 0 | GS100: 0 | GT100: 0 | GU100: 0 | GV100: 0 | GW100: 0 | GX100: 0 | GY100: 0 | GZ100: 0 | HA100: 0 | HB100: 0 | HC100: 0 | HD100: 0 | HE100: 0 | HF100: 0 | HG100: 0 | HH100: 0 | HI100: 0 | HJ100: 0 | HK100: 0 | HL100: 0 | HM100: 0 | HN100: 0 | HO100: 0 | HP100: 0 | HQ100: 0 | HR100: 0 | HS100: 0 | HT100: 0 | HU100: 0 | HV100: 0
A101: 2 | B101: 1 | C101: 2 | D101: 0 | E101: 0 | F101: 32 | G101: 4 | H101: 2 | I101: 36 | J101: 17 | K101: 0 | L101: 0 | M101: 15 | N101: 1 | O101: 1 | P101: 0 | Q101: 0 | R101: 0 | S101: 300 | T101: 744 | U101: 475 | V101: 674 | W101: 1 | X101: 4 | Y101: 472 | Z101: 674 | AA101: 0 | AB101: 0 | AC101: 0 | AD101: 0 | AE101: 15 | AF101: 31 | AG101: 77 | AH101: 0 | AI101: 0 | AJ101: 0 | AK101: 0 | AL101: 11 | AM101: 92 | AN101: 9 | AO101: 11 | AP101: 2 | AQ101: 5 | AR101: 0 | AS101: 0 | AT101: 3 | AU101: 2 | AV101: 0 | AW101: 0 | AX101: 0 | AY101: 0 | AZ101: 0 | BA101: 0 | BB101: 0 | BC101: 0 | BD101: 0 | BE101: 0 | BF101: 0 | BG101: 0 | BH101: 0 | BI101: 0 | BJ101: 0 | BK101: 0 | BL101: 0 | BM101: 0 | BN101: 0 | BO101: 0 | BP101: 0 | BQ101: 0 | BR101: 0 | BS101: 0 | BT101: 0 | BU101: 0 | BV101: 0 | BW101: 0 | BX101: 0 | BY101: 0 | BZ101: 470 | CA101: 1569 | CB101: 0 | CC101: 688 | CD101: 108 | CE101: 0 | CF101: 0 | CG101: 0 | CH101: 0 | CI101: 0 | CJ101: 0 | CK101: 0 | CL101: 0 | CM101: 0 | CN101: 0 | CO101: 0 | CP101: 0 | CQ101: 0 | CR101: 0 | CS101: 0 | CT101: 0 | CU101: 0 | CV101: 0 | CW101: 0 | CX101: 0 | CY101: 0 | CZ101: 0 | DA101: 0 | DB101: 0 | DC101: 0 | DD101: 0 | DE101: 0 | DF101: 0 | DG101: 0 | DH101: 0 | DI101: 0 | DJ101: 0 | DK101: 0 | DL101: 0 | DM101: 0 | DN101: 0 | DO101: 0 | DP101: 0 | DQ101: 0 | DR101: 0 | DS101: 0 | DT101: 0 | DU101: 0 | DV101: 0 | DW101: 0 | DX101: 0 | DY101: 0 | DZ101: 0 | EA101: 0 | EB101: 0 | EC101: 0 | ED101: 0 | EE101: 0 | EF101: 0 | EG101: 0 | EH101: 0 | EI101: 0 | EJ101: 0 | EK101: 0 | EL101: 0 | EM101: 0 | EN101: 0 | EO101: 0 | EP101: 0 | EQ101: 0 | ER101: 0 | ES101: 0 | ET101: 0 | EU101: 0 | EV101: 0 | EW101: 0 | EX101: 0 | EY101: 0 | EZ101: 0 | FA101: 0 | FB101: 0 | FC101: 0 | FD101: 0 | FE101: 0 | FF101: 0 | FG101: 0 | FH101: 0 | FI101: 0 | FJ101: 0 | FK101: 0 | FL101: 0 | FM101: 0 | FN101: 0 | FO101: 0 | FP101: 0 | FQ101: 0 | FR101: 0 | FS101: 0 | FT101: 0 | FU101: 0 | FV101: 0 | FW101: 0 | FX101: 0 | FY101: 0 | FZ101: 0 | GA101: 0 | GB101: 0 | GC101: 0 | GD101: 0 | GE101: 0 | GF101: 0 | GG101: 0 | GH101: 0 | GI101: 0 | GJ101: 0 | GK101: 0 | GL101: 0 | GM101: 0 | GN101: 0 | GO101: 0 | GP101: 0 | GQ101: 0 | GR101: 0 | GS101: 0 | GT101: 0 | GU101: 0 | GV101: 0 | GW101: 0 | GX101: 0 | GY101: 0 | GZ101: 0 | HA101: 0 | HB101: 0 | HC101: 0 | HD101: 0 | HE101: 0 | HF101: 0 | HG101: 0 | HH101: 0 | HI101: 0 | HJ101: 0 | HK101: 0 | HL101: 0 | HM101: 0 | HN101: 0 | HO101: 0 | HP101: 0 | HQ101: 0 | HR101: 0 | HS101: 0 | HT101: 0 | HU101: 0 | HV101: 0
A102: 7 | B102: 0 | C102: 3 | D102: 0 | E102: 0 | F102: 50 | G102: 17 | H102: 2 | I102: 46 | J102: 22 | K102: 0 | L102: 0 | M102: 18 | N102: 0 | O102: 0 | P102: 0 | Q102: 0 | R102: 0 | S102: 397 | T102: 704 | U102: 395 | V102: 651 | W102: 0 | X102: 2 | Y102: 396 | Z102: 652 | AA102: 0 | AB102: 0 | AC102: 0 | AD102: 0 | AE102: 16 | AF102: 33 | AG102: 60 | AH102: 0 | AI102: 0 | AJ102: 0 | AK102: 0 | AL102: 19 | AM102: 120 | AN102: 3 | AO102: 8 | AP102: 1 | AQ102: 2 | AR102: 0 | AS102: 0 | AT102: 0 | AU102: 0 | AV102: 0 | AW102: 1 | AX102: 0 | AY102: 0 | AZ102: 0 | BA102: 0 | BB102: 0 | BC102: 0 | BD102: 0 | BE102: 0 | BF102: 0 | BG102: 0 | BH102: 0 | BI102: 0 | BJ102: 0 | BK102: 0 | BL102: 0 | BM102: 0 | BN102: 0 | BO102: 0 | BP102: 0 | BQ102: 0 | BR102: 0 | BS102: 0 | BT102: 0 | BU102: 0 | BV102: 0 | BW102: 0 | BX102: 0 | BY102: 0 | BZ102: 553 | CA102: 1666 | CB102: 0 | CC102: 405 | CD102: 93 | CE102: 0 | CF102: 0 | CG102: 0 | CH102: 0 | CI102: 0 | CJ102: 0 | CK102: 0 | CL102: 0 | CM102: 0 | CN102: 0 | CO102: 0 | CP102: 0 | CQ102: 0 | CR102: 0 | CS102: 0 | CT102: 0 | CU102: 0 | CV102: 0 | CW102: 0 | CX102: 0 | CY102: 0 | CZ102: 0 | DA102: 0 | DB102: 0 | DC102: 0 | DD102: 0 | DE102: 0 | DF102: 0 | DG102: 0 | DH102: 0 | DI102: 0 | DJ102: 0 | DK102: 0 | DL102: 0 | DM102: 0 | DN102: 0 | DO102: 0 | DP102: 0 | DQ102: 0 | DR102: 0 | DS102: 0 | DT102: 0 | DU102: 0 | DV102: 0 | DW102: 0 | DX102: 0 | DY102: 0 | DZ102: 0 | EA102: 0 | EB102: 0 | EC102: 0 | ED102: 0 | EE102: 0 | EF102: 0 | EG102: 0 | EH102: 0 | EI102: 0 | EJ102: 0 | EK102: 0 | EL102: 0 | EM102: 0 | EN102: 0 | EO102: 0 | EP102: 0 | EQ102: 0 | ER102: 0 | ES102: 0 | ET102: 0 | EU102: 0 | EV102: 0 | EW102: 0 | EX102: 0 | EY102: 0 | EZ102: 0 | FA102: 0 | FB102: 0 | FC102: 0 | FD102: 0 | FE102: 0 | FF102: 0 | FG102: 0 | FH102: 0 | FI102: 0 | FJ102: 0 | FK102: 0 | FL102: 0 | FM102: 0 | FN102: 0 | FO102: 0 | FP102: 0 | FQ102: 0 | FR102: 0 | FS102: 0 | FT102: 0 | FU102: 0 | FV102: 0 | FW102: 0 | FX102: 0 | FY102: 0 | FZ102: 0 | GA102: 0 | GB102: 0 | GC102: 0 | GD102: 0 | GE102: 0 | GF102: 0 | GG102: 0 | GH102: 0 | GI102: 0 | GJ102: 0 | GK102: 0 | GL102: 0 | GM102: 0 | GN102: 0 | GO102: 0 | GP102: 0 | GQ102: 0 | GR102: 0 | GS102: 0 | GT102: 0 | GU102: 0 | GV102: 0 | GW102: 0 | GX102: 0 | GY102: 0 | GZ102: 0 | HA102: 0 | HB102: 0 | HC102: 0 | HD102: 0 | HE102: 0 | HF102: 0 | HG102: 0 | HH102: 0 | HI102: 0 | HJ102: 0 | HK102: 0 | HL102: 0 | HM102: 0 | HN102: 0 | HO102: 0 | HP102: 0 | HQ102: 0 | HR102: 0 | HS102: 0 | HT102: 0 | HU102: 0 | HV102: 0
A103: 4 | B103: 0 | C103: 1 | D103: 0 | E103: 0 | F103: 52 | G103: 17 | H103: 2 | I103: 52 | J103: 38 | K103: 0 | L103: 0 | M103: 18 | N103: 1 | O103: 0 | P103: 0 | Q103: 0 | R103: 0 | S103: 667 | T103: 755 | U103: 666 | V103: 674 | W103: 0 | X103: 7 | Y103: 666 | Z103: 667 | AA103: 0 | AB103: 0 | AC103: 0 | AD103: 0 | AE103: 20 | AF103: 48 | AG103: 95 | AH103: 0 | AI103: 0 | AJ103: 0 | AK103: 1 | AL103: 25 | AM103: 134 | AN103: 0 | AO103: 2 | AP103: 1 | AQ103: 1 | AR103: 0 | AS103: 0 | AT103: 0 | AU103: 0 | AV103: 0 | AW103: 0 | AX103: 0 | AY103: 0 | AZ103: 0 | BA103: 0 | BB103: 0 | BC103: 0 | BD103: 0 | BE103: 0 | BF103: 0 | BG103: 0 | BH103: 0 | BI103: 0 | BJ103: 0 | BK103: 0 | BL103: 0 | BM103: 0 | BN103: 0 | BO103: 0 | BP103: 0 | BQ103: 0 | BR103: 0 | BS103: 0 | BT103: 0 | BU103: 0 | BV103: 0 | BW103: 0 | BX103: 0 | BY103: 0 | BZ103: 626 | CA103: 1901 | CB103: 0 | CC103: 411 | CD103: 143 | CE103: 0 | CF103: 0 | CG103: 0 | CH103: 0 | CI103: 0 | CJ103: 0 | CK103: 0 | CL103: 0 | CM103: 0 | CN103: 0 | CO103: 0 | CP103: 0 | CQ103: 0 | CR103: 0 | CS103: 0 | CT103: 0 | CU103: 0 | CV103: 0 | CW103: 0 | CX103: 0 | CY103: 0 | CZ103: 0 | DA103: 0 | DB103: 0 | DC103: 0 | DD103: 0 | DE103: 0 | DF103: 0 | DG103: 0 | DH103: 0 | DI103: 0 | DJ103: 0 | DK103: 0 | DL103: 0 | DM103: 0 | DN103: 0 | DO103: 0 | DP103: 0 | DQ103: 0 | DR103: 0 | DS103: 0 | DT103: 0 | DU103: 0 | DV103: 0 | DW103: 0 | DX103: 0 | DY103: 0 | DZ103: 0 | EA103: 0 | EB103: 0 | EC103: 0 | ED103: 0 | EE103: 0 | EF103: 0 | EG103: 0 | EH103: 0 | EI103: 0 | EJ103: 0 | EK103: 0 | EL103: 0 | EM103: 0 | EN103: 0 | EO103: 0 | EP103: 0 | EQ103: 0 | ER103: 0 | ES103: 0 | ET103: 0 | EU103: 0 | EV103: 0 | EW103: 0 | EX103: 0 | EY103: 0 | EZ103: 0 | FA103: 0 | FB103: 0 | FC103: 0 | FD103: 0 | FE103: 0 | FF103: 0 | FG103: 0 | FH103: 0 | FI103: 0 | FJ103: 0 | FK103: 0 | FL103: 0 | FM103: 0 | FN103: 0 | FO103: 0 | FP103: 0 | FQ103: 0 | FR103: 0 | FS103: 0 | FT103: 0 | FU103: 0 | FV103: 0 | FW103: 0 | FX103: 0 | FY103: 0 | FZ103: 0 | GA103: 0 | GB103: 0 | GC103: 0 | GD103: 0 | GE103: 0 | GF103: 0 | GG103: 0 | GH103: 0 | GI103: 0 | GJ103: 0 | GK103: 0 | GL103: 0 | GM103: 0 | GN103: 0 | GO103: 0 | GP103: 0 | GQ103: 0 | GR103: 0 | GS103: 0 | GT103: 0 | GU103: 0 | GV103: 0 | GW103: 0 | GX103: 0 | GY103: 0 | GZ103: 0 | HA103: 0 | HB103: 0 | HC103: 0 | HD103: 0 | HE103: 0 | HF103: 0 | HG103: 0 | HH103: 0 | HI103: 0 | HJ103: 0 | HK103: 0 | HL103: 0 | HM103: 0 | HN103: 0 | HO103: 0 | HP103: 0 | HQ103: 0 | HR103: 0 | HS103: 0 | HT103: 0 | HU103: 0 | HV103: 0
A104: 5 | B104: 3 | C104: 1 | D104: 0 | E104: 1 | F104: 37 | G104: 15 | H104: 2 | I104: 49 | J104: 22 | K104: 0 | L104: 0 | M104: 26 | N104: 0 | O104: 0 | P104: 0 | Q104: 0 | R104: 0 | S104: 524 | T104: 756 | U104: 571 | V104: 665 | W104: 1 | X104: 5 | Y104: 564 | Z104: 657 | AA104: 0 | AB104: 0 | AC104: 0 | AD104: 0 | AE104: 32 | AF104: 41 | AG104: 59 | AH104: 0 | AI104: 0 | AJ104: 0 | AK104: 0 | AL104: 19 | AM104: 108 | AN104: 4 | AO104: 2 | AP104: 0 | AQ104: 0 | AR104: 1 | AS104: 1 | AT104: 0 | AU104: 0 | AV104: 0 | AW104: 0 | AX104: 0 | AY104: 0 | AZ104: 0 | BA104: 0 | BB104: 0 | BC104: 0 | BD104: 0 | BE104: 0 | BF104: 0 | BG104: 0 | BH104: 0 | BI104: 0 | BJ104: 0 | BK104: 0 | BL104: 0 | BM104: 0 | BN104: 0 | BO104: 0 | BP104: 0 | BQ104: 0 | BR104: 0 | BS104: 0 | BT104: 0 | BU104: 0 | BV104: 0 | BW104: 0 | BX104: 0 | BY104: 0 | BZ104: 570 | CA104: 1444 | CB104: 0 | CC104: 324 | CD104: 100 | CE104: 0 | CF104: 0 | CG104: 0 | CH104: 0 | CI104: 0 | CJ104: 0 | CK104: 0 | CL104: 0 | CM104: 0 | CN104: 0 | CO104: 0 | CP104: 0 | CQ104: 0 | CR104: 0 | CS104: 0 | CT104: 0 | CU104: 0 | CV104: 0 | CW104: 0 | CX104: 0 | CY104: 0 | CZ104: 0 | DA104: 0 | DB104: 0 | DC104: 0 | DD104: 0 | DE104: 0 | DF104: 0 | DG104: 0 | DH104: 0 | DI104: 0 | DJ104: 0 | DK104: 0 | DL104: 0 | DM104: 0 | DN104: 0 | DO104: 0 | DP104: 0 | DQ104: 0 | DR104: 0 | DS104: 0 | DT104: 0 | DU104: 0 | DV104: 0 | DW104: 0 | DX104: 0 | DY104: 0 | DZ104: 0 | EA104: 0 | EB104: 0 | EC104: 0 | ED104: 0 | EE104: 0 | EF104: 0 | EG104: 0 | EH104: 0 | EI104: 0 | EJ104: 0 | EK104: 0 | EL104: 0 | EM104: 0 | EN104: 0 | EO104: 0 | EP104: 0 | EQ104: 0 | ER104: 0 | ES104: 0 | ET104: 0 | EU104: 0 | EV104: 0 | EW104: 0 | EX104: 0 | EY104: 0 | EZ104: 0 | FA104: 0 | FB104: 0 | FC104: 0 | FD104: 0 | FE104: 0 | FF104: 0 | FG104: 0 | FH104: 0 | FI104: 0 | FJ104: 0 | FK104: 0 | FL104: 0 | FM104: 0 | FN104: 0 | FO104: 0 | FP104: 0 | FQ104: 0 | FR104: 0 | FS104: 0 | FT104: 0 | FU104: 0 | FV104: 0 | FW104: 0 | FX104: 0 | FY104: 0 | FZ104: 0 | GA104: 0 | GB104: 0 | GC104: 0 | GD104: 0 | GE104: 0 | GF104: 0 | GG104: 0 | GH104: 0 | GI104: 0 | GJ104: 0 | GK104: 0 | GL104: 0 | GM104: 0 | GN104: 0 | GO104: 0 | GP104: 0 | GQ104: 0 | GR104: 0 | GS104: 0 | GT104: 0 | GU104: 0 | GV104: 0 | GW104: 0 | GX104: 0 | GY104: 0 | GZ104: 0 | HA104: 0 | HB104: 0 | HC104: 0 | HD104: 0 | HE104: 0 | HF104: 0 | HG104: 0 | HH104: 0 | HI104: 0 | HJ104: 0 | HK104: 0 | HL104: 0 | HM104: 0 | HN104: 0 | HO104: 0 | HP104: 0 | HQ104: 0 | HR104: 0 | HS104: 0 | HT104: 0 | HU104: 0 | HV104: 0
A105: 6 | B105: 3 | C105: 0 | D105: 0 | E105: 0 | F105: 54 | G105: 18 | H105: 3 | I105: 49 | J105: 18 | K105: 0 | L105: 0 | M105: 20 | N105: 3 | O105: 0 | P105: 0 | Q105: 0 | R105: 0 | S105: 503 | T105: 738 | U105: 510 | V105: 663 | W105: 5 | X105: 9 | Y105: 504 | Z105: 658 | AA105: 0 | AB105: 0 | AC105: 0 | AD105: 0 | AE105: 11 | AF105: 22 | AG105: 45 | AH105: 0 | AI105: 0 | AJ105: 0 | AK105: 1 | AL105: 13 | AM105: 112 | AN105: 8 | AO105: 7 | AP105: 2 | AQ105: 7 | AR105: 0 | AS105: 2 | AT105: 1 | AU105: 2 | AV105: 0 | AW105: 1 | AX105: 0 | AY105: 0 | AZ105: 0 | BA105: 0 | BB105: 0 | BC105: 0 | BD105: 0 | BE105: 0 | BF105: 0 | BG105: 0 | BH105: 0 | BI105: 0 | BJ105: 0 | BK105: 0 | BL105: 0 | BM105: 0 | BN105: 0 | BO105: 0 | BP105: 0 | BQ105: 0 | BR105: 0 | BS105: 0 | BT105: 0 | BU105: 0 | BV105: 0 | BW105: 0 | BX105: 0 | BY105: 0 | BZ105: 565 | CA105: 2075 | CB105: 0 | CC105: 441 | CD105: 67 | CE105: 0 | CF105: 0 | CG105: 0 | CH105: 0 | CI105: 0 | CJ105: 0 | CK105: 0 | CL105: 0 | CM105: 0 | CN105: 0 | CO105: 0 | CP105: 0 | CQ105: 0 | CR105: 0 | CS105: 0 | CT105: 0 | CU105: 0 | CV105: 0 | CW105: 0 | CX105: 0 | CY105: 0 | CZ105: 0 | DA105: 0 | DB105: 0 | DC105: 0 | DD105: 0 | DE105: 0 | DF105: 0 | DG105: 0 | DH105: 0 | DI105: 0 | DJ105: 0 | DK105: 0 | DL105: 0 | DM105: 0 | DN105: 0 | DO105: 0 | DP105: 0 | DQ105: 0 | DR105: 0 | DS105: 0 | DT105: 0 | DU105: 0 | DV105: 0 | DW105: 0 | DX105: 0 | DY105: 0 | DZ105: 0 | EA105: 0 | EB105: 0 | EC105: 0 | ED105: 0 | EE105: 0 | EF105: 0 | EG105: 0 | EH105: 0 | EI105: 0 | EJ105: 0 | EK105: 0 | EL105: 0 | EM105: 0 | EN105: 0 | EO105: 0 | EP105: 0 | EQ105: 0 | ER105: 0 | ES105: 0 | ET105: 0 | EU105: 0 | EV105: 0 | EW105: 0 | EX105: 0 | EY105: 0 | EZ105: 0 | FA105: 0 | FB105: 0 | FC105: 0 | FD105: 0 | FE105: 0 | FF105: 0 | FG105: 0 | FH105: 0 | FI105: 0 | FJ105: 0 | FK105: 0 | FL105: 0 | FM105: 0 | FN105: 0 | FO105: 0 | FP105: 0 | FQ105: 0 | FR105: 0 | FS105: 0 | FT105: 0 | FU105: 0 | FV105: 0 | FW105: 0 | FX105: 0 | FY105: 0 | FZ105: 0 | GA105: 0 | GB105: 0 | GC105: 0 | GD105: 0 | GE105: 0 | GF105: 0 | GG105: 0 | GH105: 0 | GI105: 0 | GJ105: 0 | GK105: 0 | GL105: 0 | GM105: 0 | GN105: 0 | GO105: 0 | GP105: 0 | GQ105: 0 | GR105: 0 | GS105: 0 | GT105: 0 | GU105: 0 | GV105: 0 | GW105: 0 | GX105: 0 | GY105: 0 | GZ105: 0 | HA105: 0 | HB105: 0 | HC105: 0 | HD105: 0 | HE105: 0 | HF105: 0 | HG105: 0 | HH105: 0 | HI105: 0 | HJ105: 0 | HK105: 0 | HL105: 0 | HM105: 0 | HN105: 0 | HO105: 0 | HP105: 0 | HQ105: 0 | HR105: 0 | HS105: 0 | HT105: 0 | HU105: 0 | HV105: 0
A106: 3 | B106: 0 | C106: 0 | D106: 0 | E106: 0 | F106: 37 | G106: 12 | H106: 2 | I106: 47 | J106: 14 | K106: 0 | L106: 0 | M106: 16 | N106: 0 | O106: 1 | P106: 0 | Q106: 0 | R106: 0 | S106: 466 | T106: 941 | U106: 481 | V106: 835 | W106: 0 | X106: 2 | Y106: 480 | Z106: 837 | AA106: 0 | AB106: 0 | AC106: 0 | AD106: 0 | AE106: 8 | AF106: 72 | AG106: 71 | AH106: 0 | AI106: 0 | AJ106: 0 | AK106: 1 | AL106: 15 | AM106: 90 | AN106: 2 | AO106: 14 | AP106: 3 | AQ106: 5 | AR106: 0 | AS106: 0 | AT106: 0 | AU106: 0 | AV106: 0 | AW106: 0 | AX106: 0 | AY106: 0 | AZ106: 0 | BA106: 0 | BB106: 0 | BC106: 0 | BD106: 0 | BE106: 0 | BF106: 0 | BG106: 0 | BH106: 0 | BI106: 0 | BJ106: 0 | BK106: 0 | BL106: 0 | BM106: 0 | BN106: 0 | BO106: 0 | BP106: 0 | BQ106: 0 | BR106: 0 | BS106: 0 | BT106: 0 | BU106: 0 | BV106: 0 | BW106: 0 | BX106: 0 | BY106: 0 | BZ106: 580 | CA106: 1952 | CB106: 0 | CC106: 629 | CD106: 143 | CE106: 0 | CF106: 0 | CG106: 0 | CH106: 0 | CI106: 0 | CJ106: 0 | CK106: 0 | CL106: 0 | CM106: 0 | CN106: 0 | CO106: 0 | CP106: 0 | CQ106: 0 | CR106: 0 | CS106: 0 | CT106: 0 | CU106: 0 | CV106: 0 | CW106: 0 | CX106: 0 | CY106: 0 | CZ106: 0 | DA106: 0 | DB106: 0 | DC106: 0 | DD106: 0 | DE106: 0 | DF106: 0 | DG106: 0 | DH106: 0 | DI106: 0 | DJ106: 0 | DK106: 0 | DL106: 0 | DM106: 0 | DN106: 0 | DO106: 0 | DP106: 0 | DQ106: 0 | DR106: 0 | DS106: 0 | DT106: 0 | DU106: 0 | DV106: 0 | DW106: 0 | DX106: 0 | DY106: 0 | DZ106: 0 | EA106: 0 | EB106: 0 | EC106: 0 | ED106: 0 | EE106: 0 | EF106: 0 | EG106: 0 | EH106: 0 | EI106: 0 | EJ106: 0 | EK106: 0 | EL106: 0 | EM106: 0 | EN106: 0 | EO106: 0 | EP106: 0 | EQ106: 0 | ER106: 0 | ES106: 0 | ET106: 0 | EU106: 0 | EV106: 0 | EW106: 0 | EX106: 0 | EY106: 0 | EZ106: 0 | FA106: 0 | FB106: 0 | FC106: 0 | FD106: 0 | FE106: 0 | FF106: 0 | FG106: 0 | FH106: 0 | FI106: 0 | FJ106: 0 | FK106: 0 | FL106: 0 | FM106: 0 | FN106: 0 | FO106: 0 | FP106: 0 | FQ106: 0 | FR106: 0 | FS106: 0 | FT106: 0 | FU106: 0 | FV106: 0 | FW106: 0 | FX106: 0 | FY106: 0 | FZ106: 0 | GA106: 0 | GB106: 0 | GC106: 0 | GD106: 0 | GE106: 0 | GF106: 0 | GG106: 0 | GH106: 0 | GI106: 0 | GJ106: 0 | GK106: 0 | GL106: 0 | GM106: 0 | GN106: 0 | GO106: 0 | GP106: 0 | GQ106: 0 | GR106: 0 | GS106: 0 | GT106: 0 | GU106: 0 | GV106: 0 | GW106: 0 | GX106: 0 | GY106: 0 | GZ106: 0 | HA106: 0 | HB106: 0 | HC106: 0 | HD106: 0 | HE106: 0 | HF106: 0 | HG106: 0 | HH106: 0 | HI106: 0 | HJ106: 0 | HK106: 0 | HL106: 0 | HM106: 0 | HN106: 0 | HO106: 0 | HP106: 0 | HQ106: 0 | HR106: 0 | HS106: 0 | HT106: 0 | HU106: 0 | HV106: 0
A107: 11 | B107: 0 | C107: 1 | D107: 0 | E107: 0 | F107: 31 | G107: 15 | H107: 2 | I107: 49 | J107: 13 | K107: 0 | L107: 0 | M107: 14 | N107: 0 | O107: 0 | P107: 0 | Q107: 0 | R107: 0 | S107: 368 | T107: 682 | U107: 376 | V107: 572 | W107: 0 | X107: 2 | Y107: 368 | Z107: 547 | AA107: 0 | AB107: 0 | AC107: 0 | AD107: 0 | AE107: 3 | AF107: 24 | AG107: 48 | AH107: 0 | AI107: 0 | AJ107: 0 | AK107: 0 | AL107: 13 | AM107: 87 | AN107: 0 | AO107: 6 | AP107: 0 | AQ107: 0 | AR107: 0 | AS107: 1 | AT107: 30 | AU107: 78 | AV107: 0 | AW107: 0 | AX107: 0 | AY107: 0 | AZ107: 0 | BA107: 0 | BB107: 0 | BC107: 0 | BD107: 0 | BE107: 0 | BF107: 0 | BG107: 0 | BH107: 0 | BI107: 0 | BJ107: 0 | BK107: 0 | BL107: 0 | BM107: 0 | BN107: 0 | BO107: 0 | BP107: 0 | BQ107: 0 | BR107: 0 | BS107: 0 | BT107: 0 | BU107: 0 | BV107: 0 | BW107: 0 | BX107: 0 | BY107: 0 | BZ107: 447 | CA107: 1303 | CB107: 0 | CC107: 448 | CD107: 72 | CE107: 0 | CF107: 0 | CG107: 0 | CH107: 0 | CI107: 0 | CJ107: 0 | CK107: 0 | CL107: 0 | CM107: 0 | CN107: 0 | CO107: 0 | CP107: 0 | CQ107: 0 | CR107: 0 | CS107: 0 | CT107: 0 | CU107: 0 | CV107: 0 | CW107: 0 | CX107: 0 | CY107: 0 | CZ107: 0 | DA107: 0 | DB107: 0 | DC107: 0 | DD107: 0 | DE107: 0 | DF107: 0 | DG107: 0 | DH107: 0 | DI107: 0 | DJ107: 0 | DK107: 0 | DL107: 0 | DM107: 0 | DN107: 0 | DO107: 0 | DP107: 0 | DQ107: 0 | DR107: 0 | DS107: 0 | DT107: 0 | DU107: 0 | DV107: 0 | DW107: 0 | DX107: 0 | DY107: 0 | DZ107: 0 | EA107: 0 | EB107: 0 | EC107: 0 | ED107: 0 | EE107: 0 | EF107: 0 | EG107: 0 | EH107: 0 | EI107: 0 | EJ107: 0 | EK107: 0 | EL107: 0 | EM107: 0 | EN107: 0 | EO107: 0 | EP107: 0 | EQ107: 0 | ER107: 0 | ES107: 0 | ET107: 0 | EU107: 0 | EV107: 0 | EW107: 0 | EX107: 0 | EY107: 0 | EZ107: 0 | FA107: 0 | FB107: 0 | FC107: 0 | FD107: 0 | FE107: 0 | FF107: 0 | FG107: 0 | FH107: 0 | FI107: 0 | FJ107: 0 | FK107: 0 | FL107: 0 | FM107: 0 | FN107: 0 | FO107: 0 | FP107: 0 | FQ107: 0 | FR107: 0 | FS107: 0 | FT107: 0 | FU107: 0 | FV107: 0 | FW107: 0 | FX107: 0 | FY107: 0 | FZ107: 0 | GA107: 0 | GB107: 0 | GC107: 0 | GD107: 0 | GE107: 0 | GF107: 0 | GG107: 0 | GH107: 0 | GI107: 0 | GJ107: 0 | GK107: 0 | GL107: 0 | GM107: 0 | GN107: 0 | GO107: 0 | GP107: 0 | GQ107: 0 | GR107: 0 | GS107: 0 | GT107: 0 | GU107: 0 | GV107: 0 | GW107: 0 | GX107: 0 | GY107: 0 | GZ107: 0 | HA107: 0 | HB107: 0 | HC107: 0 | HD107: 0 | HE107: 0 | HF107: 0 | HG107: 0 | HH107: 0 | HI107: 0 | HJ107: 0 | HK107: 0 | HL107: 0 | HM107: 0 | HN107: 0 | HO107: 0 | HP107: 0 | HQ107: 0 | HR107: 0 | HS107: 0 | HT107: 0 | HU107: 0 | HV107: 0
A108: 9 | B108: 0 | C108: 2 | D108: 0 | E108: 0 | F108: 38 | G108: 9 | H108: 5 | I108: 39 | J108: 17 | K108: 0 | L108: 0 | M108: 13 | N108: 1 | O108: 0 | P108: 0 | Q108: 0 | R108: 0 | S108: 382 | T108: 548 | U108: 591 | V108: 526 | W108: 0 | X108: 2 | Y108: 591 | Z108: 526 | AA108: 0 | AB108: 0 | AC108: 0 | AD108: 0 | AE108: 11 | AF108: 46 | AG108: 86 | AH108: 0 | AI108: 0 | AJ108: 0 | AK108: 0 | AL108: 21 | AM108: 109 | AN108: 3 | AO108: 2 | AP108: 0 | AQ108: 3 | AR108: 2 | AS108: 3 | AT108: 0 | AU108: 2 | AV108: 0 | AW108: 0 | AX108: 0 | AY108: 0 | AZ108: 0 | BA108: 0 | BB108: 0 | BC108: 0 | BD108: 0 | BE108: 0 | BF108: 0 | BG108: 0 | BH108: 0 | BI108: 0 | BJ108: 0 | BK108: 0 | BL108: 0 | BM108: 0 | BN108: 0 | BO108: 0 | BP108: 0 | BQ108: 0 | BR108: 0 | BS108: 0 | BT108: 0 | BU108: 0 | BV108: 0 | BW108: 0 | BX108: 0 | BY108: 0 | BZ108: 547 | CA108: 1177 | CB108: 0 | CC108: 347 | CD108: 132 | CE108: 0 | CF108: 0 | CG108: 0 | CH108: 0 | CI108: 0 | CJ108: 0 | CK108: 0 | CL108: 0 | CM108: 0 | CN108: 0 | CO108: 0 | CP108: 0 | CQ108: 0 | CR108: 0 | CS108: 0 | CT108: 0 | CU108: 0 | CV108: 0 | CW108: 0 | CX108: 0 | CY108: 0 | CZ108: 0 | DA108: 0 | DB108: 0 | DC108: 0 | DD108: 0 | DE108: 0 | DF108: 0 | DG108: 0 | DH108: 0 | DI108: 0 | DJ108: 0 | DK108: 0 | DL108: 0 | DM108: 0 | DN108: 0 | DO108: 0 | DP108: 0 | DQ108: 0 | DR108: 0 | DS108: 0 | DT108: 0 | DU108: 0 | DV108: 0 | DW108: 0 | DX108: 0 | DY108: 0 | DZ108: 0 | EA108: 0 | EB108: 0 | EC108: 0 | ED108: 0 | EE108: 0 | EF108: 0 | EG108: 0 | EH108: 0 | EI108: 0 | EJ108: 0 | EK108: 0 | EL108: 0 | EM108: 0 | EN108: 0 | EO108: 0 | EP108: 0 | EQ108: 0 | ER108: 0 | ES108: 0 | ET108: 0 | EU108: 0 | EV108: 0 | EW108: 0 | EX108: 0 | EY108: 0 | EZ108: 0 | FA108: 0 | FB108: 0 | FC108: 0 | FD108: 0 | FE108: 0 | FF108: 0 | FG108: 0 | FH108: 0 | FI108: 0 | FJ108: 0 | FK108: 0 | FL108: 0 | FM108: 0 | FN108: 0 | FO108: 0 | FP108: 0 | FQ108: 0 | FR108: 0 | FS108: 0 | FT108: 0 | FU108: 0 | FV108: 0 | FW108: 0 | FX108: 0 | FY108: 0 | FZ108: 0 | GA108: 0 | GB108: 0 | GC108: 0 | GD108: 0 | GE108: 0 | GF108: 0 | GG108: 0 | GH108: 0 | GI108: 0 | GJ108: 0 | GK108: 0 | GL108: 0 | GM108: 0 | GN108: 0 | GO108: 0 | GP108: 0 | GQ108: 0 | GR108: 0 | GS108: 0 | GT108: 0 | GU108: 0 | GV108: 0 | GW108: 0 | GX108: 0 | GY108: 0 | GZ108: 0 | HA108: 0 | HB108: 0 | HC108: 0 | HD108: 0 | HE108: 0 | HF108: 0 | HG108: 0 | HH108: 0 | HI108: 0 | HJ108: 0 | HK108: 0 | HL108: 0 | HM108: 0 | HN108: 0 | HO108: 0 | HP108: 0 | HQ108: 0 | HR108: 0 | HS108: 0 | HT108: 0 | HU108: 0 | HV108: 0
A109: 10 | B109: 2 | C109: 4 | D109: 0 | E109: 0 | F109: 36 | G109: 9 | H109: 2 | I109: 36 | J109: 14 | K109: 0 | L109: 0 | M109: 14 | N109: 1 | O109: 1 | P109: 0 | Q109: 0 | R109: 0 | S109: 421 | T109: 715 | U109: 441 | V109: 662 | W109: 0 | X109: 1 | Y109: 443 | Z109: 660 | AA109: 0 | AB109: 0 | AC109: 0 | AD109: 0 | AE109: 6 | AF109: 43 | AG109: 81 | AH109: 0 | AI109: 0 | AJ109: 0 | AK109: 0 | AL109: 21 | AM109: 116 | AN109: 1 | AO109: 1 | AP109: 3 | AQ109: 4 | AR109: 1 | AS109: 0 | AT109: 0 | AU109: 0 | AV109: 0 | AW109: 0 | AX109: 0 | AY109: 0 | AZ109: 0 | BA109: 0 | BB109: 0 | BC109: 0 | BD109: 0 | BE109: 0 | BF109: 0 | BG109: 0 | BH109: 0 | BI109: 0 | BJ109: 0 | BK109: 0 | BL109: 0 | BM109: 0 | BN109: 0 | BO109: 0 | BP109: 0 | BQ109: 0 | BR109: 0 | BS109: 0 | BT109: 0 | BU109: 0 | BV109: 0 | BW109: 0 | BX109: 0 | BY109: 0 | BZ109: 534 | CA109: 2223 | CB109: 1 | CC109: 293 | CD109: 124 | CE109: 0 | CF109: 0 | CG109: 0 | CH109: 0 | CI109: 0 | CJ109: 0 | CK109: 0 | CL109: 0 | CM109: 0 | CN109: 0 | CO109: 0 | CP109: 0 | CQ109: 0 | CR109: 0 | CS109: 0 | CT109: 0 | CU109: 0 | CV109: 0 | CW109: 0 | CX109: 0 | CY109: 0 | CZ109: 0 | DA109: 0 | DB109: 0 | DC109: 0 | DD109: 0 | DE109: 0 | DF109: 0 | DG109: 0 | DH109: 0 | DI109: 0 | DJ109: 0 | DK109: 0 | DL109: 0 | DM109: 0 | DN109: 0 | DO109: 0 | DP109: 0 | DQ109: 0 | DR109: 0 | DS109: 0 | DT109: 0 | DU109: 0 | DV109: 0 | DW109: 0 | DX109: 0 | DY109: 0 | DZ109: 0 | EA109: 0 | EB109: 0 | EC109: 0 | ED109: 0 | EE109: 0 | EF109: 0 | EG109: 0 | EH109: 0 | EI109: 0 | EJ109: 0 | EK109: 0 | EL109: 0 | EM109: 0 | EN109: 0 | EO109: 0 | EP109: 0 | EQ109: 0 | ER109: 0 | ES109: 0 | ET109: 0 | EU109: 0 | EV109: 0 | EW109: 0 | EX109: 0 | EY109: 0 | EZ109: 0 | FA109: 0 | FB109: 0 | FC109: 0 | FD109: 0 | FE109: 0 | FF109: 0 | FG109: 0 | FH109: 0 | FI109: 0 | FJ109: 0 | FK109: 0 | FL109: 0 | FM109: 0 | FN109: 0 | FO109: 0 | FP109: 0 | FQ109: 0 | FR109: 0 | FS109: 0 | FT109: 0 | FU109: 0 | FV109: 0 | FW109: 0 | FX109: 0 | FY109: 0 | FZ109: 0 | GA109: 0 | GB109: 0 | GC109: 0 | GD109: 0 | GE109: 0 | GF109: 0 | GG109: 0 | GH109: 0 | GI109: 0 | GJ109: 0 | GK109: 0 | GL109: 0 | GM109: 0 | GN109: 0 | GO109: 0 | GP109: 0 | GQ109: 0 | GR109: 0 | GS109: 0 | GT109: 0 | GU109: 0 | GV109: 0 | GW109: 0 | GX109: 0 | GY109: 0 | GZ109: 0 | HA109: 0 | HB109: 0 | HC109: 0 | HD109: 0 | HE109: 0 | HF109: 0 | HG109: 0 | HH109: 0 | HI109: 0 | HJ109: 0 | HK109: 0 | HL109: 0 | HM109: 0 | HN109: 0 | HO109: 0 | HP109: 0 | HQ109: 0 | HR109: 0 | HS109: 0 | HT109: 0 | HU109: 0 | HV109: 0
A110: Total general | B110: 11 | C110: 14 | D110: 0 | E110: 1 | F110: 449 | G110: 149 | H110: 27 | I110: 491 | J110: 208 | K110: 0 | L110: 0 | M110: 191 | N110: 9 | O110: 3 | P110: 0 | Q110: 0 | R110: 0 | S110: 4736 | T110: 8010 | U110: 5238 | V110: 7196 | W110: 11 | X110: 47 | Y110: 5210 | Z110: 7136 | AA110: 0 | AB110: 0 | AC110: 0 | AD110: 0 | AE110: 159 | AF110: 447 | AG110: 792 | AH110: 0 | AI110: 0 | AJ110: 0 | AK110: 4 | AL110: 212 | AM110: 1209 | AN110: 43 | AO110: 77 | AP110: 21 | AQ110: 36 | AR110: 5 | AS110: 8 | AT110: 35 | AU110: 86 | AV110: 1 | AW110: 3 | AX110: 0 | AY110: 0 | AZ110: 0 | BA110: 0 | BB110: 0 | BC110: 0 | BD110: 0 | BE110: 0 | BF110: 0 | BG110: 0 | BH110: 0 | BI110: 0 | BJ110: 0 | BK110: 0 | BL110: 0 | BM110: 0 | BN110: 0 | BO110: 0 | BP110: 0 | BQ110: 0 | BR110: 0 | BS110: 0 | BT110: 0 | BU110: 0 | BV110: 0 | BW110: 0 | BX110: 0 | BY110: 0 | BZ110: 6133 | CA110: 18044 | CB110: 1 | CC110: 5272 | CD110: 1239 | CE110: 0 | CF110: 0 | CG110: 0 | CH110: 0 | CI110: 0 | CJ110: 0 | CK110: 0 | CL110: 0 | CM110: 0 | CN110: 0 | CO110: 0 | CP110: 0 | CQ110: 0 | CR110: 0 | CS110: 0 | CT110: 0 | CU110: 0 | CV110: 0 | CW110: 0 | CX110: 0 | CY110: 0 | CZ110: 0 | DA110: 0 | DB110: 0 | DC110: 0 | DD110: 0 | DE110: 0 | DF110: 0 | DG110: 0 | DH110: 0 | DI110: 0 | DJ110: 0 | DK110: 0 | DL110: 0 | DM110: 0 | DN110: 0 | DO110: 0 | DP110: 0 | DQ110: 0 | DR110: 0 | DS110: 0 | DT110: 0 | DU110: 0 | DV110: 0 | DW110: 0 | DX110: 0 | DY110: 0 | DZ110: 0 | EA110: 0 | EB110: 0 | EC110: 0 | ED110: 0 | EE110: 0 | EF110: 0 | EG110: 0 | EH110: 0 | EI110: 0 | EJ110: 0 | EK110: 0 | EL110: 0 | EM110: 0 | EN110: 0 | EO110: 0 | EP110: 0 | EQ110: 0 | ER110: 0 | ES110: 0 | ET110: 0 | EU110: 0 | EV110: 0 | EW110: 0 | EX110: 0 | EY110: 0 | EZ110: 0 | FA110: 0 | FB110: 0 | FC110: 0 | FD110: 0 | FE110: 0 | FF110: 0 | FG110: 0 | FH110: 0 | FI110: 0 | FJ110: 0 | FK110: 0 | FL110: 0 | FM110: 0 | FN110: 0 | FO110: 0 | FP110: 0 | FQ110: 0 | FR110: 0 | FS110: 0 | FT110: 0 | FU110: 0 | FV110: 0 | FW110: 0 | FX110: 0 | FY110: 0 | FZ110: 0 | GA110: 0 | GB110: 0 | GC110: 0 | GD110: 0 | GE110: 0 | GF110: 0 | GG110: 0 | GH110: 0 | GI110: 0 | GJ110: 0 | GK110: 0 | GL110: 0 | GM110: 0 | GN110: 0 | GO110: 0 | GP110: 0 | GQ110: 0 | GR110: 0 | GS110: 0 | GT110: 0 | GU110: 0 | GV110: 0 | GW110: 0 | GX110: 0 | GY110: 0 | GZ110: 0 | HA110: 0 | HB110: 0 | HC110: 0 | HD110: 0 | HE110: 0 | HF110: 0 | HG110: 0 | HH110: 0 | HI110: 0 | HJ110: 0 | HK110: 0 | HL110: 0 | HM110: 0 | HN110: 0 | HO110: 0 | HP110: 0 | HQ110: 0 | HR110: 0 | HS110: 0 | HT110: 0 | HU110: 0 | HV110: 0
A116: TOTAL
A117: =COUNT(A96:A114) -> 11 | B117: =SUM(B96:B114) -> 22 | C117: =SUM(C96:C114) -> 28 | D117: 0 | E117: 2 | F117: 898 | G117: 298 | H117: 54 | I117: 982 | J117: 416 | K117: 0 | L117: 0 | M117: 382 | N117: 18 | O117: 6 | P117: 0 | Q117: 0 | R117: 0 | S117: 9472 | T117: 16020 | U117: 10476 | V117: 14392 | W117: 22 | X117: 94 | Y117: 10420 | Z117: 14272 | AA117: 0 | AB117: 0 | AC117: 0 | AD117: 0 | AE117: 318 | AF117: 894 | AG117: 1584 | AH117: 0 | AI117: 0 | AJ117: 0 | AK117: 8 | AL117: 424 | AM117: 2418 | AN117: 86 | AO117: 154 | AP117: 42 | AQ117: 72 | AR117: 10 | AS117: 16 | AT117: 70 | AU117: 172 | AV117: 2 | AW117: 6 | AX117: 0 | AY117: 0 | AZ117: 0 | BA117: 0 | BB117: 0 | BC117: 0 | BD117: 0 | BE117: 0 | BF117: 0 | BG117: 0 | BH117: 0 | BI117: 0 | BJ117: 0 | BK117: 0 | BL117: 0 | BM117: 0 | BN117: 0 | BO117: =SUM(BO96:BO114) -> 0 | BP117: 0 | BQ117: 0 | BR117: 0 | BS117: 0 | BT117: 0 | BU117: 0 | BV117: 0 | BW117: 0 | BX117: 0 | BY117: 0 | BZ117: 12266 | CA117: 36088 | CB117: 2 | CC117: 10544 | CD117: 2478 | CE117: 0 | CF117: 0 | CG117: 0 | CH117: 0 | CI117: 0 | CJ117: 0 | CK117: 0 | CL117: 0 | CM117: 0 | CN117: 0 | CO117: 0 | CP117: 0 | CQ117: 0 | CR117: 0 | CS117: 0 | CT117: 0 | CU117: 0 | CV117: 0 | CW117: 0 | CX117: 0 | CY117: 0 | CZ117: 0 | DA117: 0 | DB117: 0 | DC117: 0 | DD117: 0 | DE117: 0 | DF117: 0 | DG117: 0 | DH117: 0 | DI117: 0 | DJ117: 0 | DK117: 0 | DL117: 0 | DM117: 0 | DN117: 0 | DO117: 0 | DP117: 0 | DQ117: 0 | DR117: 0 | DS117: 0 | DT117: 0 | DU117: 0 | DV117: 0 | DW117: 0 | DX117: 0 | DY117: 0 | DZ117: 0 | EA117: =SUM(EA96:EA114) -> 0 | EB117: 0 | EC117: 0 | ED117: 0 | EE117: 0 | EF117: 0 | EG117: 0 | EH117: 0 | EI117: 0 | EJ117: 0 | EK117: 0 | EL117: 0 | EM117: 0 | EN117: 0 | EO117: 0 | EP117: 0 | EQ117: 0 | ER117: 0 | ES117: 0 | ET117: 0 | EU117: 0 | EV117: 0 | EW117: 0 | EX117: 0 | EY117: 0 | EZ117: 0 | FA117: 0 | FB117: 0 | FC117: 0 | FD117: 0 | FE117: 0 | FF117: 0 | FG117: 0 | FH117: 0 | FI117: 0 | FJ117: 0 | FK117: 0 | FL117: 0 | FM117: 0 | FN117: 0 | FO117: 0 | FP117: 0 | FQ117: 0 | FR117: 0 | FS117: 0 | FT117: 0 | FU117: 0 | FV117: 0 | FW117: 0 | FX117: 0 | FY117: 0 | FZ117: 0 | GA117: 0 | GB117: 0 | GC117: 0 | GD117: 0 | GE117: 0 | GF117: 0 | GG117: 0 | GH117: 0 | GI117: 0 | GJ117: 0 | GK117: 0 | GL117: 0 | GM117: =SUM(GM96:GM114) -> 0 | GN117: 0 | GO117: 0 | GP117: 0 | GQ117: 0 | GR117: 0 | GS117: 0 | GT117: 0 | GU117: 0 | GV117: 0 | GW117: 0 | GX117: 0 | GY117: 0 | GZ117: 0 | HA117: 0 | HB117: 0 | HC117: 0 | HD117: 0 | HE117: 0 | HF117: 0 | HG117: 0 | HH117: 0 | HI117: 0 | HJ117: 0 | HK117: 0 | HL117: 0 | HM117: 0 | HN117: 0 | HO117: 0 | HP117: 0 | HQ117: 0 | HR117: 0 | HS117: 0 | HT117: 0 | HU117: 0 | HV117: 0 | HW117: 0 | HX117: 0
A118: =CONCATENATE(A99,"-",A100,"-",A101,"-",A102,"-",A103,"-",A104,"-",A105,"-",A106,"-",A107,"-",A108,"-",A109,"-",A110) -> 1-8-2-7-4-5-6-3-11-9-10-Total general
B119: BAS001 | C119: BAS002 | D119: BAS003 | E119: BAS004 | F119: BAS005 | G119: BAS006 | H119: BAS007 | I119: BAS008 | J119: BAS009 | K119: BAS010 | L119: BAS011 | M119: BAS012 | N119: BAS013 | O119: BAS014 | P119: BAS015 | Q119: BAS016 | R119: BAS017 | S119: BAS018 | T119: BAS019 | U119: BAS020 | V119: BAS021 | W119: BAS022 | X119: BAS023 | Y119: BAS024 | Z119: BAS025 | AA119: BAS026 | AB119: BAS027 | AC119: BAS028 | AD119: BAS029 | AE119: BAS030 | AF119: BAS031 | AG119: BAS032 | AH119: BAS033 | AI119: BAS034 | AJ119: BAS035 | AK119: BAS036 | AL119: BAS037 | AM119: BAS038 | AN119: BAS039 | AO119: BAS040 | AP119: BAS041 | AQ119: BAS042 | AR119: BAS043 | AS119: BAS044 | AT119: BAS045 | AU119: BAS046 | AV119: BAS047 | AW119: BAS048 | AX119: BAS049 | AY119: BAS050 | AZ119: BAS051 | BA119: BAS052 | BB119: BAS053 | BC119: BAS054 | BD119: BAS055 | BE119: BAS056 | BF119: BAS057 | BG119: BAS058 | BH119: BAS059 | BI119: BAS060 | BJ119: BAS061 | BK119: BAS062 | BL119: BAS063 | BM119: BAS064 | BN119: BAS065 | BO119: BAS066 | BP119: BAS067 | BQ119: BAS068 | BR119: BAS069 | BS119: BAS070 | BT119: BAS071 | BU119: BAS072 | BV119: BAS073 | BW119: BAS074 | BX119: BAS075 | BY119: BAS076 | BZ119: BAS077 | CA119: BAS078 | CB119: BAS079 | CC119: BAS080 | CD119: BAS081 | CE119: BAS082 | CF119: BAS083 | CG119: BAS084 | CH119: BAS085 | CI119: BAS086 | CJ119: BAS087 | CK119: BAS088 | CL119: BAS089 | CM119: BAS090 | CN119: BAS091 | CO119: BAS092 | CP119: BAS093 | CQ119: BAS094 | CR119: BAS095 | CS119: BAS096 | CT119: BAS097 | CU119: BAS098 | CV119: BAS099 | CW119: BAS100 | CX119: BAS101 | CY119: BAS102 | CZ119: BAS103 | DA119: BAS104 | DB119: BAS105 | DC119: BAS106 | DD119: BAS107 | DE119: BAS108 | DF119: BAS109 | DG119: BAS110 | DH119: BAS111 | DI119: BAS112 | DJ119: BAS113 | DK119: BAS114 | DL119: BAS115 | DM119: BAS116 | DN119: BAS117 | DO119: BAS118 | DP119: BAS119 | DQ119: BAS120 | DR119: BAS121 | DS119: BAS122 | DT119: BAS123 | DU119: BAS124 | DV119: BAS125 | DW119: BAS126 | DX119: BAS127 | DY119: BAS128 | DZ119: BAS129 | EA119: BAS130 | EB119: BAS131 | EC119: BAS132 | ED119: BAS133 | EE119: BAS134 | EF119: BAS135 | EG119: BAS136 | EH119: BAS137 | EI119: BAS138 | EJ119: BAS139 | EK119: BAS140 | EL119: BAS141 | EM119: BAS142 | EN119: BAS143 | EO119: BAS144 | EP119: BAS145 | EQ119: BAS146 | ER119: BAS147 | ES119: BAS148 | ET119: BAS149 | EU119: BAS150 | EV119: BAS151 | EW119: BAS152 | EX119: BAS153 | EY119: BAS154 | EZ119: BAS155 | FA119: BAS156 | FB119: BAS157 | FC119: BAS158 | FD119: BAS159 | FE119: BAS160 | FF119: BAS161 | FG119: BAS162 | FH119: BAS163 | FI119: BAS164 | FJ119: BAS165 | FK119: BAS166 | FL119: BAS167 | FM119: BAS168 | FN119: BAS169 | FO119: BAS170 | FP119: BAS171 | FQ119: BAS172 | FR119: BAS173 | FS119: BAS174 | FT119: BAS175 | FU119: BAS176 | FV119: BAS177 | FW119: BAS178 | FX119: BAS179 | FY119: BAS180 | FZ119: BAS181 | GA119: BAS182 | GB119: BAS183 | GC119: BAS184 | GD119: BAS185 | GE119: BAS186 | GF119: BAS187 | GG119: BAS188 | GH119: BAS189 | GI119: BAS190 | GJ119: BAS191 | GK119: BAS192 | GL119: BAS193 | GM119: BAS194 | GN119: BAS195 | GO119: BAS196 | GP119: BAS197 | GQ119: BAS198 | GR119: BAS199 | GS119: BAS200 | GT119: BAS201 | GU119: BAS202 | GV119: BAS203 | GW119: BAS204 | GX119: BAS205 | GY119: BAS206 | GZ119: BAS207 | HA119: BAS208 | HB119: BAS209 | HC119: BAS210 | HD119: BAS211 | HE119: BAS212 | HF119: BAS213 | HG119: BAS214 | HH119: BAS215 | HI119: BAS216 | HJ119: BAS217 | HK119: BAS218 | HL119: BAS219 | HM119: BAS220 | HN119: BAS221 | HO119: BAS222 | HP119: BAS223 | HQ119: BAS224 | HR119: BAS225 | HS119: BAS226 | HT119: BAS227 | HU119: BAS228 | HV119: BAS229 | HW119: BAS230
B120: =IF(B119=B98,"SI","NO") -> SI | C120: =IF(C119=C98,"SI","NO") -> SI | D120: SI | E120: SI | F120: SI | G120: SI | H120: SI | I120: SI | J120: SI | K120: SI | L120: SI | M120: SI | N120: SI | O120: SI | P120: SI | Q120: SI | R120: SI | S120: SI | T120: SI | U120: SI | V120: SI | W120: SI | X120: SI | Y120: SI | Z120: SI | AA120: SI | AB120: SI | AC120: SI | AD120: SI | AE120: SI | AF120: NO | AG120: NO | AH120: NO | AI120: NO | AJ120: NO | AK120: NO | AL120: NO | AM120: NO | AN120: NO | AO120: NO | AP120: NO | AQ120: NO | AR120: NO | AS120: NO | AT120: NO | AU120: NO | AV120: NO | AW120: NO | AX120: NO | AY120: NO | AZ120: NO | BA120: NO | BB120: NO | BC120: NO | BD120: NO | BE120: NO | BF120: NO | BG120: NO | BH120: NO | BI120: NO | BJ120: NO | BK120: NO | BL120: NO | BM120: NO | BN120: NO | BO120: =IF(BO119=BO98,"SI","NO") -> NO | BP120: NO | BQ120: NO | BR120: NO | BS120: NO | BT120: NO | BU120: NO | BV120: NO | BW120: NO | BX120: NO | BY120: NO | BZ120: NO | CA120: NO | CB120: NO | CC120: NO | CD120: NO | CE120: NO | CF120: NO | CG120: NO | CH120: NO | CI120: NO | CJ120: NO | CK120: NO | CL120: NO | CM120: NO | CN120: NO | CO120: NO | CP120: NO | CQ120: NO | CR120: NO | CS120: NO | CT120: NO | CU120: NO | CV120: NO | CW120: NO | CX120: NO | CY120: NO | CZ120: NO | DA120: NO | DB120: NO | DC120: NO | DD120: NO | DE120: NO | DF120: NO | DG120: NO | DH120: NO | DI120: NO | DJ120: NO | DK120: NO | DL120: NO | DM120: NO | DN120: NO | DO120: NO | DP120: NO | DQ120: NO | DR120: NO | DS120: NO | DT120: NO | DU120: NO | DV120: NO | DW120: NO | DX120: NO | DY120: NO | DZ120: NO | EA120: =IF(EA119=EA98,"SI","NO") -> NO | EB120: NO | EC120: NO | ED120: NO | EE120: NO | EF120: NO | EG120: NO | EH120: NO | EI120: NO | EJ120: NO | EK120: NO | EL120: NO | EM120: NO | EN120: NO | EO120: NO | EP120: NO | EQ120: NO | ER120: NO | ES120: NO | ET120: NO | EU120: NO | EV120: NO | EW120: NO | EX120: NO | EY120: NO | EZ120: NO | FA120: NO | FB120: NO | FC120: NO | FD120: NO | FE120: NO | FF120: NO | FG120: NO | FH120: NO | FI120: NO | FJ120: NO | FK120: NO | FL120: NO | FM120: NO | FN120: NO | FO120: NO | FP120: NO | FQ120: NO | FR120: NO | FS120: NO | FT120: NO | FU120: NO | FV120: NO | FW120: NO | FX120: NO | FY120: NO | FZ120: NO | GA120: NO | GB120: NO | GC120: NO | GD120: NO | GE120: NO | GF120: NO | GG120: NO | GH120: NO | GI120: NO | GJ120: NO | GK120: NO | GL120: NO | GM120: =IF(GM119=GM98,"SI","NO") -> NO | GN120: NO | GO120: NO | GP120: NO | GQ120: NO | GR120: NO | GS120: NO | GT120: NO | GU120: NO | GV120: NO | GW120: NO | GX120: NO | GY120: NO | GZ120: NO | HA120: NO | HB120: NO | HC120: NO | HD120: NO | HE120: NO | HF120: NO | HG120: NO | HH120: NO | HI120: NO | HJ120: NO | HK120: NO | HL120: NO | HM120: NO | HN120: NO | HO120: NO | HP120: NO | HQ120: NO | HR120: NO | HS120: NO | HT120: NO | HU120: NO | HV120: NO | HW120: NO

Sheet INFORME
A1: GERENCIA REGIONAL DE SALUD CUSCO
A2: DIRECCION DE ESTADISTICA, INFORMATICA Y TELECOMUNICACIONES
A4: Reporte de Actividades de la Etapa de Vida Adulto
B6: DIRESA: | C6: CUSCO | E6: RED DE SALUD | F6: =+TABLAS!O9 -> 03 - LA CONVENCION | K6: =+TABLAS!N26 -> ENE - NOV
E8: MICRO RED | F8: =+TABLAS!O10 ->  | I8: MES: | J8: =+TABLAS!N26 -> ENE - NOV | K8: =+TABLAS!J16 -> 2024 | R8: =+IMPORTARDATOSDINAMICOS(" BAS
E10: PROVINCIA | F10: =+TABLAS!O12 ->  | I10: AÑO: | J10: =+TABLAS!J16 -> 2024 | R10: ";TABLAS!$A$59)
B12: EE.SS.: | C12: =+TABLAS!O11 ->  | E12: DISTRITO | F12: =+TABLAS!O13 -> 
B15: MORBILIDAD DEL ADULTO | E15: usp_TRAMA_BASE_ADULTO_RPT_01_MORBILIDAD
B16: CIE10 | C16: DIAGNÓSTICOS | H16: 30a-59a
H17: Masculino | I17: Femenino | J17: TOTAL
B18: A64 | C18: ENFERMEDAD DE TRANSMISION SEXUAL NO ESPECIFICADA | H18: =+GETPIVOTDATA(" BAS001",TABLAS!$A$59) -> 10 | I18: =+GETPIVOTDATA(" BAS002",TABLAS!$A$59) -> 1634 | J18: =SUM(H18:I18) -> 1644 | K18: A64 / D + EDAD >=30 Y <=59 | R18: =CONCATENATE($R$8,AE18,$R$10) -> =+IMPORTARDATOSDINAMICOS(" BAS001";TABLAS!$A$59) | S18: =CONCATENATE($R$8,AF18,$R$10) -> =+IMPORTARDATOSDINAMICOS(" BAS002";TABLAS!$A$59) | AB18: 1 | AC18: 2 | AE18: =IF(AB18<10,CONCATENATE("00",AB18),IF(AB18<100,CONCATENATE("0",AB18),AB18)) -> 001 | AF18: =IF(AC18<10,CONCATENATE("00",AC18),IF(AC18<100,CONCATENATE("0",AC18),AC18)) -> 002
B19: E66 | C19: OBESIDAD | H19: =+GETPIVOTDATA(" BAS003",TABLAS!$A$59) -> 858 | I19: =+GETPIVOTDATA(" BAS004",TABLAS!$A$59) -> 3054 | J19: =SUM(H19:I19) -> 3912 | K19: E66 /D + EDAD >=30 Y <=59 | R19: =CONCATENATE($R$8,AE19,$R$10) -> =+IMPORTARDATOSDINAMICOS(" BAS003";TABLAS!$A$59) | S19: =CONCATENATE($R$8,AF19,$R$10) -> =+IMPORTARDATOSDINAMICOS(" BAS004";TABLAS!$A$59) | AB19: =+AC18+1 -> 3 | AC19: =+AB19+1 -> 4 | AE19: =IF(AB19<10,CONCATENATE("00",AB19),IF(AB19<100,CONCATENATE("0",AB19),AB19)) -> 003 | AF19: =IF(AC19<10,CONCATENATE("00",AC19),IF(AC19<100,CONCATENATE("0",AC19),AC19)) -> 004
B20: J00 | C20: RINOFARINGITIS AGUDA [RESFRIADO COMUN] | H20: =+GETPIVOTDATA(" BAS005",TABLAS!$A$59) -> 782 | I20: =+GETPIVOTDATA(" BAS006",TABLAS!$A$59) -> 1391 | J20: 2173 | K20: J00 /D + EDAD >=30 Y <=59 | R20: =+IMPORTARDATOSDINAMICOS(" BAS005";TABLAS!$A$59) | S20: =+IMPORTARDATOSDINAMICOS(" BAS006";TABLAS!$A$59) | AB20: =+AC19+1 -> 5 | AC20: =+AB20+1 -> 6 | AE20: 005 | AF20: 006
B21: J02 | C21: FARINGITIS AGUDA | H21: =+GETPIVOTDATA(" BAS007",TABLAS!$A$59) -> 2265 | I21: =+GETPIVOTDATA(" BAS008",TABLAS!$A$59) -> 3774 | J21: 6039 | K21: J02 /D + EDAD >=30 Y <=59 | R21: =+IMPORTARDATOSDINAMICOS(" BAS007";TABLAS!$A$59) | S21: =+IMPORTARDATOSDINAMICOS(" BAS008";TABLAS!$A$59) | AB21: 7 | AC21: 8 | AE21: 007 | AF21: 008
B22: J06 | C22: INFECCIONES AGUDAS DE LAS VIAS RESPIRATORIAS SUPERIORES, DE SITIOS MUL | H22: =+GETPIVOTDATA(" BAS009",TABLAS!$A$59) -> 301 | I22: =+GETPIVOTDATA(" BAS010",TABLAS!$A$59) -> 486 | J22: 787 | K22: J06 /D + EDAD >=30 Y <=59 | R22: =+IMPORTARDATOSDINAMICOS(" BAS009";TABLAS!$A$59) | S22: =+IMPORTARDATOSDINAMICOS(" BAS010";TABLAS!$A$59) | AB22: 9 | AC22: 10 | AE22: 009 | AF22: 010
B23: K02 | C23: CARIES DENTAL | H23: =+GETPIVOTDATA(" BAS011",TABLAS!$A$59) -> 870 | I23: =+GETPIVOTDATA(" BAS012",TABLAS!$A$59) -> 2391 | J23: 3261 | K23: K02 /D + EDAD >=30 Y <=59 | R23: =+IMPORTARDATOSDINAMICOS(" BAS011";TABLAS!$A$59) | S23: =+IMPORTARDATOSDINAMICOS(" BAS012";TABLAS!$A$59) | AB23: 11 | AC23: 12 | AE23: 011 | AF23: 012
B24: K04 | C24: ENFERMEDADES DE LA PULPA Y DE LOS TEJIDOS PERIAPICALES | H24: =+GETPIVOTDATA(" BAS013",TABLAS!$A$59) -> 678 | I24: =+GETPIVOTDATA(" BAS014",TABLAS!$A$59) -> 1395 | J24: 2073 | K24: K04 /D + EDAD >=30 Y <=59 | R24: =+IMPORTARDATOSDINAMICOS(" BAS013";TABLAS!$A$59) | S24: =+IMPORTARDATOSDINAMICOS(" BAS014";TABLAS!$A$59) | AB24: 13 | AC24: 14 | AE24: 013 | AF24: 014
B25: K29 | C25: GASTRITIS Y DUODENITIS | H25: =+GETPIVOTDATA(" BAS015",TABLAS!$A$59) -> 979 | I25: =+GETPIVOTDATA(" BAS016",TABLAS!$A$59) -> 2051 | J25: 3030 | K25: K29 /D + EDAD >=30 Y <=59 | R25: =+IMPORTARDATOSDINAMICOS(" BAS015";TABLAS!$A$59) | S25: =+IMPORTARDATOSDINAMICOS(" BAS016";TABLAS!$A$59) | AB25: 15 | AC25: 16 | AE25: 015 | AF25: 016
B26: M54 | C26: DORSALGIA | H26: =+GETPIVOTDATA(" BAS017",TABLAS!$A$59) -> 2345 | I26: =+GETPIVOTDATA(" BAS018",TABLAS!$A$59) -> 3543 | J26: 5888 | K26: M54 /D + EDAD >=30 Y <=59 | R26: =+IMPORTARDATOSDINAMICOS(" BAS017";TABLAS!$A$59) | S26: =+IMPORTARDATOSDINAMICOS(" BAS018";TABLAS!$A$59) | AB26: 17 | AC26: 18 | AE26: 017 | AF26: 018
B27: N39 | C27: OTROS TRASTORNOS DEL SISTEMA URINARIO | H27: =+GETPIVOTDATA(" BAS019",TABLAS!$A$59) -> 835 | I27: =+GETPIVOTDATA(" BAS020",TABLAS!$A$59) -> 4896 | J27: 5731 | K27: N39 /D + EDAD >=30 Y <=59 | R27: =+IMPORTARDATOSDINAMICOS(" BAS019";TABLAS!$A$59) | S27: =+IMPORTARDATOSDINAMICOS(" BAS020";TABLAS!$A$59) | AB27: 19 | AC27: 20 | AE27: 019 | AF27: 020
B29: PLAN DE ATENCION INTEGRAL DEL ADULTO | F29: usp_TRAMA_BASE_ADULTO_RPT_02_PAI
H30: Masculino | I30: Femenino | J30: TOTAL
B31: Plan de Atención Integral | C31: Elaborado | H31: =+GETPIVOTDATA(" BAS021",TABLAS!$A$59) -> 92 | I31: =+GETPIVOTDATA(" BAS022",TABLAS!$A$59) -> 191 | J31: =SUM(H31:I31) -> 283 | K31: C8002 + LAB=1 + EDAD >=30 Y <=59 | R31: =CONCATENATE($R$8,AE31,$R$10) -> =+IMPORTARDATOSDINAMICOS(" BAS021";TABLAS!$A$59) | S31: =CONCATENATE($R$8,AF31,$R$10) -> =+IMPORTARDATOSDINAMICOS(" BAS022";TABLAS!$A$59) | AB31: =+AC27+1 -> 21 | AC31: 22 | AE31: =IF(AB31<10,CONCATENATE("00",AB31),IF(AB31<100,CONCATENATE("0",AB31),AB31)) -> 021 | AF31: =IF(AC31<10,CONCATENATE("00",AC31),IF(AC31<100,CONCATENATE("0",AC31),AC31)) -> 022
C32: Ejecutado | H32: =+GETPIVOTDATA(" BAS023",TABLAS!$A$59) -> 10 | I32: =+GETPIVOTDATA(" BAS024",TABLAS!$A$59) -> 12 | J32: =SUM(H32:I32) -> 22 | K32: C8002 + LAB=TA + EDAD >=30 Y <=59 | R32: =+IMPORTARDATOSDINAMICOS(" BAS023";TABLAS!$A$59) | S32: =+IMPORTARDATOSDINAMICOS(" BAS024";TABLAS!$A$59) | AB32: 23 | AC32: 24 | AE32: 023 | AF32: 024
B35: EVALUACIÓN ANTROPOMETRICA | E35: usp_TRAMA_BASE_ADULTO_RPT_03_EVAL_ANTROPOMETRICA
B36: Índice de Masa Corporal (IMC) | H36: Masculino | I36: Femenino | J36: TOTAL
B37: E46X3 | C37: Delgadez III | H37: =+GETPIVOTDATA(" BAS025",TABLAS!$A$59) -> 0 | I37: =+GETPIVOTDATA(" BAS026",TABLAS!$A$59) -> 1 | J37: =SUM(H37:I37) -> 1 | K37: (Td=D + Dx=E46X3 + Lab=IMC) | R37: =+IMPORTARDATOSDINAMICOS(" BAS025";TABLAS!$A$59) | S37: =+IMPORTARDATOSDINAMICOS(" BAS026";TABLAS!$A$59) | AB37: =+AC32+1 -> 25 | AC37: 26 | AE37: 025 | AF37: 026
B38: E46X2 | C38: Delgadez II | H38: =+GETPIVOTDATA(" BAS027",TABLAS!$A$59) -> 0 | I38: =+GETPIVOTDATA(" BAS028",TABLAS!$A$59) -> 0 | J38: 0 | K38: (Td=D + Dx=E46X2 + Lab=IMC) | R38: =+IMPORTARDATOSDINAMICOS(" BAS027";TABLAS!$A$59) | S38: =+IMPORTARDATOSDINAMICOS(" BAS028";TABLAS!$A$59) | AB38: 27 | AC38: 28 | AE38: 027 | AF38: 028
B39: E46X1 | C39: Delgadez I | H39: =+GETPIVOTDATA(" BAS029",TABLAS!$A$59) -> 1 | I39: =+GETPIVOTDATA(" BAS030",TABLAS!$A$59) -> 1 | J39: 2 | K39: (Td=D + Dx=E46X1 + Lab=IMC) | R39: =+IMPORTARDATOSDINAMICOS(" BAS029";TABLAS!$A$59) | S39: =+IMPORTARDATOSDINAMICOS(" BAS030";TABLAS!$A$59) | AB39: 29 | AC39: 30 | AE39: 029 | AF39: 030
B40: Z006 | C40: Normal | H40: =+GETPIVOTDATA(" BAS031",TABLAS!$A$59) -> 112 | I40: =+GETPIVOTDATA(" BAS032",TABLAS!$A$59) -> 530 | J40: 642 | K40: (Td=D + Dx=Z006 + Lab=IMC) | R40: =+IMPORTARDATOSDINAMICOS(" BAS031";TABLAS!$A$59) | S40: =+IMPORTARDATOSDINAMICOS(" BAS032";TABLAS!$A$59) | AB40: 31 | AC40: 32 | AE40: 031 | AF40: 032
B41: E660 | C41: Sobrepeso | H41: =+GETPIVOTDATA(" BAS033",TABLAS!$A$59) -> 103 | I41: =+GETPIVOTDATA(" BAS034",TABLAS!$A$59) -> 418 | J41: 521 | K41: (Td=D + Dx=E660 + Lab=IMC) | R41: =+IMPORTARDATOSDINAMICOS(" BAS033";TABLAS!$A$59) | S41: =+IMPORTARDATOSDINAMICOS(" BAS034";TABLAS!$A$59) | AB41: 33 | AC41: 34 | AE41: 033 | AF41: 034
B42: E669 | C42: Obesidad I | H42: =+GETPIVOTDATA(" BAS035",TABLAS!$A$59) -> 53 | I42: =+GETPIVOTDATA(" BAS036",TABLAS!$A$59) -> 360 | J42: 413 | K42: (Td=D + Dx=E669 + Lab=IMC) | R42: =+IMPORTARDATOSDINAMICOS(" BAS035";TABLAS!$A$59) | S42: =+IMPORTARDATOSDINAMICOS(" BAS036";TABLAS!$A$59) | AB42: 35 | AC42: 36 | AE42: 035 | AF42: 036
B43: E6692 | C43: Obesidad II | H43: =+GETPIVOTDATA(" BAS037",TABLAS!$A$59) -> 3 | I43: =+GETPIVOTDATA(" BAS038",TABLAS!$A$59) -> 16 | J43: 19 | K43: (Td=D + Dx=E6692 + Lab=IMC) | R43: =+IMPORTARDATOSDINAMICOS(" BAS037";TABLAS!$A$59) | S43: =+IMPORTARDATOSDINAMICOS(" BAS038";TABLAS!$A$59) | AB43: 37 | AC43: 38 | AE43: 037 | AF43: 038
B44: E6693 | C44: Obesidad III | H44: =+GETPIVOTDATA(" BAS039",TABLAS!$A$59) -> 0 | I44: =+GETPIVOTDATA(" BAS040",TABLAS!$A$59) -> 14 | J44: 14 | K44: (Td=D + Dx=E6693 + Lab=IMC) | R44: =+IMPORTARDATOSDINAMICOS(" BAS039";TABLAS!$A$59) | S44: =+IMPORTARDATOSDINAMICOS(" BAS040";TABLAS!$A$59) | AB44: 39 | AC44: 40 | AE44: 039 | AF44: 040
B46: RIESGO NUTRICIONAL | E46: usp_TRAMA_BASE_ADULTO_RPT_04_RIESGO_NUT
B47: Evaluación del Perímetro Abdominal (PAB) | H47: Masculino | I47: Femenino | J47: TOTAL
C48: Riesgo bajo | H48: =+GETPIVOTDATA(" BAS041",TABLAS!$A$59) -> 67 | I48: =+GETPIVOTDATA(" BAS042",TABLAS!$A$59) -> 89 | J48: =SUM(H48:I48) -> 156 | K48: (Td=D + Dx=U8170 + Lab=RSM) | N48: NORMAL Y ANORMAL | R48: =+IMPORTARDATOSDINAMICOS(" BAS041";TABLAS!$A$59) | S48: =+IMPORTARDATOSDINAMICOS(" BAS042";TABLAS!$A$59) | AB48: =+AC44+1 -> 41 | AC48: 42 | AE48: 041 | AF48: 042
C49: Riesgo Alto | H49: =+GETPIVOTDATA(" BAS043",TABLAS!$A$59) -> 56 | I49: =+GETPIVOTDATA(" BAS044",TABLAS!$A$59) -> 107 | J49: 163 | K49: (Td=D + Dx=U8170 + Lab=RSA) | R49: =+IMPORTARDATOSDINAMICOS(" BAS043";TABLAS!$A$59) | S49: =+IMPORTARDATOSDINAMICOS(" BAS044";TABLAS!$A$59) | AB49: 43 | AC49: 44 | AE49: 043 | AF49: 044
C50: Riesgo Muy Alto | H50: =+GETPIVOTDATA(" BAS045",TABLAS!$A$59) -> 54 | I50: =+GETPIVOTDATA(" BAS046",TABLAS!$A$59) -> 0 | J50: 54 | K50: (Td=D + Dx=U8170 + Lab=RMA) | R50: =+IMPORTARDATOSDINAMICOS(" BAS045";TABLAS!$A$59) | S50: =+IMPORTARDATOSDINAMICOS(" BAS046";TABLAS!$A$59) | AB50: 45 | AC50: 46 | AE50: 045 | AF50: 046
B52: Evaluación del Perímetro Abdominal (PAB) | H52: Masculino | I52: Femenino | J52: TOTAL
C53: Normal | H53: =+GETPIVOTDATA(" BAS047",TABLAS!$A$59) -> 0 | I53: =+GETPIVOTDATA(" BAS048",TABLAS!$A$59) -> 3 | J53: =SUM(H53:I53) -> 3 | K53: (Td=D + Dx=U8170 + Lab=N) | N53: NORMAL Y ANORMAL | R53: =+IMPORTARDATOSDINAMICOS(" BAS047";TABLAS!$A$59) | S53: =+IMPORTARDATOSDINAMICOS(" BAS048";TABLAS!$A$59) | AB53: =+AC50+1 -> 47 | AC53: 48 | AE53: 047 | AF53: 048
C54: Anormal | H54: =+GETPIVOTDATA(" BAS049",TABLAS!$A$59) -> 0 | I54: =+GETPIVOTDATA(" BAS050",TABLAS!$A$59) -> 0 | J54: 0 | K54: (Td=D + Dx=U8170 + Lab=A) | R54: =+IMPORTARDATOSDINAMICOS(" BAS049";TABLAS!$A$59) | S54: =+IMPORTARDATOSDINAMICOS(" BAS050";TABLAS!$A$59) | AB54: 49 | AC54: 50 | AE54: 049 | AF54: 050
B56: DAÑOS NO TRANSMISIBLES | E56: usp_TRAMA_BASE_ADULTO_RPT_05_1_DNT_VALORACION
B57: Clasificación | H57: Masculino | I57: Femenino | J57: TOTAL
C58: Valoración clínica sin factores de riesgo | H58: =+GETPIVOTDATA(" BAS051",TABLAS!$A$59) -> 36 | I58: =+GETPIVOTDATA(" BAS052",TABLAS!$A$59) -> 73 | J58: =SUM(H58:I58) -> 109 | K58: Td=D + Dx=Z019 + Lab=DNT, Td=D+ Dx=Z006 | R58: =+IMPORTARDATOSDINAMICOS(" BAS051";TABLAS!$A$59) | S58: =+IMPORTARDATOSDINAMICOS(" BAS052";TABLAS!$A$59) | AB58: =+AC54+1 -> 51 | AC58: 52 | AE58: 051 | AF58: 052
C59: Valoración clínica con factores de riesgo | H59: =+GETPIVOTDATA(" BAS053",TABLAS!$A$59) -> 647 | I59: =+GETPIVOTDATA(" BAS054",TABLAS!$A$59) -> 1871 | J59: 2518 | K59: Td=D + Dx=Z019 + Lab=DNT, Td=D+ Cualquier Dx=(E65X, E66.-, Z720,Z721,Z723, Z724, Z883,Z834) | R59: =+IMPORTARDATOSDINAMICOS(" BAS053";TABLAS!$A$59) | S59: =+IMPORTARDATOSDINAMICOS(" BAS054";TABLAS!$A$59) | AB59: 53 | AC59: 54 | AE59: 053 | AF59: 054
C60: Valoración Clínica y tamizaje de laboratorio | H60: =+GETPIVOTDATA(" BAS055",TABLAS!$A$59) -> 0 | I60: =+GETPIVOTDATA(" BAS056",TABLAS!$A$59) -> 0 | J60: 0 | K60: TD=D + Dx=(U262 + Lab=DNT) | R60: =+IMPORTARDATOSDINAMICOS(" BAS055";TABLAS!$A$59) | S60: =+IMPORTARDATOSDINAMICOS(" BAS056";TABLAS!$A$59) | AB60: 55 | AC60: 56 | AE60: 055 | AF60: 056
E62: usp_TRAMA_BASE_ADULTO_RPT_05_2_DNT_HTA
B63: Casos diagnosticados HTA | H63: Masculino | I63: Femenino | J63: TOTAL
C64: Hipertensión esencial (primaria) | H64: =+GETPIVOTDATA(" BAS057",TABLAS!$A$59) -> 69 | I64: =+GETPIVOTDATA(" BAS058",TABLAS!$A$59) -> 83 | J64: =SUM(H64:I64) -> 152 | K64: (Td=D + Dx= I10X) | R64: =+IMPORTARDATOSDINAMICOS(" BAS057";TABLAS!$A$59) | S64: =+IMPORTARDATOSDINAMICOS(" BAS058";TABLAS!$A$59) | AB64: =+AC60+1 -> 57 | AC64: 58 | AE64: 057 | AF64: 058
C65: Retinopatía hipertensiva | H65: =+GETPIVOTDATA(" BAS059",TABLAS!$A$59) -> 5 | I65: =+GETPIVOTDATA(" BAS060",TABLAS!$A$59) -> 2 | J65: 7 | K65: (Td=D + Dx= H350) | R65: =+IMPORTARDATOSDINAMICOS(" BAS059";TABLAS!$A$59) | S65: =+IMPORTARDATOSDINAMICOS(" BAS060";TABLAS!$A$59) | AB65: 59 | AC65: 60 | AE65: 059 | AF65: 060
C66: Nefropatía hipertensiva | H66: =+GETPIVOTDATA(" BAS061",TABLAS!$A$59) -> 0 | I66: =+GETPIVOTDATA(" BAS062",TABLAS!$A$59) -> 0 | J66: 0 | K66: (Td=D + Dx= I120 + I129) | R66: =+IMPORTARDATOSDINAMICOS(" BAS061";TABLAS!$A$59) | S66: =+IMPORTARDATOSDINAMICOS(" BAS062";TABLAS!$A$59) | AB66: 61 | AC66: 62 | AE66: 061 | AF66: 062
E68: usp_TRAMA_BASE_ADULTO_RPT_05_3_DNT_DM
B69: Casos diagnosticados Diabetes Mellitus | H69: Masculino | I69: Femenino | J69: TOTAL
C70: Diabetes mellitus tipo 1 | H70: =+GETPIVOTDATA(" BAS063",TABLAS!$A$59) -> 5 | I70: =+GETPIVOTDATA(" BAS064",TABLAS!$A$59) -> 4 | J70: =SUM(H70:I70) -> 9 | K70: (Td= D + Dx= (E100, E101, …E109) | R70: =+IMPORTARDATOSDINAMICOS(" BAS063";TABLAS!$A$59) | S70: =+IMPORTARDATOSDINAMICOS(" BAS064";TABLAS!$A$59) | AB70: =+AC66+1 -> 63 | AC70: 64 | AE70: 063 | AF70: 064
C71: Diabetes mellitus tipo 2 | H71: =+GETPIVOTDATA(" BAS065",TABLAS!$A$59) -> 52 | I71: =+GETPIVOTDATA(" BAS066",TABLAS!$A$59) -> 95 | J71: 147 | K71: (Td= D + Dx= (E110, E111, …E119) | R71: =+IMPORTARDATOSDINAMICOS(" BAS065";TABLAS!$A$59) | S71: =+IMPORTARDATOSDINAMICOS(" BAS066";TABLAS!$A$59) | AB71: 65 | AC71: 66 | AE71: 065 | AF71: 066
C72: Diabetes mellitus en el embarazo | H72: =+GETPIVOTDATA(" BAS067",TABLAS!$A$59) -> 0 | I72: =+GETPIVOTDATA(" BAS068",TABLAS!$A$59) -> 18 | J72: 18 | K72: (Td= D + Dx= (O240, O241, O242…O249) | R72: =+IMPORTARDATOSDINAMICOS(" BAS067";TABLAS!$A$59) | S72: =+IMPORTARDATOSDINAMICOS(" BAS068";TABLAS!$A$59) | AB72: 67 | AC72: 68 | AE72: 067 | AF72: 068
C73: Otras diabetes mellitus | H73: =+GETPIVOTDATA(" BAS069",TABLAS!$A$59) -> 0 | I73: =+GETPIVOTDATA(" BAS070",TABLAS!$A$59) -> 29 | J73: 29 | K73: (Td= D + Dx= (E12.-, E13.-, E14.-) | R73: =+IMPORTARDATOSDINAMICOS(" BAS069";TABLAS!$A$59) | S73: =+IMPORTARDATOSDINAMICOS(" BAS070";TABLAS!$A$59) | AB73: 69 | AC73: 70 | AE73: 069 | AF73: 070
C74: Nefropatia diabética | H74: =+GETPIVOTDATA(" BAS071",TABLAS!$A$59) -> 1 | I74: =+GETPIVOTDATA(" BAS072",TABLAS!$A$59) -> 1 | J74: 2 | K74: (Td= D + Dx= (E112, E112, E122, E132, E142) | R74: =+IMPORTARDATOSDINAMICOS(" BAS071";TABLAS!$A$59) | S74: =+IMPORTARDATOSDINAMICOS(" BAS072";TABLAS!$A$59) | AB74: 71 | AC74: 72 | AE74: 071 | AF74: 072
C75: Retinopatía diabética | H75: =+GETPIVOTDATA(" BAS073",TABLAS!$A$59) -> 0 | I75: =+GETPIVOTDATA(" BAS074",TABLAS!$A$59) -> 1 | J75: 1 | K75: (Td= D + Dx= (E103, E113, E123, E133, E143) | R75: =+IMPORTARDATOSDINAMICOS(" BAS073";TABLAS!$A$59) | S75: =+IMPORTARDATOSDINAMICOS(" BAS074";TABLAS!$A$59) | AB75: 73 | AC75: 74 | AE75: 073 | AF75: 074
B77: PLANIFICACION FAMILIAR | E77: usp_TRAMA_BASE_ADULTO_RPT_06_1_PF_CLASIF
B78: Clasificación | H78: Masculino | I78: Femenino | J78: TOTAL
C79: Consejería/Orientación en Planificación Familiar | G79: 1° Sesión | H79: =+GETPIVOTDATA(" BAS075",TABLAS!$A$59) -> 634 | I79: =+GETPIVOTDATA(" BAS076",TABLAS!$A$59) -> 6039 | J79: =SUM(H79:I79) -> 6673 | K79: (Td=D + Dx=99402.04 + Lab=1) | R79: =+IMPORTARDATOSDINAMICOS(" BAS075";TABLAS!$A$59) | S79: =+IMPORTARDATOSDINAMICOS(" BAS076";TABLAS!$A$59) | AB79: =+AC75+1 -> 75 | AC79: =+AB79+1 -> 76 | AE79: 075 | AF79: 076
G80: 2° Sesión | H80: =+GETPIVOTDATA(" BAS077",TABLAS!$A$59) -> 166 | I80: =+GETPIVOTDATA(" BAS078",TABLAS!$A$59) -> 3227 | J80: 3393 | K80: (Td=D + Dx=99402.04 + Lab=2) | R80: =+IMPORTARDATOSDINAMICOS(" BAS077";TABLAS!$A$59) | S80: =+IMPORTARDATOSDINAMICOS(" BAS078";TABLAS!$A$59) | AB80: =+AC79+1 -> 77 | AC80: 78 | AE80: 077 | AF80: 078
C81: Consejería/Orientación en Salud Sexual y Reproductiva | G81: 1° Sesión | H81: =+GETPIVOTDATA(" BAS079",TABLAS!$A$59) -> 6 | I81: =+GETPIVOTDATA(" BAS080",TABLAS!$A$59) -> 601 | J81: 607 | K81: (Td=D + Dx=99402.03 + Lab=1) | R81: =+IMPORTARDATOSDINAMICOS(" BAS079";TABLAS!$A$59) | S81: =+IMPORTARDATOSDINAMICOS(" BAS080";TABLAS!$A$59) | AB81: 79 | AC81: 80 | AE81: 079 | AF81: 080
G82: 2° Sesión | H82: =+GETPIVOTDATA(" BAS081",TABLAS!$A$59) -> 1 | I82: =+GETPIVOTDATA(" BAS082",TABLAS!$A$59) -> 490 | J82: 491 | K82: (Td=D + Dx=99402.03 + Lab=2) | R82: =+IMPORTARDATOSDINAMICOS(" BAS081";TABLAS!$A$59) | S82: =+IMPORTARDATOSDINAMICOS(" BAS082";TABLAS!$A$59) | AB82: 81 | AC82: 82 | AE82: 081 | AF82: 082
C83: Consejería/Orientación en perimenopausia, menopausia y Climaterio | G83: 1° Sesión | H83: =+GETPIVOTDATA(" BAS083",TABLAS!$A$59) -> 0 | I83: =+GETPIVOTDATA(" BAS084",TABLAS!$A$59) -> 2 | J83: 2 | K83: (Td=D + Dx=99402.06 + Lab=1) | R83: =+IMPORTARDATOSDINAMICOS(" BAS083";TABLAS!$A$59) | S83: =+IMPORTARDATOSDINAMICOS(" BAS084";TABLAS!$A$59) | AB83: 83 | AC83: 84 | AE83: 083 | AF83: 084
G84: 2° Sesión | H84: =+GETPIVOTDATA(" BAS085",TABLAS!$A$59) -> 0 | I84: =+GETPIVOTDATA(" BAS086",TABLAS!$A$59) -> 1 | J84: 1 | K84: (Td=D + Dx=99402.06 + Lab=2) | R84: =CONCATENATE($R$8,AE84,$R$10) -> =+IMPORTARDATOSDINAMICOS(" BAS085";TABLAS!$A$59) | S84: =CONCATENATE($R$8,AF84,$R$10) -> =+IMPORTARDATOSDINAMICOS(" BAS086";TABLAS!$A$59) | AB84: 85 | AC84: 86 | AE84: =IF(AB84<10,CONCATENATE("00",AB84),IF(AB84<100,CONCATENATE("0",AB84),AB84)) -> 085 | AF84: =IF(AC84<10,CONCATENATE("00",AC84),IF(AC84<100,CONCATENATE("0",AC84),AC84)) -> 086
E86: usp_TRAMA_BASE_ADULTO_RPT_06_2_PF_METODOS
B87: Método de planificación familiar en Adultos | G87: Activ. (A) | H87: TIPO DE USUARIAS (30a-59a)
G88: Insumo (I) | H88: Nuevas | I88: Continuadoras | K88: Nuevas | L88: Continuadoras | M88: Nuevas | N88: Continuadoras
C89: DIU | G89: A | H89: =+GETPIVOTDATA(" BAS087",TABLAS!$A$59) -> 27 | I89: =+GETPIVOTDATA(" BAS088",TABLAS!$A$59) -> 18 | K89: TD=D+DX=58300 | L89: TD=D+DX=Z305 | M89: TD=D+DX=58300 | R89: =+IMPORTARDATOSDINAMICOS(" BAS087";TABLAS!$A$59) | S89: =+IMPORTARDATOSDINAMICOS(" BAS088";TABLAS!$A$59) | AB89: =+AC84+1 -> 87 | AC89: 88 | AE89: 087 | AF89: 088
G90: I | H90: =+GETPIVOTDATA(" BAS089",TABLAS!$A$59) -> 24 | I90: =+GETPIVOTDATA(" BAS090",TABLAS!$A$59) -> 1 | K90: SUMAR 1º LAB DE TD=D+DX=58300 | L90: SUMAR 2º LAB DE TD=D+DX=Z305 | M90: SUMAR 1º LAB DE TD=D+DX=58300 | R90: =+IMPORTARDATOSDINAMICOS(" BAS089";TABLAS!$A$59) | S90: =+IMPORTARDATOSDINAMICOS(" BAS090";TABLAS!$A$59) | AB90: 89 | AC90: 90 | AE90: 089 | AF90: 090
C91: HORMONAL | D91: ORAL COMBINADO | G91: A | H91: =+GETPIVOTDATA(" BAS091",TABLAS!$A$59) -> 460 | I91: =+GETPIVOTDATA(" BAS092",TABLAS!$A$59) -> 1866 | K91: TD=D+DX=Z3003 | L91: TD=D+DX=Z3043 | M91: TD=D+DX=99208.13 | R91: =+IMPORTARDATOSDINAMICOS(" BAS091";TABLAS!$A$59) | S91: =+IMPORTARDATOSDINAMICOS(" BAS092";TABLAS!$A$59) | AB91: 91 | AC91: 92 | AE91: 091 | AF91: 092
G92: I | H92: =+GETPIVOTDATA(" BAS093",TABLAS!$A$59) -> 708 | I92: =+GETPIVOTDATA(" BAS094",TABLAS!$A$59) -> 7464 | K92: SUMAR 2º LAB DE TD=D+DX=Z3003 | L92: SUMAR 2º LAB DE TD=D+DX=Z3043 | M92: SUMAR 1º LAB DE TD=D+DX=99208.13 | R92: =+IMPORTARDATOSDINAMICOS(" BAS093";TABLAS!$A$59) | S92: =+IMPORTARDATOSDINAMICOS(" BAS094";TABLAS!$A$59) | AB92: 93 | AC92: 94 | AE92: 093 | AF92: 094
D93: INYECTABLE TRIMESTRAL | G93: A | H93: =+GETPIVOTDATA(" BAS095",TABLAS!$A$59) -> 1181 | I93: =+GETPIVOTDATA(" BAS096",TABLAS!$A$59) -> 5340 | K93: TD=D+DX=Z30052 | L93: TD=D+DX=Z30452 | M93: TD=D+DX=99208.05 | R93: =+IMPORTARDATOSDINAMICOS(" BAS095";TABLAS!$A$59) | S93: =+IMPORTARDATOSDINAMICOS(" BAS096";TABLAS!$A$59) | AB93: 95 | AC93: 96 | AE93: 095 | AF93: 096
G94: I | H94: =+GETPIVOTDATA(" BAS097",TABLAS!$A$59) -> 1158 | I94: =+GETPIVOTDATA(" BAS098",TABLAS!$A$59) -> 5385 | K94: SUMAR 2º LAB DE TD=D+DX=Z30052 | L94: SUMAR 2º LAB DE TD=D+DX=Z30452 | M94: SUMAR 1º LAB DE TD=D+DX=99208.05 | R94: =+IMPORTARDATOSDINAMICOS(" BAS097";TABLAS!$A$59) | S94: =+IMPORTARDATOSDINAMICOS(" BAS098";TABLAS!$A$59) | AB94: 97 | AC94: 98 | AE94: 097 | AF94: 098
D95: INYECTABLE MENSUAL | G95: A | H95: =+GETPIVOTDATA(" BAS099",TABLAS!$A$59) -> 914 | I95: =+GETPIVOTDATA(" BAS100",TABLAS!$A$59) -> 2861 | K95: TD=D+DX=Z30051 | L95: TD=D+DX=Z30451 | M95: TD=D+DX=99208.04 | R95: =+IMPORTARDATOSDINAMICOS(" BAS099";TABLAS!$A$59) | S95: =+IMPORTARDATOSDINAMICOS(" BAS100";TABLAS!$A$59) | AB95: 99 | AC95: 100 | AE95: 099 | AF95: 100
G96: I | H96: =+GETPIVOTDATA(" BAS101",TABLAS!$A$59) -> 856 | I96: =+GETPIVOTDATA(" BAS102",TABLAS!$A$59) -> 2893 | K96: SUMAR 2º LAB DE TD=D+DX=Z30051 | L96: SUMAR 2º LAB DE TD=D+DX=Z30451 | M96: SUMAR 1º LAB DE TD=D+DX=99208.04 | R96: =+IMPORTARDATOSDINAMICOS(" BAS101";TABLAS!$A$59) | S96: =+IMPORTARDATOSDINAMICOS(" BAS102";TABLAS!$A$59) | AB96: 101 | AC96: 102 | AE96: 101 | AF96: 102
D97: IMPLANTE | G97: A | H97: =+GETPIVOTDATA(" BAS103",TABLAS!$A$59) -> 289 | I97: =+GETPIVOTDATA(" BAS104",TABLAS!$A$59) -> 258 | K97: TD=D+DX=Z3006 | L97: TD=D+DX=Z3046 | M97: TD=D+DX=11975 | R97: =+IMPORTARDATOSDINAMICOS(" BAS103";TABLAS!$A$59) | S97: =+IMPORTARDATOSDINAMICOS(" BAS104";TABLAS!$A$59) | AB97: 103 | AC97: 104 | AE97: 103 | AF97: 104
G98: I | H98: =+GETPIVOTDATA(" BAS105",TABLAS!$A$59) -> 277 | I98: =+GETPIVOTDATA(" BAS106",TABLAS!$A$59) -> 128 | K98: SUMAR 2º LAB DE TD=D+DX=Z3006 | L98: SUMAR 2º LAB DE TD=D+DX=Z3046 | M98: SUMAR 1º LAB DE TD=D+DX=11975 | R98: =+IMPORTARDATOSDINAMICOS(" BAS105";TABLAS!$A$59) | S98: =+IMPORTARDATOSDINAMICOS(" BAS106";TABLAS!$A$59) | AB98: 105 | AC98: 106 | AE98: 105 | AF98: 106
C99: BARRERA | D99: CONDON MASCULINO | G99: A | H99: =+GETPIVOTDATA(" BAS107",TABLAS!$A$59) -> 313 | I99: =+GETPIVOTDATA(" BAS108",TABLAS!$A$59) -> 462 | K99: TD=D+DX=Z3008 | L99: TD=D+DX=Z3048 | M99: TD=D+DX=99208.02 | R99: =+IMPORTARDATOSDINAMICOS(" BAS107";TABLAS!$A$59) | S99: =+IMPORTARDATOSDINAMICOS(" BAS108";TABLAS!$A$59) | AB99: 107 | AC99: 108 | AE99: 107 | AF99: 108
G100: I | H100: =+GETPIVOTDATA(" BAS109",TABLAS!$A$59) -> 10358 | I100: =+GETPIVOTDATA(" BAS110",TABLAS!$A$59) -> 40683 | K100: SUMAR 2º LAB DE TD=D+DX=Z3008 | L100: SUMAR 2º LAB DE TD=D+DX=Z3048 | M100: SUMAR 1º LAB DE TD=D+DX=99208.02 | R100: =+IMPORTARDATOSDINAMICOS(" BAS109";TABLAS!$A$59) | S100: =+IMPORTARDATOSDINAMICOS(" BAS110";TABLAS!$A$59) | AB100: 109 | AC100: 110 | AE100: 109 | AF100: 110
D101: CONDON FEMENINO | G101: A | H101: =+GETPIVOTDATA(" BAS111",TABLAS!$A$59) -> 28 | I101: =+GETPIVOTDATA(" BAS112",TABLAS!$A$59) -> 5 | K101: TD=D+DX=Z3009 | L101: TD=D+DX=Z3049 | M101: TD=D+DX=99208.06 | R101: =+IMPORTARDATOSDINAMICOS(" BAS111";TABLAS!$A$59) | S101: =+IMPORTARDATOSDINAMICOS(" BAS112";TABLAS!$A$59) | AB101: 111 | AC101: 112 | AE101: 111 | AF101: 112
G102: I | H102: =+GETPIVOTDATA(" BAS113",TABLAS!$A$59) -> 271 | I102: =+GETPIVOTDATA(" BAS114",TABLAS!$A$59) -> 133 | K102: SUMAR 2º LAB DE TD=D+DX=Z3009 | L102: SUMAR 2º LAB DE TD=D+DX=Z3049 | M102: SUMAR 1º LAB DE TD=D+DX=99208.06 | R102: =+IMPORTARDATOSDINAMICOS(" BAS113";TABLAS!$A$59) | S102: =+IMPORTARDATOSDINAMICOS(" BAS114";TABLAS!$A$59) | AB102: 113 | AC102: 114 | AE102: 113 | AF102: 114
C103: AQV FEMENINO | G103: A | H103: =+GETPIVOTDATA(" BAS115",TABLAS!$A$59) -> 3 | I103: =+GETPIVOTDATA(" BAS116",TABLAS!$A$59) -> 1 | K103: TD=D+DX=Z302+ LAB="" + SEXO = F | L103: TD=D+DX=Z302+ LAB=1 + SEXO = F | M103: TD=D+DX=58600 + LAB="" + SEXO = F | R103: =+IMPORTARDATOSDINAMICOS(" BAS115";TABLAS!$A$59) | S103: =+IMPORTARDATOSDINAMICOS(" BAS116";TABLAS!$A$59) | AB103: 115 | AC103: 116 | AE103: 115 | AF103: 116
C104: AQV MASCULINO | G104: A | H104: =+GETPIVOTDATA(" BAS117",TABLAS!$A$59) -> 0 | I104: =+GETPIVOTDATA(" BAS118",TABLAS!$A$59) -> 0 | K104: TD=D+DX=Z302+ LAB="" + SEXO = M | L104: TD=D+DX=Z302+ LAB=1 + SEXO = M | M104: TD=D+DX=55250 + LAB="" + SEXO = M | R104: =+IMPORTARDATOSDINAMICOS(" BAS117";TABLAS!$A$59) | S104: =+IMPORTARDATOSDINAMICOS(" BAS118";TABLAS!$A$59) | AB104: 117 | AC104: 118 | AE104: 117 | AF104: 118
C105: MELA | G105: A | H105: =+GETPIVOTDATA(" BAS119",TABLAS!$A$59) -> 8 | I105: =+GETPIVOTDATA(" BAS120",TABLAS!$A$59) -> 0 | K105: TD=D+DX=Z30091 | L105: TD=D+DX=Z30491 | M105: TD=D+DX=99208.07 | R105: =+IMPORTARDATOSDINAMICOS(" BAS119";TABLAS!$A$59) | S105: =+IMPORTARDATOSDINAMICOS(" BAS120";TABLAS!$A$59) | AB105: 119 | AC105: 120 | AE105: 119 | AF105: 120
C106: ABSTINENCIA PERIODICA | D106: BILLINGS | G106: A | H106: =+GETPIVOTDATA(" BAS121",TABLAS!$A$59) -> 5 | I106: =+GETPIVOTDATA(" BAS122",TABLAS!$A$59) -> 0 | K106: TD=D+DX=Z30093 | L106: TD=D+DX=Z30493 | M106: TD=D+DX=99208.09 | R106: =+IMPORTARDATOSDINAMICOS(" BAS121";TABLAS!$A$59) | S106: =+IMPORTARDATOSDINAMICOS(" BAS122";TABLAS!$A$59) | AB106: 121 | AC106: 122 | AE106: 121 | AF106: 122
D107: RITMO | G107: A | H107: =+GETPIVOTDATA(" BAS123",TABLAS!$A$59) -> 30 | I107: =+GETPIVOTDATA(" BAS124",TABLAS!$A$59) -> 5 | K107: TD=D+DX=Z30092 | L107: TD=D+DX=Z30492 | M107: TD=D+DX=99208.08 | R107: =+IMPORTARDATOSDINAMICOS(" BAS123";TABLAS!$A$59) | S107: =+IMPORTARDATOSDINAMICOS(" BAS124";TABLAS!$A$59) | AB107: 123 | AC107: 124 | AE107: 123 | AF107: 124
D108: DIAS FIJO | G108: A | H108: =+GETPIVOTDATA(" BAS125",TABLAS!$A$59) -> 1 | I108: =+GETPIVOTDATA(" BAS126",TABLAS!$A$59) -> 0 | K108: TD=D+DX=Z30094 | L108: TD=D+DX=Z30494 | M108: TD=D+DX=99208.10 | R108: =+IMPORTARDATOSDINAMICOS(" BAS125";TABLAS!$A$59) | S108: =+IMPORTARDATOSDINAMICOS(" BAS126";TABLAS!$A$59) | AB108: 125 | AC108: 126 | AE108: 125 | AF108: 126
E110: usp_TRAMA_BASE_ADULTO_RPT_06_3_PF_METODOS | H110: TOTAL
C111: ANTICONCEPCIÓN ORAL DE EMERGENCIA/YUZPE | G111: A | H111: =+GETPIVOTDATA(" BAS127",TABLAS!$A$59) -> 5
G112: I | H112: =+GETPIVOTDATA(" BAS128",TABLAS!$A$59) -> 0
C113: ANTICONCEPCIÓN ORAL DE EMERGENCIA/PROGESTAGENO | G113: A | H113: =+GETPIVOTDATA(" BAS129",TABLAS!$A$59) -> 189
G114: I | H114: =+GETPIVOTDATA(" BAS130",TABLAS!$A$59) -> 2
B116: PREVENCION DE CANCER | E116: usp_TRAMA_BASE_ADULTO_RPT_07_CANCER
H117: Masculino | I117: Femenino | J117: TOTAL
C118: Consejería Preventiva en factores de riesgo para el cáncer | G118: 1° Sesión | H118: =+GETPIVOTDATA(" BAS129",TABLAS!$A$59) -> 189 | I118: =+GETPIVOTDATA(" BAS130",TABLAS!$A$59) -> 2 | J118: =SUM(H118:I118) -> 191 | K118: (Td=D + Dx=99402.08 + Lab=1) | R118: =+IMPORTARDATOSDINAMICOS(" BAS001";TABLAS!$A$59) | S118: =+IMPORTARDATOSDINAMICOS(" BAS002";TABLAS!$A$59) | AB118: =+AC112+1 -> 1 | AC118: 2 | AE118: 001 | AF118: 002
G119: 2° Sesión | H119: =+GETPIVOTDATA(" BAS131",TABLAS!$A$59) -> 2093 | I119: =+GETPIVOTDATA(" BAS132",TABLAS!$A$59) -> 9187 | J119: 11280 | K119: (Td=D + Dx=99402.08 + Lab=2) | R119: =+IMPORTARDATOSDINAMICOS(" BAS003";TABLAS!$A$59) | S119: =+IMPORTARDATOSDINAMICOS(" BAS004";TABLAS!$A$59) | AB119: 3 | AC119: 4 | AE119: 003 | AF119: 004
B121: ATENCION EN SALUD BUCAL | E121: usp_TRAMA_BASE_ADULTO_RPT_08_SALUD_BUCAL
B122: Prestación | H122: Masculino | I122: Femenino | J122: TOTAL
C123: Examen Estomatológico | E123: No gestantes | G123: Inician | H123: =+GETPIVOTDATA(" BAS133",TABLAS!$A$59) -> 1016 | I123: =+GETPIVOTDATA(" BAS134",TABLAS!$A$59) -> 5261 | J123: =SUM(H123:I123) -> 6277 | K123: (Td=D + Dx=D0120 + Lab=1)+ Lab (Cualquiera)<>G | R123: =+IMPORTARDATOSDINAMICOS(" BAS005";TABLAS!$A$59) | S123: =+IMPORTARDATOSDINAMICOS(" BAS006";TABLAS!$A$59) | AB123: =+AC119+1 -> 5 | AC123: 6 | AE123: 005 | AF123: 006
G124: Controlado | H124: =+GETPIVOTDATA(" BAS135",TABLAS!$A$59) -> 0 | I124: =+GETPIVOTDATA(" BAS136",TABLAS!$A$59) -> 1 | J124: 1 | K124: (Td=D + Dx=D0120 + Lab=2)+ Lab (Cualquiera)<>G | R124: =CONCATENATE($R$8,AE124,$R$10) -> =+IMPORTARDATOSDINAMICOS(" BAS007";TABLAS!$A$59) | S124: =+IMPORTARDATOSDINAMICOS(" BAS008";TABLAS!$A$59) | AB124: 7 | AC124: 8 | AE124: 007 | AF124: 008
E125: Gestantes | G125: Inician | I125: =+GETPIVOTDATA(" BAS137",TABLAS!$A$59) -> 0 | J125: 0 | K125: (Td=D + Dx=D0120 + Lab=1)+ Lab (Cualquiera)=G | S125: =+IMPORTARDATOSDINAMICOS(" BAS009";TABLAS!$A$59) | AC125: =+AC124+1 -> 9 | AF125: =IF(AC125<10,CONCATENATE("00",AC125),IF(AC125<100,CONCATENATE("0",AC125),AC125)) -> 009
G126: Controlado | I126: =+GETPIVOTDATA(" BAS138",TABLAS!$A$59) -> 0 | J126: 0 | K126: (Td=D + Dx=D0120 + Lab=2)+ Lab (Cualquiera)=G | S126: =+IMPORTARDATOSDINAMICOS(" BAS010";TABLAS!$A$59) | AC126: =+AC125+1 -> 10 | AF126: =IF(AC126<10,CONCATENATE("00",AC126),IF(AC126<100,CONCATENATE("0",AC126),AC126)) -> 010
C127: Instrucción de Higiene Oral | E127: No gestantes | G127: Inician | H127: =+GETPIVOTDATA(" BAS139",TABLAS!$A$59) -> 1 | I127: =+GETPIVOTDATA(" BAS140",TABLAS!$A$59) -> 0 | J127: 1 | K127: (Td=D + Dx=D0130 + Lab=1)+ Lab (Cualquiera)<>G | R127: =+IMPORTARDATOSDINAMICOS(" BAS011";TABLAS!$A$59) | S127: =+IMPORTARDATOSDINAMICOS(" BAS012";TABLAS!$A$59) | AB127: =+AC126+1 -> 11 | AC127: 12 | AE127: 011 | AF127: 012
G128: Controlado | H128: =+GETPIVOTDATA(" BAS141",TABLAS!$A$59) -> 0 | I128: =+GETPIVOTDATA(" BAS142",TABLAS!$A$59) -> 0 | J128: 0 | K128: (Td=D + Dx=D0130 + Lab=2)+ Lab (Cualquiera)<>G | R128: =+IMPORTARDATOSDINAMICOS(" BAS013";TABLAS!$A$59) | S128: =+IMPORTARDATOSDINAMICOS(" BAS014";TABLAS!$A$59) | AB128: 13 | AC128: 14 | AE128: 013 | AF128: 014
E129: Gestantes | G129: Inician | I129: =+GETPIVOTDATA(" BAS143",TABLAS!$A$59) -> 0 | J129: 0 | K129: (Td=D + Dx=D0130 + Lab=1)+ Lab (Cualquiera)=G | S129: =+IMPORTARDATOSDINAMICOS(" BAS015";TABLAS!$A$59) | AC129: =+AC128+1 -> 15 | AF129: =IF(AC129<10,CONCATENATE("00",AC129),IF(AC129<100,CONCATENATE("0",AC129),AC129)) -> 015
G130: Controlado | I130: =+GETPIVOTDATA(" BAS144",TABLAS!$A$59) -> 0 | J130: 0 | K130: (Td=D + Dx=D0130 + Lab=2)+ Lab (Cualquiera)=G | S130: =+IMPORTARDATOSDINAMICOS(" BAS016";TABLAS!$A$59) | AC130: =+AC129+1 -> 16 | AF130: =IF(AC130<10,CONCATENATE("00",AC130),IF(AC130<100,CONCATENATE("0",AC130),AC130)) -> 016
C131: Asesoría nutricional para el control de enfermedades dentales | E131: No gestantes | G131: Inician | H131: =+GETPIVOTDATA(" BAS145",TABLAS!$A$59) -> 0 | I131: =+GETPIVOTDATA(" BAS146",TABLAS!$A$59) -> 0 | J131: 0 | K131: (Td=D + Dx=D1310 + Lab=1)+ Lab (Cualquiera)<>G | R131: =+IMPORTARDATOSDINAMICOS(" BAS017";TABLAS!$A$59) | S131: =+IMPORTARDATOSDINAMICOS(" BAS018";TABLAS!$A$59) | AB131: =+AC130+1 -> 17 | AC131: 18 | AE131: 017 | AF131: 018
G132: Tratado | H132: =+GETPIVOTDATA(" BAS147",TABLAS!$A$59) -> 815 | I132: =+GETPIVOTDATA(" BAS148",TABLAS!$A$59) -> 1764 | J132: 2579 | K132: (Td=D + Dx=D1310 + Lab=2)+ Lab (Cualquiera)<>G | R132: =+IMPORTARDATOSDINAMICOS(" BAS019";TABLAS!$A$59) | S132: =+IMPORTARDATOSDINAMICOS(" BAS020";TABLAS!$A$59) | AB132: 19 | AC132: 20 | AE132: 019 | AF132: 020
E133: Gestantes | G133: Inician | I133: =+GETPIVOTDATA(" BAS149",TABLAS!$A$59) -> 70 | J133: 70 | K133: (Td=D + Dx=D1310 + Lab=1)+ Lab (Cualquiera)=G | S133: =+IMPORTARDATOSDINAMICOS(" BAS021";TABLAS!$A$59) | AC133: =+AC132+1 -> 21 | AF133: =IF(AC133<10,CONCATENATE("00",AC133),IF(AC133<100,CONCATENATE("0",AC133),AC133)) -> 021
G134: Tratado | I134: =+GETPIVOTDATA(" BAS150",TABLAS!$A$59) -> 245 | J134: 245 | K134: (Td=D + Dx=D1310 + Lab=2)+ Lab (Cualquiera)=G | S134: =+IMPORTARDATOSDINAMICOS(" BAS022";TABLAS!$A$59) | AC134: =+AC133+1 -> 22 | AF134: =IF(AC134<10,CONCATENATE("00",AC134),IF(AC134<100,CONCATENATE("0",AC134),AC134)) -> 022
C135: Profilaxis Dental | E135: No gestantes | G135: Inician | H135: =+GETPIVOTDATA(" BAS151",TABLAS!$A$59) -> 490 | I135: =+GETPIVOTDATA(" BAS152",TABLAS!$A$59) -> 240 | J135: 730 | K135: (Td=D + Dx=D1110 + Lab=1)+ Lab (Cualquiera)<>G | R135: =+IMPORTARDATOSDINAMICOS(" BAS023";TABLAS!$A$59) | S135: =+IMPORTARDATOSDINAMICOS(" BAS024";TABLAS!$A$59) | AB135: =+AC134+1 -> 23 | AC135: 24 | AE135: 023 | AF135: 024
G136: Controlado | H136: =+GETPIVOTDATA(" BAS153",TABLAS!$A$59) -> 731 | I136: =+GETPIVOTDATA(" BAS154",TABLAS!$A$59) -> 1675 | J136: 2406 | K136: (Td=D + Dx=D1110 + Lab=2)+ Lab (Cualquiera)<>G | R136: =+IMPORTARDATOSDINAMICOS(" BAS025";TABLAS!$A$59) | S136: =+IMPORTARDATOSDINAMICOS(" BAS026";TABLAS!$A$59) | AB136: =+AC135+1 -> 25 | AC136: =+AB136+1 -> 26 | AE136: 025 | AF136: 026
E137: Gestantes | G137: Inician | I137: =+GETPIVOTDATA(" BAS155",TABLAS!$A$59) -> 92 | J137: 92 | K137: (Td=D + Dx=D1110 + Lab=1)+ Lab (Cualquiera)=G | S137: =+IMPORTARDATOSDINAMICOS(" BAS027";TABLAS!$A$59) | AC137: =+AC136+1 -> 27 | AF137: =IF(AC137<10,CONCATENATE("00",AC137),IF(AC137<100,CONCATENATE("0",AC137),AC137)) -> 027
G138: Controlado | I138: =+GETPIVOTDATA(" BAS156",TABLAS!$A$59) -> 298 | J138: 298 | K138: (Td=D + Dx=D1110 + Lab=2)+ Lab (Cualquiera)=G | S138: =+IMPORTARDATOSDINAMICOS(" BAS028";TABLAS!$A$59) | AC138: =+AC137+1 -> 28 | AF138: =IF(AC138<10,CONCATENATE("00",AC138),IF(AC138<100,CONCATENATE("0",AC138),AC138)) -> 028
C139: Consulta Estomatológica no especializada | E139: No gestantes | G139: Inician | H139: =+GETPIVOTDATA(" BAS157",TABLAS!$A$59) -> 463 | I139: =+GETPIVOTDATA(" BAS158",TABLAS!$A$59) -> 237 | J139: 700 | K139: (Td=D + Dx=D0140 + Lab=1)+ Lab (Cualquiera)<>G | R139: =+IMPORTARDATOSDINAMICOS(" BAS029";TABLAS!$A$59) | S139: =+IMPORTARDATOSDINAMICOS(" BAS030";TABLAS!$A$59) | AB139: =+AC138+1 -> 29 | AC139: 30 | AE139: 029 | AF139: 030
G140: Controlado | H140: =+GETPIVOTDATA(" BAS159",TABLAS!$A$59) -> 79 | I140: =+GETPIVOTDATA(" BAS160",TABLAS!$A$59) -> 154 | J140: 233 | K140: (Td=D + Dx=D0140 + Lab=2)+ Lab (Cualquiera)<>G | R140: =+IMPORTARDATOSDINAMICOS(" BAS031";TABLAS!$A$59) | S140: =+IMPORTARDATOSDINAMICOS(" BAS032";TABLAS!$A$59) | AB140: 31 | AC140: 32 | AE140: 031 | AF140: 032
E141: Gestantes | G141: Inician | I141: =+GETPIVOTDATA(" BAS161",TABLAS!$A$59) -> 2 | J141: 2 | K141: (Td=D + Dx=D0140 + Lab=1)+ Lab (Cualquiera)=G | S141: =+IMPORTARDATOSDINAMICOS(" BAS033";TABLAS!$A$59) | AC141: =+AC140+1 -> 33 | AF141: =IF(AC141<10,CONCATENATE("00",AC141),IF(AC141<100,CONCATENATE("0",AC141),AC141)) -> 033
G142: Controlado | I142: =+GETPIVOTDATA(" BAS162",TABLAS!$A$59) -> 1 | J142: 1 | K142: (Td=D + Dx=D0140 + Lab=2)+ Lab (Cualquiera)=G | S142: =+IMPORTARDATOSDINAMICOS(" BAS034";TABLAS!$A$59) | AC142: =+AC141+1 -> 34 | AF142: =IF(AC142<10,CONCATENATE("00",AC142),IF(AC142<100,CONCATENATE("0",AC142),AC142)) -> 034
C143: Aplicación Flúor Barniz | E143: No gestantes | G143: Inician | H143: =+GETPIVOTDATA(" BAS163",TABLAS!$A$59) -> 4 | I143: =+GETPIVOTDATA(" BAS164",TABLAS!$A$59) -> 1 | J143: 5 | K143: (Td=D + Dx=D1206 + Lab=1)+ Lab (Cualquiera)<>G | R143: =+IMPORTARDATOSDINAMICOS(" BAS035";TABLAS!$A$59) | S143: =+IMPORTARDATOSDINAMICOS(" BAS036";TABLAS!$A$59) | AB143: =+AC142+1 -> 35 | AC143: 36 | AE143: 035 | AF143: 036
G144: Controlado | H144: =+GETPIVOTDATA(" BAS165",TABLAS!$A$59) -> 113 | I144: =+GETPIVOTDATA(" BAS166",TABLAS!$A$59) -> 285 | J144: 398 | K144: (Td=D + Dx=D1206 + Lab=2)+ Lab (Cualquiera)<>G | R144: =+IMPORTARDATOSDINAMICOS(" BAS037";TABLAS!$A$59) | S144: =+IMPORTARDATOSDINAMICOS(" BAS038";TABLAS!$A$59) | AB144: 37 | AC144: 38 | AE144: =IF(AB144<10,CONCATENATE("00",AB144),IF(AB144<100,CONCATENATE("0",AB144),AB144)) -> 037 | AF144: =IF(AC144<10,CONCATENATE("00",AC144),IF(AC144<100,CONCATENATE("0",AC144),AC144)) -> 038
E145: Gestantes | G145: Inician | I145: =+GETPIVOTDATA(" BAS167",TABLAS!$A$59) -> 14 | J145: 14 | K145: (Td=D + Dx=D1206 + Lab=1)+ Lab (Cualquiera)=G | S145: =+IMPORTARDATOSDINAMICOS(" BAS039";TABLAS!$A$59) | AC145: =+AC144+1 -> 39 | AF145: =IF(AC145<10,CONCATENATE("00",AC145),IF(AC145<100,CONCATENATE("0",AC145),AC145)) -> 039
G146: Controlado | I146: =+GETPIVOTDATA(" BAS168",TABLAS!$A$59) -> 66 | J146: 66 | K146: (Td=D + Dx=D1206 + Lab=2)+ Lab (Cualquiera)=G | S146: =+IMPORTARDATOSDINAMICOS(" BAS040";TABLAS!$A$59) | AC146: =+AC145+1 -> 40 | AF146: =IF(AC146<10,CONCATENATE("00",AC146),IF(AC146<100,CONCATENATE("0",AC146),AC146)) -> 040
C147: Raspaje Dental | E147: No gestantes | G147: Inician | H147: =+GETPIVOTDATA(" BAS169",TABLAS!$A$59) -> 413 | I147: =+GETPIVOTDATA(" BAS170",TABLAS!$A$59) -> 225 | J147: 638 | K147: (Td=D + Dx=E1311 + Lab=1) | R147: =+IMPORTARDATOSDINAMICOS(" BAS041";TABLAS!$A$59) | S147: =+IMPORTARDATOSDINAMICOS(" BAS042";TABLAS!$A$59) | AB147: =+AC146+1 -> 41 | AC147: 42 | AE147: 041 | AF147: 042
G148: Tratado | H148: =+GETPIVOTDATA(" BAS171",TABLAS!$A$59) -> 9 | I148: =+GETPIVOTDATA(" BAS172",TABLAS!$A$59) -> 40 | J148: 49 | K148: (Td=D + Dx=E1311 + Lab=2) + lab=FIN | R148: =+IMPORTARDATOSDINAMICOS(" BAS043";TABLAS!$A$59) | S148: =+IMPORTARDATOSDINAMICOS(" BAS044";TABLAS!$A$59) | AB148: 43 | AC148: 44 | AE148: 043 | AF148: 044
E149: Gestantes | G149: Inician | I149: =+GETPIVOTDATA(" BAS173",TABLAS!$A$59) -> 0 | J149: 0 | K149: (Td=D + Dx=E1311 + Lab=1) | S149: =+IMPORTARDATOSDINAMICOS(" BAS045";TABLAS!$A$59) | AC149: =+AC148+1 -> 45 | AF149: =IF(AC149<10,CONCATENATE("00",AC149),IF(AC149<100,CONCATENATE("0",AC149),AC149)) -> 045
G150: Tratado | I150: =+GETPIVOTDATA(" BAS174",TABLAS!$A$59) -> 5 | J150: 5 | K150: (Td=D + Dx=E1311 + Lab=2) + lab=FIG | S150: =CONCATENATE($R$8,AF150,$R$10) -> =+IMPORTARDATOSDINAMICOS(" BAS046";TABLAS!$A$59) | AC150: =+AC149+1 -> 46 | AF150: =IF(AC150<10,CONCATENATE("00",AC150),IF(AC150<100,CONCATENATE("0",AC150),AC150)) -> 046
B152: SALUD MENTAL | D152: usp_TRAMA_BASE_ADULTO_RPT_09_SALUD_MENTAL
B153: Prestaciones de Salud Mental en Adultos | H153: Masculino | I153: Femenino | J153: TOTAL
C154: Entrevista de Tamizaje | D154: Violencia Familiar | H154: =+GETPIVOTDATA(" BAS175",TABLAS!$A$59) -> 13 | I154: =+GETPIVOTDATA(" BAS176",TABLAS!$A$59) -> 0 | J154: =SUM(H154:I154) -> 13 | K154: U140 / D /LAB=VIF + EDAD >=30 Y <=59 | R154: =CONCATENATE($R$8,AE154,$R$10) -> =+IMPORTARDATOSDINAMICOS(" BAS047";TABLAS!$A$59) | S154: =CONCATENATE($R$8,AF154,$R$10) -> =+IMPORTARDATOSDINAMICOS(" BAS048";TABLAS!$A$59) | AB154: =+AC150+1 -> 47 | AC154: 48 | AE154: 047 | AF154: 048
D155: Violencia Sexual | H155: =+GETPIVOTDATA(" BAS177",TABLAS!$A$59) -> 2 | I155: =+GETPIVOTDATA(" BAS178",TABLAS!$A$59) -> 3 | J155: 5 | K155: U140 / D /LAB=VSX + EDAD >=30 Y <=59 | R155: =+IMPORTARDATOSDINAMICOS(" BAS049";TABLAS!$A$59) | S155: =+IMPORTARDATOSDINAMICOS(" BAS050";TABLAS!$A$59) | AB155: 49 | AC155: 50 | AE155: 049 | AF155: 050
D156: Violencia Social | H156: =+GETPIVOTDATA(" BAS179",TABLAS!$A$59) -> 0 | I156: =+GETPIVOTDATA(" BAS180",TABLAS!$A$59) -> 0 | J156: 0 | K156: U140 / D /LAB=VS + EDAD >=30 Y <=59 | R156: =+IMPORTARDATOSDINAMICOS(" BAS051";TABLAS!$A$59) | S156: =+IMPORTARDATOSDINAMICOS(" BAS052";TABLAS!$A$59) | AB156: 51 | AC156: 52 | AE156: 051 | AF156: 052
D157: Alcohol y Drogas | H157: =+GETPIVOTDATA(" BAS181",TABLAS!$A$59) -> 0 | I157: =+GETPIVOTDATA(" BAS182",TABLAS!$A$59) -> 0 | J157: 0 | K157: U140 / D /LAB=AD + EDAD >=30 Y <=59 | R157: =+IMPORTARDATOSDINAMICOS(" BAS053";TABLAS!$A$59) | S157: =+IMPORTARDATOSDINAMICOS(" BAS054";TABLAS!$A$59) | AB157: 53 | AC157: 54 | AE157: 053 | AF157: 054
D158: Trastornos Depresivos | H158: =+GETPIVOTDATA(" BAS183",TABLAS!$A$59) -> 0 | I158: =+GETPIVOTDATA(" BAS184",TABLAS!$A$59) -> 0 | J158: 0 | K158: U140 / D /LAB=TD + EDAD >=30 Y <=59 | R158: =+IMPORTARDATOSDINAMICOS(" BAS055";TABLAS!$A$59) | S158: =+IMPORTARDATOSDINAMICOS(" BAS056";TABLAS!$A$59) | AB158: 55 | AC158: 56 | AE158: 055 | AF158: 056
C159: Tamizaje Positivo | D159: Problemas relacionados con violencia | H159: =+GETPIVOTDATA(" BAS185",TABLAS!$A$59) -> 0 | I159: =+GETPIVOTDATA(" BAS186",TABLAS!$A$59) -> 0 | J159: 0 | K159: R456 / D | R159: =+IMPORTARDATOSDINAMICOS(" BAS057";TABLAS!$A$59) | S159: =+IMPORTARDATOSDINAMICOS(" BAS058";TABLAS!$A$59) | AB159: 57 | AC159: 58 | AE159: 057 | AF159: 058
D160: Problemas Relacionados con el Uso de Tabaco | H160: =+GETPIVOTDATA(" BAS187",TABLAS!$A$59) -> 49 | I160: =+GETPIVOTDATA(" BAS188",TABLAS!$A$59) -> 376 | J160: 425 | K160: Z720 / D | R160: =+IMPORTARDATOSDINAMICOS(" BAS059";TABLAS!$A$59) | S160: =+IMPORTARDATOSDINAMICOS(" BAS060";TABLAS!$A$59) | AB160: 59 | AC160: 60 | AE160: 059 | AF160: 060
D161: Problemas Sociales Relacionados con el Uso de Alcohol | H161: =+GETPIVOTDATA(" BAS189",TABLAS!$A$59) -> 0 | I161: =+GETPIVOTDATA(" BAS190",TABLAS!$A$59) -> 0 | J161: 0 | K161: Z721 / D | R161: =+IMPORTARDATOSDINAMICOS(" BAS061";TABLAS!$A$59) | S161: =+IMPORTARDATOSDINAMICOS(" BAS062";TABLAS!$A$59) | AB161: 61 | AC161: 62 | AE161: 061 | AF161: 062
D162: Problemas Sociales Relacionados con el Uso de drogas | H162: =+GETPIVOTDATA(" BAS191",TABLAS!$A$59) -> 127 | I162: =+GETPIVOTDATA(" BAS192",TABLAS!$A$59) -> 9 | J162: 136 | K162: Z722 / D | R162: =+IMPORTARDATOSDINAMICOS(" BAS063";TABLAS!$A$59) | S162: =+IMPORTARDATOSDINAMICOS(" BAS064";TABLAS!$A$59) | AB162: 63 | AC162: 64 | AE162: 063 | AF162: 064
D163: Depresión | H163: =+GETPIVOTDATA(" BAS193",TABLAS!$A$59) -> 0 | I163: =+GETPIVOTDATA(" BAS194",TABLAS!$A$59) -> 0 | J163: 0 | K163: (U140 / LAB=TD) + Z133 / D | R163: =+IMPORTARDATOSDINAMICOS(" BAS065";TABLAS!$A$59) | S163: =+IMPORTARDATOSDINAMICOS(" BAS066";TABLAS!$A$59) | AB163: 65 | AC163: 66 | AE163: 065 | AF163: 066
D164: Psicosis | H164: =+GETPIVOTDATA(" BAS195",TABLAS!$A$59) -> 0 | I164: =+GETPIVOTDATA(" BAS196",TABLAS!$A$59) -> 0 | J164: 0 | K164: (U140 / LAB=EP) + Z133 / D | R164: =+IMPORTARDATOSDINAMICOS(" BAS067";TABLAS!$A$59) | S164: =+IMPORTARDATOSDINAMICOS(" BAS068";TABLAS!$A$59) | AB164: 67 | AC164: 68 | AE164: 067 | AF164: 068
B166: TBC | D166: usp_TRAMA_BASE_ADULTO_RPT_10_TBC
B167: Detección de TBC en Adultos | H167: Masculino | I167: Femenino | J167: TOTAL
C168: Sintomáticos Respiratorios Examinados (TBC) | H168: =+GETPIVOTDATA(" BAS197",TABLAS!$A$59) -> 0 | I168: =+GETPIVOTDATA(" BAS198",TABLAS!$A$59) -> 0 | J168: =SUM(H168:I168) -> 0 | K168: DX=D/R + U200 + (U2142 + LAB=1) | R168: =+IMPORTARDATOSDINAMICOS(" BAS069";TABLAS!$A$59) | S168: =+IMPORTARDATOSDINAMICOS(" BAS070";TABLAS!$A$59) | AB168: =+AC164+1 -> 69 | AC168: 70 | AE168: 069 | AF168: 070
C169: Sintomáticos Respiratorios Identificados | H169: =+GETPIVOTDATA(" BAS199",TABLAS!$A$59) -> 736 | I169: =+GETPIVOTDATA(" BAS200",TABLAS!$A$59) -> 995 | J169: 1731 | K169: DX=D + U200 | R169: =+IMPORTARDATOSDINAMICOS(" BAS071";TABLAS!$A$59) | S169: =+IMPORTARDATOSDINAMICOS(" BAS072";TABLAS!$A$59) | AB169: 71 | AC169: 72 | AE169: 071 | AF169: 072
B171: SALUD SEXUAL Y REPRODUCTIVA | E171: usp_TRAMA_BASE_ADULTO_RPT_11_SSR
B172: Prestaciones de Salud Sexual y Reproductiva en Adultos, Gestantes y No gestantes | H172: Masculino | I172: Femenino | J172: TOTAL
C173: Nº de personas tamizadas para VIH (incluye datos de ESNSSR y ESN TB) | H173: =+GETPIVOTDATA(" BAS001",TABLAS!$A$59) -> 10 | I173: =+GETPIVOTDATA(" BAS002",TABLAS!$A$59) -> 1634 | J173: =SUM(H173:I173) -> 1644 | K173: DX= Z7172, Z7173 + Edad | L173: SEXO= F + (TD=D + DX= 86703,87389) | R173: =+IMPORTARDATOSDINAMICOS(" BAS001";TABLAS!$A$59) | S173: =+IMPORTARDATOSDINAMICOS(" BAS002";TABLAS!$A$59) | AB173: 1 | AC173: 2 | AE173: 001 | AF173: 002
C174: Nº de personas tamizadas para VIH con resultado reactivo (incuye datos de ESNSSR y ESN TB) | H174: =+GETPIVOTDATA(" BAS003",TABLAS!$A$59) -> 858 | I174: =+GETPIVOTDATA(" BAS004",TABLAS!$A$59) -> 3054 | J174: 3912 | K174: DX= Z7172 + Edad | L174: SEXO= F + (DX= 86703,87389 + LAB=RP) | R174: =+IMPORTARDATOSDINAMICOS(" BAS003";TABLAS!$A$59) | S174: =+IMPORTARDATOSDINAMICOS(" BAS004";TABLAS!$A$59) | AB174: 3 | AC174: 4 | AE174: 003 | AF174: 004
C175: Gestantes Atendidas (1º Control Prenatal) | D175: Total | J175: 0 | K175: SUMA
D176: en 1º Trimestre de Gestación | I176: =+GETPIVOTDATA(" BAS005",TABLAS!$A$59) -> 782 | J176: 782 | K176: Z3591+Z3491 + LAB=1 | S176: =+IMPORTARDATOSDINAMICOS(" BAS005";TABLAS!$A$59) | AC176: =+AC174+1 -> 5 | AE176: 00 | AF176: 005
D177: en 2º Trimestre de Gestación | I177: =+GETPIVOTDATA(" BAS006",TABLAS!$A$59) -> 1391 | J177: 1391 | K177: Z3592+Z3492 + LAB=1 | S177: =+IMPORTARDATOSDINAMICOS(" BAS006";TABLAS!$A$59) | AC177: =+AC176+1 -> 6 | AE177: 00 | AF177: 006
D178: en 3º Trimestre de Gestación | I178: =+GETPIVOTDATA(" BAS007",TABLAS!$A$59) -> 2265 | J178: 2265 | K178: Z3593+Z3493 + LAB=1 | S178: =+IMPORTARDATOSDINAMICOS(" BAS007";TABLAS!$A$59) | AC178: 7 | AE178: 00 | AF178: 007
C179: Gestantes Controladas (6º Control Prenatal) | I179: =+GETPIVOTDATA(" BAS008",TABLAS!$A$59) -> 3774 | J179: 3774 | K179: (Z3491+Z3492+Z3493+Z3591+Z3592+Z3593) + LAB=6 | S179: =+IMPORTARDATOSDINAMICOS(" BAS008";TABLAS!$A$59) | AC179: 8 | AE179: 00 | AF179: 008
C180: Gestantes con atención prenatal reenfocada | I180: =+GETPIVOTDATA(" BAS009",TABLAS!$A$59) -> 301 | J180: 301 | K180: (TD=D + DX=Z359 / Z3591 / Z3592 / Z3593 / Z3491 / Z3492 / Z3493 + Lab >=6) + Cualquier Lab= TA | S180: =+IMPORTARDATOSDINAMICOS(" BAS009";TABLAS!$A$59) | AC180: 9 | AE180: 00 | AF180: 009
C181: Suplementación con Sulfato Ferroso en Gestantes | I181: =+GETPIVOTDATA(" BAS010",TABLAS!$A$59) -> 486 | J181: 486 | K181: (TD=D + DX=Z359 / Z3591 / Z3592 / Z3593 / Z3491 / Z3492 / Z3493) + (TD=D + DX=Z298 + Lab=SF6) | S181: =+IMPORTARDATOSDINAMICOS(" BAS010";TABLAS!$A$59) | AC181: 10 | AE181: 00 | AF181: 010
C182: Suplementación con Ácido Fólico en Gestantes | I182: =+GETPIVOTDATA(" BAS011",TABLAS!$A$59) -> 870 | J182: 870 | K182: (TD=D + DX=Z359 / Z3591 / Z3592 / Z3593 / Z3491 / Z3492 / Z3493) + (TD=D + DX=Z298 + Lab=AF3) | S182: =+IMPORTARDATOSDINAMICOS(" BAS011";TABLAS!$A$59) | AC182: 11 | AE182: 00 | AF182: 011
C183: Parto | I183: =+GETPIVOTDATA(" BAS012",TABLAS!$A$59) -> 2391 | J183: 2391 | K183: TD=D + (O80 - O84) + Edad = (30 -59) | S183: =+IMPORTARDATOSDINAMICOS(" BAS012";TABLAS!$A$59) | AC183: 12 | AE183: 00 | AF183: 012
C184: Toma de PAP | I184: =+GETPIVOTDATA(" BAS013",TABLAS!$A$59) -> 678 | J184: 678 | K184: TD=D + DX=Z359 + [88141 / Z0141] | S184: =+IMPORTARDATOSDINAMICOS(" BAS013";TABLAS!$A$59) | AC184: 13 | AE184: 00 | AF184: 013
C185: Entrega de Resultados PAP | I185: =+GETPIVOTDATA(" BAS014",TABLAS!$A$59) -> 1395 | J185: 1395 | K185: TD=D + U2601 | S185: =+IMPORTARDATOSDINAMICOS(" BAS014";TABLAS!$A$59) | AC185: 14 | AE185: 00 | AF185: 014
C186: Resultado positivo de PAP (Gestantes) | I186: =+GETPIVOTDATA(" BAS015",TABLAS!$A$59) -> 979 | J186: 979 | K186: TD=D + DX=U2601 + (DX=D060, D061, D069, N879, N870, N871, N872 + En cualquier Lab=G) / Z359 + TD=D + DX=U2601+ (DX=D060, D061, D069, N879, N870, N871, N872) | S186: =+IMPORTARDATOSDINAMICOS(" BAS015";TABLAS!$A$59) | AC186: 15 | AE186: 00 | AF186: 015
B188: ITS-VIH | C188: usp_TRAMA_BASE_ADULTO_RPT_12_VIH
H189: Masculino | I189: Femenino | J189: TOTAL
C190: Consejería/Orientación en prevención de ITS,VIH, Hepatitis B | G190: 1° Vez | H190: =+GETPIVOTDATA(" BAS016",TABLAS!$A$59) -> 2051 | I190: =+GETPIVOTDATA(" BAS017",TABLAS!$A$59) -> 2345 | J190: =SUM(H190:I190) -> 4396 | K190: 99402.05 + Lab=PV | L190: SEXO= F + TD=D + (DX= 99402.05) | R190: =CONCATENATE($R$8,AE190,$R$10) -> =+IMPORTARDATOSDINAMICOS(" BAS016";TABLAS!$A$59) | S190: =CONCATENATE($R$8,AF190,$R$10) -> =+IMPORTARDATOSDINAMICOS(" BAS017";TABLAS!$A$59) | AB190: =+AC186+1 -> 16 | AC190: =+AB190+1 -> 17 | AE190: =IF(AB190<10,CONCATENATE("00",AB190),IF(AB190<100,CONCATENATE("0",AB190),AB190)) -> 016 | AF190: =IF(AC190<10,CONCATENATE("00",AC190),IF(AC190<100,CONCATENATE("0",AC190),AC190)) -> 017
G191: Más de una vez | H191: =+GETPIVOTDATA(" BAS018",TABLAS!$A$59) -> 3543 | I191: =+GETPIVOTDATA(" BAS019",TABLAS!$A$59) -> 835 | J191: 4378 | K191: 99402.05 + Lab=blanco | R191: =+IMPORTARDATOSDINAMICOS(" BAS018";TABLAS!$A$59) | S191: =+IMPORTARDATOSDINAMICOS(" BAS019";TABLAS!$A$59) | AB191: =+AC190+1 -> 18 | AC191: 19 | AE191: 018 | AF191: 019
C192: Consejería Pre-test para VIH | H192: =+GETPIVOTDATA(" BAS020",TABLAS!$A$59) -> 4896 | I192: =+GETPIVOTDATA(" BAS021",TABLAS!$A$59) -> 92 | J192: 4988 | K192: Z7171/D | L192: 99401.33 | R192: =+IMPORTARDATOSDINAMICOS(" BAS020";TABLAS!$A$59) | S192: =+IMPORTARDATOSDINAMICOS(" BAS021";TABLAS!$A$59) | AB192: 20 | AC192: 21 | AE192: 020 | AF192: 021
C193: Consejería Post-test positivo para VIH | H193: =+GETPIVOTDATA(" BAS022",TABLAS!$A$59) -> 191 | I193: =+GETPIVOTDATA(" BAS023",TABLAS!$A$59) -> 10 | J193: 201 | K193: Z7172/D | L193: 99403.03 | R193: =+IMPORTARDATOSDINAMICOS(" BAS022";TABLAS!$A$59) | S193: =+IMPORTARDATOSDINAMICOS(" BAS023";TABLAS!$A$59) | AB193: 22 | AC193: 23 | AE193: 022 | AF193: 023
C194: Consejería Post-test negativo para VIH | H194: =+GETPIVOTDATA(" BAS024",TABLAS!$A$59) -> 12 | I194: =+GETPIVOTDATA(" BAS025",TABLAS!$A$59) -> 0 | J194: 12 | K194: Z7173/D | L194: 99401.34 | R194: =+IMPORTARDATOSDINAMICOS(" BAS024";TABLAS!$A$59) | S194: =+IMPORTARDATOSDINAMICOS(" BAS025";TABLAS!$A$59) | AB194: 24 | AC194: 25 | AE194: 024 | AF194: 025
C195: Tamizaje en Hepatitis B | G195: Reactivo | H195: =+GETPIVOTDATA(" BAS026",TABLAS!$A$59) -> 1 | I195: =+GETPIVOTDATA(" BAS027",TABLAS!$A$59) -> 0 | J195: 1 | K195: 86706/D | R195: =+IMPORTARDATOSDINAMICOS(" BAS026";TABLAS!$A$59) | S195: =+IMPORTARDATOSDINAMICOS(" BAS027";TABLAS!$A$59) | AB195: 26 | AC195: 27 | AE195: 026 | AF195: 027
G196: No Reactivo | H196: =+GETPIVOTDATA(" BAS028",TABLAS!$A$59) -> 0 | I196: =+GETPIVOTDATA(" BAS029",TABLAS!$A$59) -> 1 | J196: 1 | K196: Z115+Lab=PRA | R196: =+IMPORTARDATOSDINAMICOS(" BAS028";TABLAS!$A$59) | S196: =+IMPORTARDATOSDINAMICOS(" BAS029";TABLAS!$A$59) | AB196: 28 | AC196: 29 | AE196: 028 | AF196: 029
B198: SALUD OCULAR | D198: usp_TRAMA_BASE_ADULTO_RPT_13_SALUD_OCULAR
H199: Masculino | I199: Femenino | J199: TOTAL
C200: Consejería en Salud Ocular | H200: =+GETPIVOTDATA(" BAS030",TABLAS!$A$59) -> 1 | I200: =+GETPIVOTDATA(" BAS031",TABLAS!$A$59) -> 112 | J200: =SUM(H200:I200) -> 113 | K200: 99401.16/D | R200: =CONCATENATE($R$8,AE200,$R$10) -> =+IMPORTARDATOSDINAMICOS(" BAS030";TABLAS!$A$59) | S200: =CONCATENATE($R$8,AF200,$R$10) -> =+IMPORTARDATOSDINAMICOS(" BAS031";TABLAS!$A$59) | AB200: =+AC196+1 -> 30 | AC200: 31 | AE200: =IF(AB200<10,CONCATENATE("00",AB200),IF(AB200<100,CONCATENATE("0",AB200),AB200)) -> 030 | AF200: =IF(AC200<10,CONCATENATE("00",AC200),IF(AC200<100,CONCATENATE("0",AC200),AC200)) -> 031
C201: Determinación de la agudeza visual | H201: =+GETPIVOTDATA(" BAS032",TABLAS!$A$59) -> 530 | I201: =+GETPIVOTDATA(" BAS033",TABLAS!$A$59) -> 103 | J201: 633 | K201: 99173/D | R201: =+IMPORTARDATOSDINAMICOS(" BAS032";TABLAS!$A$59) | S201: =+IMPORTARDATOSDINAMICOS(" BAS033";TABLAS!$A$59) | AB201: 32 | AC201: 33 | AE201: 032 | AF201: 033
C202: Limitación visual moderada | H202: =+GETPIVOTDATA(" BAS034",TABLAS!$A$59) -> 418 | I202: =+GETPIVOTDATA(" BAS035",TABLAS!$A$59) -> 53 | J202: 471 | K202: H456/D | R202: =+IMPORTARDATOSDINAMICOS(" BAS034";TABLAS!$A$59) | S202: =+IMPORTARDATOSDINAMICOS(" BAS035";TABLAS!$A$59) | AB202: 34 | AC202: 35 | AE202: 034 | AF202: 035
C203: Catarata no especificada | H203: =+GETPIVOTDATA(" BAS036",TABLAS!$A$59) -> 360 | I203: =+GETPIVOTDATA(" BAS037",TABLAS!$A$59) -> 3 | J203: 363 | K203: H259/D | R203: =+IMPORTARDATOSDINAMICOS(" BAS036";TABLAS!$A$59) | S203: =+IMPORTARDATOSDINAMICOS(" BAS037";TABLAS!$A$59) | AB203: 36 | AC203: 37 | AE203: 036 | AF203: 037
C204: Examen de los ojos y la visión | H204: =+GETPIVOTDATA(" BAS038",TABLAS!$A$59) -> 16 | I204: =+GETPIVOTDATA(" BAS039",TABLAS!$A$59) -> 0 | J204: 16 | K204: Z006/D | R204: =+IMPORTARDATOSDINAMICOS(" BAS038";TABLAS!$A$59) | S204: =+IMPORTARDATOSDINAMICOS(" BAS039";TABLAS!$A$59) | AB204: 38 | AC204: 39 | AE204: 038 | AF204: 039
B206: ACTIVIDADES PREVENTIVAS PROMOCIONALES | F206: usp_TRAMA_BASE_ADULTO_RPT_14_APP
B207: VISITA FAMILIAR INTEGRAL | H207: Masculino | I207: Femenino | J207: TOTAL
C208: Visita Familiar Integral | G208: Con 1 Visita | H208: =+GETPIVOTDATA(" BAS040",TABLAS!$A$59) -> 14 | I208: =+GETPIVOTDATA(" BAS041",TABLAS!$A$59) -> 67 | J208: =SUM(H208:I208) -> 81 | K208: 99344 / D + LAB=1 | R208: =+IMPORTARDATOSDINAMICOS(" BAS040";TABLAS!$A$59) | S208: =+IMPORTARDATOSDINAMICOS(" BAS041";TABLAS!$A$59) | AB208: =+AC204+1 -> 40 | AC208: 41 | AE208: 040 | AF208: 041
G209: Con 2 Visitas | H209: =+GETPIVOTDATA(" BAS042",TABLAS!$A$59) -> 89 | I209: =+GETPIVOTDATA(" BAS043",TABLAS!$A$59) -> 56 | J209: 145 | K209: 99344 / D + LAB=2 | R209: =+IMPORTARDATOSDINAMICOS(" BAS042";TABLAS!$A$59) | S209: =+IMPORTARDATOSDINAMICOS(" BAS043";TABLAS!$A$59) | AB209: 42 | AC209: 43 | AE209: 042 | AF209: 043
G210: Con 3 a + Visitas | H210: =+GETPIVOTDATA(" BAS044",TABLAS!$A$59) -> 107 | I210: =+GETPIVOTDATA(" BAS045",TABLAS!$A$59) -> 54 | J210: 161 | K210: 99344 / D + LAB>=3 | R210: =+IMPORTARDATOSDINAMICOS(" BAS044";TABLAS!$A$59) | S210: =+IMPORTARDATOSDINAMICOS(" BAS045";TABLAS!$A$59) | AB210: 44 | AC210: 45 | AE210: 044 | AF210: 045
C211: V.F.I. de Identificación de riesgos y necesidades. | H211: =+GETPIVOTDATA(" BAS046",TABLAS!$A$59) -> 0 | I211: =+GETPIVOTDATA(" BAS047",TABLAS!$A$59) -> 0 | J211: 0 | K211: C0011.01 | R211: =+IMPORTARDATOSDINAMICOS(" BAS046";TABLAS!$A$59) | S211: =+IMPORTARDATOSDINAMICOS(" BAS047";TABLAS!$A$59) | AB211: 46 | AC211: 47 | AE211: 046 | AF211: 047
C212: V.F.I. para cuidados esenciales | H212: =+GETPIVOTDATA(" BAS048",TABLAS!$A$59) -> 3 | I212: =+GETPIVOTDATA(" BAS049",TABLAS!$A$59) -> 0 | J212: 3 | K212: C0011.02 | R212: =+IMPORTARDATOSDINAMICOS(" BAS048";TABLAS!$A$59) | S212: =+IMPORTARDATOSDINAMICOS(" BAS049";TABLAS!$A$59) | AB212: =+AC211+1 -> 48 | AC212: 49 | AE212: 048 | AF212: 049
B214: INMUNIZACIONES | D214: usp_TRAMA_BASE_ADULTO_RPT_15_VACUNA
B215: Inmunizaciones en Adultos | H215: Masculino | I215: Femenino | J215: TOTAL
C216: Vacunación Diftotetánica (dT) (No incluye Gestantes) | D216: ======> DOSIS 1 | H216: =+GETPIVOTDATA(" BAS050",TABLAS!$A$59) -> 0 | I216: =+GETPIVOTDATA(" BAS051",TABLAS!$A$59) -> 36 | J216: =SUM(H216:I216) -> 36 | K216: D+Z2781+Lab(1,D1)+edad 30A-59A+sexo=F+(Lab<>G) | R216: =+IMPORTARDATOSDINAMICOS(" BAS050";TABLAS!$A$59) | S216: =+IMPORTARDATOSDINAMICOS(" BAS051";TABLAS!$A$59) | AB216: =+AC212+1 -> 50 | AC216: 51 | AE216: 050 | AF216: 051
D217: ======> DOSIS 2 | H217: =+GETPIVOTDATA(" BAS052",TABLAS!$A$59) -> 73 | I217: =+GETPIVOTDATA(" BAS053",TABLAS!$A$59) -> 647 | J217: 720 | K217: D+Z2781+Lab(2,D2)+edad 30A-59A+sexo=F+(Lab<>G) | R217: =+IMPORTARDATOSDINAMICOS(" BAS052";TABLAS!$A$59) | S217: =+IMPORTARDATOSDINAMICOS(" BAS053";TABLAS!$A$59) | AB217: 52 | AC217: 53 | AE217: 052 | AF217: 053
D218: ======> DOSIS 3 (Protegida) | H218: =+GETPIVOTDATA(" BAS054",TABLAS!$A$59) -> 1871 | I218: =+GETPIVOTDATA(" BAS055",TABLAS!$A$59) -> 0 | J218: 1871 | K218: D+Z2781+Lab(3,D3)+edad 30A-59A+sexo=F+(Lab<>G) | R218: =+IMPORTARDATOSDINAMICOS(" BAS054";TABLAS!$A$59) | S218: =+IMPORTARDATOSDINAMICOS(" BAS055";TABLAS!$A$59) | AB218: 54 | AC218: 55 | AE218: 054 | AF218: 055
C219: Vacunación Diftotetánica (dT) (SOLO Gestantes) | D219: ======> DOSIS 1 | H219: =+GETPIVOTDATA(" BAS056",TABLAS!$A$59) -> 0 | I219: =+GETPIVOTDATA(" BAS057",TABLAS!$A$59) -> 69 | J219: 69 | K219: D+Z2781+Lab(1,D1)+edad 30A-59A+sexo=F+(Lab=G) | R219: =+IMPORTARDATOSDINAMICOS(" BAS056";TABLAS!$A$59) | S219: =+IMPORTARDATOSDINAMICOS(" BAS057";TABLAS!$A$59) | AB219: 56 | AC219: 57 | AE219: 056 | AF219: 057
D220: ======> DOSIS 2 | H220: =+GETPIVOTDATA(" BAS058",TABLAS!$A$59) -> 83 | I220: =+GETPIVOTDATA(" BAS059",TABLAS!$A$59) -> 5 | J220: 88 | K220: D+Z2781+Lab(2,D2)+edad 30A-59A+sexo=F+(Lab=G) | R220: =+IMPORTARDATOSDINAMICOS(" BAS058";TABLAS!$A$59) | S220: =+IMPORTARDATOSDINAMICOS(" BAS059";TABLAS!$A$59) | AB220: 58 | AC220: 59 | AE220: 058 | AF220: 059
D221: ======> DOSIS 3 (Protegida) | H221: =+GETPIVOTDATA(" BAS060",TABLAS!$A$59) -> 2 | I221: =+GETPIVOTDATA(" BAS061",TABLAS!$A$59) -> 0 | J221: 2 | K221: D+Z2781+Lab(3,D3)+edad 30A-59A+sexo=F+(Lab=G) | R221: =+IMPORTARDATOSDINAMICOS(" BAS060";TABLAS!$A$59) | S221: =+IMPORTARDATOSDINAMICOS(" BAS061";TABLAS!$A$59) | AB221: 60 | AC221: 61 | AE221: 060 | AF221: 061
C222: Vacunación contra la Hepatitis B | D222: ======> DOSIS 1 | H222: =+GETPIVOTDATA(" BAS062",TABLAS!$A$59) -> 0 | I222: =+GETPIVOTDATA(" BAS063",TABLAS!$A$59) -> 5 | J222: 5 | K222: (D+90744+Lab(1,D1)+edad>=30A<=59A) | R222: =+IMPORTARDATOSDINAMICOS(" BAS062";TABLAS!$A$59) | S222: =+IMPORTARDATOSDINAMICOS(" BAS063";TABLAS!$A$59) | AB222: 62 | AC222: 63 | AE222: 062 | AF222: 063
D223: ======> DOSIS 2 | H223: =+GETPIVOTDATA(" BAS064",TABLAS!$A$59) -> 4 | I223: =+GETPIVOTDATA(" BAS065",TABLAS!$A$59) -> 52 | J223: 56 | K223: (D+90744+Lab(2,D2)+edad>=30A<=59A) | R223: =+IMPORTARDATOSDINAMICOS(" BAS064";TABLAS!$A$59) | S223: =+IMPORTARDATOSDINAMICOS(" BAS065";TABLAS!$A$59) | AB223: 64 | AC223: 65 | AE223: 064 | AF223: 065
D224: ======> DOSIS 3 (Protegido) | H224: =+GETPIVOTDATA(" BAS066",TABLAS!$A$59) -> 95 | I224: =+GETPIVOTDATA(" BAS067",TABLAS!$A$59) -> 0 | J224: 95 | K224: (D+90744+Lab(3,D3)+edad>=30A<=59A) | R224: =+IMPORTARDATOSDINAMICOS(" BAS066";TABLAS!$A$59) | S224: =+IMPORTARDATOSDINAMICOS(" BAS067";TABLAS!$A$59) | AB224: 66 | AC224: 67 | AE224: 066 | AF224: 067
C225: Influenza | D225: ======> DOSIS 1 | H225: =+GETPIVOTDATA(" BAS068",TABLAS!$A$59) -> 18 | I225: =+GETPIVOTDATA(" BAS069",TABLAS!$A$59) -> 0 | J225: 18 | K225: 90657/D+lab(D1) | R225: =+IMPORTARDATOSDINAMICOS(" BAS068";TABLAS!$A$59) | S225: =+IMPORTARDATOSDINAMICOS(" BAS069";TABLAS!$A$59) | AB225: 68 | AC225: 69 | AE225: 068 | AF225: 069
B227: SESIONES | D227: usp_TRAMA_BASE_ADULTO_RPT_16_SESIONES
E228: Nº | F228: Part/Benef
... 12 more rows

Sheet Datos (hidden)
B9: ANO | D9: MESES | F9: COD_RED | G9: DESC_RED | H9: CONCATENAR | J9: COD_RED | K9: COD_MIC | L9: DESC_MICRO | M9: CONCATENAR | O9: COD_ESTAB | P9: DESC_ESTAB | Q9: COD_RED | R9: COD_MIC | S9: COD_PROV | T9: COD_DIST | U9: REDMIC | V9: CONCATENAR | X9: COD_PROV | Y9: DESC_PROV | Z9: CONCATENAR | AB9: COD_PROV | AC9: COD_DIST | AD9: DESC_DIST | AE9: PROVDIST | AF9: CONCATENAR
B10: 2024 | D10: 01-Enero | F10: 00 | G10: NO TIENE ASIGNADO NINGUNA RED | H10: =CONCATENATE(F10," - ",G10) -> 00 - NO TIENE ASIGNADO NINGUNA RED | J10: 00 | K10: 00 | L10: NO PERTENECE A NINGUNA MICRORED | M10: =CONCATENATE(J10,K10," - ",L10) -> 0000 - NO PERTENECE A NINGUNA MICRORED | O10: 000000000 | P10: (All) | Q10: 00 | R10: 00 | U10: =CONCATENATE(Q10,R10) -> 0000 | V10: =CONCATENATE(O10," - ",P10) -> 000000000 - (All) | X10: 00 | Y10: (All) | Z10: =CONCATENATE(X10," - ",Y10) -> 00 - (All) | AB10: 01 | AC10: 00 | AD10: (All) | AE10: =CONCATENATE(AB10,AC10) -> 0100 | AF10: =CONCATENATE(AB10,AC10," - ",AD10) -> 0100 - (All)
D11: 02-Febrero | F11: 01 | G11: CUSCO SUR | H11: =CONCATENATE(F11," - ",G11) -> 01 - CUSCO SUR | J11: 00 | K11: 99 | L11: (All) | M11: 0099 - (All) | O11: 000028190 | P11: SAMUE CUSCO | Q11: 00 | R11: 00 | S11: 01 | T11: 01 | U11: =CONCATENATE(Q11,R11) -> 0000 | V11: =CONCATENATE(O11," - ",P11) -> 000028190 - SAMUE CUSCO | X11: 01 | Y11: CUSCO | Z11: =CONCATENATE(X11," - ",Y11) -> 01 - CUSCO | AB11: 01 | AC11: 01 | AD11: CUSCO | AE11: =CONCATENATE(AB11,AC11) -> 0101 | AF11: =CONCATENATE(AB11,AC11," - ",AD11) -> 0101 - CUSCO
D12: 03-Marzo | F12: 02 | G12: CUSCO NORTE | H12: 02 - CUSCO NORTE | J12: 01 | K12: 00 | L12: NO PERTENECE A NINGUNA MICRORED | M12: 0100 - NO PERTENECE A NINGUNA MICRORED | O12: 000002289 | P12: HOSPITAL DE APOYO DEPARTAMENTAL CUSCO | Q12: 00 | R12: 00 | S12: 01 | T12: 01 | U12: 0000 | V12: 000002289 - HOSPITAL DE APOYO DEPARTAMENTAL CUSCO | X12: 02 | Y12: ACOMAYO | Z12: =CONCATENATE(X12," - ",Y12) -> 02 - ACOMAYO | AB12: 01 | AC12: 02 | AD12: CCORCA | AE12: 0102 | AF12: 0102 - CCORCA
D13: 04-Abril | F13: 03 | G13: LA CONVENCION | H13: 03 - LA CONVENCION | J13: 01 | K13: 16 | L13: CUSCO | M13: 0116 - CUSCO | O13: 000002305 | P13: ANTONIO LORENA DEL CUSCO | Q13: 00 | R13: 00 | S13: 01 | T13: 06 | U13: 0000 | V13: 000002305 - ANTONIO LORENA DEL CUSCO | X13: 03 | Y13: ANTA | Z13: 03 - ANTA | AB13: 01 | AC13: 03 | AD13: POROY | AE13: 0103 | AF13: 0103 - POROY
D14: 05-Mayo | F14: 04 | G14: CANAS-CANCHIS-ESPINAR | H14: 04 - CANAS-CANCHIS-ESPINAR | J14: 01 | K14: 03 | L14: PARURO | M14: 0103 - PARURO | O14: 999999999 | P14: (All) | Q14: 00 | R14: 99 | U14: 0099 | V14: 999999999 - (All) | X14: 04 | Y14: CALCA | Z14: 04 - CALCA | AB14: 01 | AC14: 04 | AD14: SAN JERONIMO | AE14: 0104 | AF14: 0104 - SAN JERONIMO
D15: 06-Junio | F15: 05 | G15: KIMBIRI PICHARI | H15: 05 - KIMBIRI PICHARI | J15: 01 | K15: 06 | L15: PAUCARTAMBO | M15: 0106 - PAUCARTAMBO | O15: 000025210 | P15: TUPAC AMARU | Q15: 01 | R15: 00 | S15: 01 | T15: 05 | U15: 0100 | V15: 000025210 - TUPAC AMARU | X15: 05 | Y15: CANAS | Z15: 05 - CANAS | AB15: 01 | AC15: 05 | AD15: SAN SEBASTIAN | AE15: 0105 | AF15: 0105 - SAN SEBASTIAN
D16: 07-Julio | F16: 06 | G16: CHUMBIVILCAS | H16: 06 - CHUMBIVILCAS | J16: 01 | K16: 12 | L16: URCOS | M16: 0112 - URCOS | O16: 000000000 | P16: (All) | Q16: 01 | R16: 03 | U16: 0103 | V16: 000000000 - (All) | X16: 06 | Y16: CANCHIS | Z16: 06 - CANCHIS | AB16: 01 | AC16: 06 | AD16: SANTIAGO | AE16: 0106 | AF16: 0106 - SANTIAGO
D17: 08-Agosto | F17: 99 | G17: (All) | H17: 99 - (All) | J17: 01 | K17: 13 | L17: ACOMAYO | M17: 0113 - ACOMAYO | O17: 000002499 | P17: PARURO | Q17: 01 | R17: 03 | S17: 10 | T17: 01 | U17: 0103 | V17: 000002499 - PARURO | X17: 07 | Y17: CHUMBIVILCAS | Z17: 07 - CHUMBIVILCAS | AB17: 01 | AC17: 07 | AD17: SAYLLA | AE17: 0107 | AF17: 0107 - SAYLLA
D18: 09-Setiembre | J18: 01 | K18: 15 | L18: OCONGATE | M18: 0115 - OCONGATE | O18: 000002500 | P18: ACCHA | Q18: 01 | R18: 03 | S18: 10 | T18: 02 | U18: 0103 | V18: 000002500 - ACCHA | X18: 08 | Y18: ESPINAR | Z18: 08 - ESPINAR | AB18: 01 | AC18: 08 | AD18: WANCHAQ | AE18: 0108 | AF18: 0108 - WANCHAQ
D19: 10-Octubre | J19: 01 | K19: 99 | L19: (All) | M19: 0199 - (All) | O19: 000002501 | P19: CCAPI | Q19: 01 | R19: 03 | S19: 10 | T19: 03 | U19: 0103 | V19: 000002501 - CCAPI | X19: 09 | Y19: LA CONVENCION | Z19: 09 - LA CONVENCION | AB19: 02 | AC19: 00 | AD19: (All) | AE19: 0200 | AF19: 0200 - (All)
D20: 11-Noviembre | F20: EJECUTORAS | J20: 02 | K20: 01 | L20: BELEMPAMPA | M20: 0201 - BELEMPAMPA | O20: 000002502 | P20: CCOYABAMBA | Q20: 01 | R20: 03 | S20: 10 | T20: 03 | U20: 0103 | V20: 000002502 - CCOYABAMBA | X20: 10 | Y20: PARURO | Z20: 10 - PARURO | AB20: 02 | AC20: 01 | AD20: ACOMAYO | AE20: 0201 | AF20: 0201 - ACOMAYO
D21: 12-Diciembre | F21: COD_RED | G21: DESC_RED | H21: CONCATENAR | J21: 02 | K21: 02 | L21: WANCHAQ | M21: 0202 - WANCHAQ | O21: 000002503 | P21: COLCHA | Q21: 01 | R21: 03 | S21: 10 | T21: 04 | U21: 0103 | V21: 000002503 - COLCHA | X21: 11 | Y21: PAUCARTAMBO | Z21: 11 - PAUCARTAMBO | AB21: 02 | AC21: 02 | AD21: ACOPIA | AE21: 0202 | AF21: 0202 - ACOPIA
F22: 01 | G22: HOSPITAL REGIONAL CUSCO | H22: =CONCATENATE(F22," - ",G22) -> 01 - HOSPITAL REGIONAL CUSCO | J22: 02 | K22: 03 | L22: ANTA | M22: 0203 - ANTA | O22: 000002504 | P22: HUANOQUITE | Q22: 01 | R22: 03 | S22: 10 | T22: 05 | U22: 0103 | V22: 000002504 - HUANOQUITE | X22: 12 | Y22: QUISPICANCHI | Z22: 12 - QUISPICANCHI | AB22: 02 | AC22: 03 | AD22: ACOS | AE22: 0203 | AF22: 0203 - ACOS
F23: 02 | G23: HOSPITAL ANTONIO LORENA | H23: =CONCATENATE(F23," - ",G23) -> 02 - HOSPITAL ANTONIO LORENA | J23: 02 | K23: 04 | L23: LIMATAMBO | M23: 0204 - LIMATAMBO | O23: 000002505 | P23: OMACHA | Q23: 01 | R23: 03 | S23: 10 | T23: 06 | U23: 0103 | V23: 000002505 - OMACHA | X23: 13 | Y23: URUBAMBA | Z23: 13 - URUBAMBA | AB23: 02 | AC23: 04 | AD23: MOSOC LLACTA | AE23: 0204 | AF23: 0204 - MOSOC LLACTA
F24: 03 | G24: CUSCO NORTE | H24: 03 - CUSCO NORTE | J24: 02 | K24: 05 | L24: PISAC | M24: 0205 - PISAC | O24: 000002506 | P24: ANTAPALLPA | Q24: 01 | R24: 03 | S24: 10 | T24: 06 | U24: 0103 | V24: 000002506 - ANTAPALLPA | AB24: 02 | AC24: 05 | AD24: POMACANCHI | AE24: 0205 | AF24: 0205 - POMACANCHI
F25: 04 | G25: CUSCO SUR | H25: 04 - CUSCO SUR | J25: 02 | K25: 06 | L25: CALCA | M25: 0206 - CALCA | O25: 000002507 | P25: PACCARECTAMBO | Q25: 01 | R25: 03 | S25: 10 | T25: 07 | U25: 0103 | V25: 000002507 - PACCARECTAMBO | AB25: 02 | AC25: 06 | AD25: RONDOCAN | AE25: 0206 | AF25: 0206 - RONDOCAN
F26: 05 | G26: LA CONVENCION | H26: 05 - LA CONVENCION | J26: 02 | K26: 07 | L26: URUBAMBA | M26: 0207 - URUBAMBA | O26: 000002509 | P26: YAURISQUE | Q26: 01 | R26: 03 | S26: 10 | T26: 09 | U26: 0103 | V26: 000002509 - YAURISQUE | AB26: 02 | AC26: 07 | AD26: SANGARARA | AE26: 0207 | AF26: 0207 - SANGARARA
F27: 06 | G27: HOSPITAL QUILLABAMBA | H27: 06 - HOSPITAL QUILLABAMBA | J27: 02 | K27: 08 | L27: YANATILE | M27: 0208 - YANATILE | O27: 000006978 | P27: CCOCHIRIHUAY | Q27: 01 | R27: 03 | S27: 10 | T27: 04 | U27: 0103 | V27: 000006978 - CCOCHIRIHUAY | AB27: 03 | AC27: 00 | AD27: (All) | AE27: 0300 | AF27: 0300 - (All)
F28: 07 | G28: CANAS CANCHIS ESPINAR | H28: 07 - CANAS CANCHIS ESPINAR | J28: 02 | K28: 09 | L28: SIETE CUARTONES | M28: 0209 - SIETE CUARTONES | O28: 000007147 | P28: PUESTO DE SALUD DE HUASQUILLAY | Q28: 01 | R28: 03 | S28: 10 | T28: 06 | U28: 0103 | V28: 000007147 - PUESTO DE SALUD DE HUASQUILLAY | AB28: 03 | AC28: 01 | AD28: ANTA | AE28: 0301 | AF28: 0301 - ANTA
F29: 08 | G29: HOSPITAL SICUANI | H29: 08 - HOSPITAL SICUANI | J29: 02 | K29: 99 | L29: (All) | M29: 0299 - (All) | O29: 000012924 | P29: SAHUA SAHUA | Q29: 01 | R29: 03 | S29: 10 | T29: 06 | U29: 0103 | V29: 000012924 - SAHUA SAHUA | AB29: 03 | AC29: 02 | AD29: ANCAHUASI | AE29: 0302 | AF29: 0302 - ANCAHUASI
F30: 09 | G30: HOSPITAL ESPINAR | H30: 09 - HOSPITAL ESPINAR | J30: 03 | K30: 00 | L30: NO PERTENECE A NINGUNA MICRORED | M30: 0300 - NO PERTENECE A NINGUNA MICRORED | O30: 000000000 | P30: (All) | Q30: 01 | R30: 06 | U30: 0106 | V30: 000000000 - (All) | AB30: 03 | AC30: 03 | AD30: CACHIMAYO | AE30: 0303 | AF30: 0303 - CACHIMAYO
F31: 10 | G31: KIMBIRI PICHARI | H31: 10 - KIMBIRI PICHARI | J31: 03 | K31: 01 | L31: SANTA ANA | M31: 0301 - SANTA ANA | O31: 000002510 | P31: PAUCARTAMBO | Q31: 01 | R31: 06 | S31: 11 | T31: 01 | U31: 0106 | V31: 000002510 - PAUCARTAMBO | AB31: 03 | AC31: 04 | AD31: CHINCHAYPUJIO | AE31: 0304 | AF31: 0304 - CHINCHAYPUJIO
F32: 11 | G32: CHUMBIVILCAS | H32: 11 - CHUMBIVILCAS | J32: 03 | K32: 02 | L32: MARANURA | M32: 0302 - MARANURA | O32: 000002511 | P32: MOLLOMARCA | Q32: 01 | R32: 06 | S32: 11 | T32: 01 | U32: 0106 | V32: 000002511 - MOLLOMARCA | AB32: 03 | AC32: 05 | AD32: HUAROCONDO | AE32: 0305 | AF32: 0305 - HUAROCONDO
F33: 99 | G33: (ALL) | H33: =CONCATENATE(F33," - ",G33) -> 99 - (ALL) | J33: 03 | K33: 03 | L33: QUELLOUNO | M33: 0303 - QUELLOUNO | O33: 000002512 | P33: CAICAY | Q33: 01 | R33: 06 | S33: 11 | T33: 02 | U33: 0106 | V33: 000002512 - CAICAY | AB33: 03 | AC33: 06 | AD33: LIMATAMBO | AE33: 0306 | AF33: 0306 - LIMATAMBO
J34: 03 | K34: 04 | L34: KITENI | M34: 0304 - KITENI | O34: 000002513 | P34: HUASAC | Q34: 01 | R34: 06 | S34: 11 | T34: 02 | U34: 0106 | V34: 000002513 - HUASAC | AB34: 03 | AC34: 07 | AD34: MOLLEPATA | AE34: 0307 | AF34: 0307 - MOLLEPATA
J35: 03 | K35: 05 | L35: KAMISEA | M35: 0305 - KAMISEA | O35: 000002514 | P35: CHALLABAMBA | Q35: 01 | R35: 06 | S35: 11 | T35: 03 | U35: 0106 | V35: 000002514 - CHALLABAMBA | AB35: 03 | AC35: 08 | AD35: PUCYURA | AE35: 0308 | AF35: 0308 - PUCYURA
J36: 03 | K36: 06 | L36: PUCYURA | M36: 0306 - PUCYURA | O36: 000002516 | P36: COLQUEPATA | Q36: 01 | R36: 06 | S36: 11 | T36: 04 | U36: 0106 | V36: 000002516 - COLQUEPATA | AB36: 03 | AC36: 09 | AD36: ZURITE | AE36: 0309 | AF36: 0309 - ZURITE
J37: 03 | K37: 07 | L37: PALMA REAL | M37: 0307 - PALMA REAL | O37: 000002517 | P37: PICHIHUA COLQUEPATA | Q37: 01 | R37: 06 | S37: 11 | T37: 04 | U37: 0106 | V37: 000002517 - PICHIHUA COLQUEPATA | AB37: 04 | AC37: 00 | AD37: (All) | AE37: 0400 | AF37: 0400 - (All)
J38: 03 | K38: 99 | L38: (All) | M38: 0399 - (All) | O38: 000002518 | P38: VIZCOCHONI | Q38: 01 | R38: 06 | S38: 11 | T38: 04 | U38: 0106 | V38: 000002518 - VIZCOCHONI | AB38: 04 | AC38: 01 | AD38: CALCA | AE38: 0401 | AF38: 0401 - CALCA
J39: 04 | K39: 00 | L39: NO PERTENECE A NINGUNA MICRORED | M39: 0400 - NO PERTENECE A NINGUNA MICRORED | O39: 000002519 | P39: AYRE | Q39: 01 | R39: 06 | S39: 11 | T39: 04 | U39: 0106 | V39: 000002519 - AYRE | AB39: 04 | AC39: 02 | AD39: COYA | AE39: 0402 | AF39: 0402 - COYA
J40: 04 | K40: 01 | L40: YANAOCA | M40: 0401 - YANAOCA | O40: 000002520 | P40: HUANCARANI | Q40: 01 | R40: 06 | S40: 11 | T40: 05 | U40: 0106 | V40: 000002520 - HUANCARANI | AB40: 04 | AC40: 03 | AD40: LAMAY | AE40: 0403 | AF40: 0403 - LAMAY
J41: 04 | K41: 02 | L41: EL DESCANSO | M41: 0402 - EL DESCANSO | O41: 000002521 | P41: PILCOPATA | Q41: 01 | R41: 06 | S41: 11 | T41: 06 | U41: 0106 | V41: 000002521 - PILCOPATA | AB41: 04 | AC41: 04 | AD41: LARES | AE41: 0404 | AF41: 0404 - LARES
J42: 04 | K42: 03 | L42: COMBAPATA | M42: 0403 - COMBAPATA | O42: 000002522 | P42: PATRIA | Q42: 01 | R42: 06 | S42: 11 | T42: 06 | U42: 0106 | V42: 000002522 - PATRIA | AB42: 04 | AC42: 05 | AD42: PISAC | AE42: 0405 | AF42: 0405 - PISAC
J43: 04 | K43: 04 | L43: TECHO OBRERO | M43: 0404 - TECHO OBRERO | O43: 000006979 | P43: TOCRA | Q43: 01 | R43: 06 | S43: 11 | T43: 04 | U43: 0106 | V43: 000006979 - TOCRA | AB43: 04 | AC43: 06 | AD43: SAN SALVADOR | AE43: 0406 | AF43: 0406 - SAN SALVADOR
J44: 04 | K44: 05 | L44: PAMPAPHALLA | M44: 0405 - PAMPAPHALLA | O44: 000010077 | P44: PAUCARTAMBO -ESSALUD | Q44: 01 | R44: 06 | S44: 11 | T44: 01 | U44: 0106 | V44: 000010077 - PAUCARTAMBO -ESSALUD | AB44: 04 | AC44: 07 | AD44: TARAY | AE44: 0407 | AF44: 0407 - TARAY
J45: 04 | K45: 06 | L45: YAURI | M45: 0406 - YAURI | O45: 000033777 | P45: MENTAL COMUNITARIO VIRGEN DEL ROSARIO | Q45: 01 | R45: 06 | S45: 11 | T45: 01 | U45: 0106 | V45: 000033777 - MENTAL COMUNITARIO VIRGEN DEL ROSARIO | AB45: 04 | AC45: 08 | AD45: YANATILE | AE45: 0408 | AF45: 0408 - YANATILE
J46: 04 | K46: 99 | L46: (All) | M46: 0499 - (All) | O46: 000000000 | P46: (All) | Q46: 01 | R46: 12 | U46: 0112 | V46: 000000000 - (All) | AB46: 05 | AC46: 00 | AD46: (All) | AE46: 0500 | AF46: 0500 - (All)
J47: 05 | K47: 00 | L47: NO PERTENECE A NINGUNA MICRORED | M47: 0500 - NO PERTENECE A NINGUNA MICRORED | O47: 000002523 | P47: URCOS | Q47: 01 | R47: 12 | S47: 12 | T47: 01 | U47: 0112 | V47: 000002523 - URCOS | AB47: 05 | AC47: 01 | AD47: YANAOCA | AE47: 0501 | AF47: 0501 - YANAOCA
J48: 05 | K48: 01 | L48: KIMBIRI | M48: 0501 - KIMBIRI | O48: 000002525 | P48: ANDAHUAYLILLAS | Q48: 01 | R48: 12 | S48: 12 | T48: 02 | U48: 0112 | V48: 000002525 - ANDAHUAYLILLAS | AB48: 05 | AC48: 02 | AD48: CHECCA | AE48: 0502 | AF48: 0502 - CHECCA
J49: 05 | K49: 02 | L49: PICHARI | M49: 0502 - PICHARI | O49: 000002530 | P49: CUSIPATA | Q49: 01 | R49: 12 | S49: 12 | T49: 06 | U49: 0112 | V49: 000002530 - CUSIPATA | AB49: 05 | AC49: 03 | AD49: KUNTURKANKI | AE49: 0503 | AF49: 0503 - KUNTURKANKI
J50: 05 | K50: 99 | L50: (All) | M50: 0599 - (All) | O50: 000002532 | P50: HUARO | Q50: 01 | R50: 12 | S50: 12 | T50: 07 | U50: 0112 | V50: 000002532 - HUARO | AB50: 05 | AC50: 04 | AD50: LANGUI | AE50: 0504 | AF50: 0504 - LANGUI
J51: 06 | K51: 00 | L51: NO PERTENECE A NINGUNA MICRORED | M51: 0600 - NO PERTENECE A NINGUNA MICRORED | O51: 000002533 | P51: URPAY | Q51: 01 | R51: 12 | S51: 12 | T51: 07 | U51: 0112 | V51: 000002533 - URPAY | AB51: 05 | AC51: 05 | AD51: LAYO | AE51: 0505 | AF51: 0505 - LAYO
J52: 06 | K52: 09 | L52: SANTO TOMAS | M52: 0609 - SANTO TOMAS | O52: 000002534 | P52: LUCRE | Q52: 01 | R52: 12 | S52: 12 | T52: 08 | U52: 0112 | V52: 000002534 - LUCRE | AB52: 05 | AC52: 06 | AD52: PAMPAMARCA | AE52: 0506 | AF52: 0506 - PAMPAMARCA
J53: 06 | K53: 01 | L53: LIVITACA | M53: 0601 - LIVITACA | O53: 000002537 | P53: OROPESA | Q53: 01 | R53: 12 | S53: 12 | T53: 11 | U53: 0112 | V53: 000002537 - OROPESA | AB53: 05 | AC53: 07 | AD53: QUEHUE | AE53: 0507 | AF53: 0507 - QUEHUE
J54: 06 | K54: 99 | L54: (All) | M54: 0699 - (All) | O54: 000002538 | P54: QUIQUIJANA | Q54: 01 | R54: 12 | S54: 12 | T54: 12 | U54: 0112 | V54: 000002538 - QUIQUIJANA | AB54: 05 | AC54: 08 | AD54: TUPAC AMARU | AE54: 0508 | AF54: 0508 - TUPAC AMARU
J55: 99 | K55: 99 | L55: (All) | M55: 9999 - (All) | O55: 000002539 | P55: CCOLCA | Q55: 01 | R55: 12 | S55: 12 | T55: 12 | U55: 0112 | V55: 000002539 - CCOLCA | AB55: 06 | AC55: 00 | AD55: (All) | AE55: 0600 | AF55: 0600 - (All)
O56: 000006980 | P56: CHILLIHUANI | Q56: 01 | R56: 12 | S56: 12 | T56: 06 | U56: 0112 | V56: 000006980 - CHILLIHUANI | AB56: 06 | AC56: 01 | AD56: SICUANI | AE56: 0601 | AF56: 0601 - SICUANI
O57: 000008911 | P57: HUARA HUARA | Q57: 01 | R57: 12 | S57: 12 | T57: 05 | U57: 0112 | V57: 000008911 - HUARA HUARA | AB57: 06 | AC57: 02 | AD57: CHECACUPE | AE57: 0602 | AF57: 0602 - CHECACUPE
O58: 000011747 | P58: POSTA MEDICA POLICIAL PUCUTO | Q58: 01 | R58: 12 | S58: 12 | T58: 07 | U58: 0112 | V58: 000011747 - POSTA MEDICA POLICIAL PUCUTO | AB58: 06 | AC58: 03 | AD58: COMBAPATA | AE58: 0603 | AF58: 0603 - COMBAPATA
O59: 000026385 | P59: URCOS - ESSALUD | Q59: 01 | R59: 12 | S59: 12 | T59: 01 | U59: 0112 | V59: 000026385 - URCOS - ESSALUD | AB59: 06 | AC59: 04 | AD59: MARANGANI | AE59: 0604 | AF59: 0604 - MARANGANI
O60: 000030708 | P60: MENTAL COMUNITARIO HUARO | Q60: 01 | R60: 12 | S60: 12 | T60: 07 | U60: 0112 | V60: 000030708 - MENTAL COMUNITARIO HUARO | AB60: 06 | AC60: 05 | AD60: PITUMARCA | AE60: 0605 | AF60: 0605 - PITUMARCA
O61: 000000000 | P61: (All) | Q61: 01 | R61: 13 | U61: 0113 | V61: 000000000 - (All) | AB61: 06 | AC61: 06 | AD61: SAN PABLO | AE61: 0606 | AF61: 0606 - SAN PABLO
O62: 000002317 | P62: ACOMAYO | Q62: 01 | R62: 13 | S62: 02 | T62: 01 | U62: 0113 | V62: 000002317 - ACOMAYO | AB62: 06 | AC62: 07 | AD62: SAN PEDRO | AE62: 0607 | AF62: 0607 - SAN PEDRO
O63: 000002318 | P63: ACOPIA | Q63: 01 | R63: 13 | S63: 02 | T63: 02 | U63: 0113 | V63: 000002318 - ACOPIA | AB63: 06 | AC63: 08 | AD63: TINTA | AE63: 0608 | AF63: 0608 - TINTA
O64: 000002319 | P64: ACOS | Q64: 01 | R64: 13 | S64: 02 | T64: 03 | U64: 0113 | V64: 000002319 - ACOS | AB64: 07 | AC64: 00 | AD64: (All) | AE64: 0700 | AF64: 0700 - (All)
O65: 000002321 | P65: POMACANCHI | Q65: 01 | R65: 13 | S65: 02 | T65: 05 | U65: 0113 | V65: 000002321 - POMACANCHI | AB65: 07 | AC65: 01 | AD65: SANTO TOMAS | AE65: 0701 | AF65: 0701 - SANTO TOMAS
O66: 000002322 | P66: SAN JUAN DE POMACANCHI | Q66: 01 | R66: 13 | S66: 02 | T66: 05 | U66: 0113 | V66: 000002322 - SAN JUAN DE POMACANCHI | AB66: 07 | AC66: 02 | AD66: CAPACMARCA | AE66: 0702 | AF66: 0702 - CAPACMARCA
O67: 000002324 | P67: PUESTO DE SALUD SANGARARA | Q67: 01 | R67: 13 | S67: 02 | T67: 07 | U67: 0113 | V67: 000002324 - PUESTO DE SALUD SANGARARA | AB67: 07 | AC67: 03 | AD67: CHAMACA | AE67: 0703 | AF67: 0703 - CHAMACA
O68: 000002325 | P68: PUESTO DE SALUD MARCACONGA | Q68: 01 | R68: 13 | S68: 02 | T68: 07 | U68: 0113 | V68: 000002325 - PUESTO DE SALUD MARCACONGA | AB68: 07 | AC68: 04 | AD68: COLQUEMARCA | AE68: 0704 | AF68: 0704 - COLQUEMARCA
O69: 000002508 | P69: PILLPINTO | Q69: 01 | R69: 13 | S69: 10 | T69: 08 | U69: 0113 | V69: 000002508 - PILLPINTO | AB69: 07 | AC69: 05 | AD69: LIVITACA | AE69: 0705 | AF69: 0705 - LIVITACA
O70: 000010076 | P70: ACOMAYO - ESSALUD | Q70: 01 | R70: 13 | S70: 02 | T70: 01 | U70: 0113 | V70: 000010076 - ACOMAYO - ESSALUD | AB70: 07 | AC70: 06 | AD70: LLUSCO | AE70: 0706 | AF70: 0706 - LLUSCO
N71: 0 | O71: 000012926 | P71: SANTA LUCIA | Q71: 01 | R71: 13 | S71: 02 | T71: 05 | U71: 0113 | V71: 000012926 - SANTA LUCIA | AB71: 07 | AC71: 07 | AD71: QUIÑOTA | AE71: 0707 | AF71: 0707 - QUIÑOTA
N72: 1 | O72: 000000000 | P72: (All) | Q72: 01 | R72: 15 | U72: 0115 | V72: 000000000 - (All) | AB72: 07 | AC72: 08 | AD72: VELILLE | AE72: 0708 | AF72: 0708 - VELILLE
N73: 2 | O73: 000002524 | P73: PAMPACAMARA | Q73: 01 | R73: 15 | S73: 12 | T73: 05 | U73: 0115 | V73: 000002524 - PAMPACAMARA | AB73: 08 | AC73: 00 | AD73: (All) | AE73: 0800 | AF73: 0800 - (All)
N74: 3 | O74: 000002526 | P74: QUINCE MIL | Q74: 01 | R74: 15 | S74: 12 | T74: 03 | U74: 0115 | V74: 000002526 - QUINCE MIL | AB74: 08 | AC74: 01 | AD74: ESPINAR | AE74: 0801 | AF74: 0801 - ESPINAR
N75: 4 | O75: 000002527 | P75: CCARHUAYO | Q75: 01 | R75: 15 | S75: 12 | T75: 04 | U75: 0115 | V75: 000002527 - CCARHUAYO | AB75: 08 | AC75: 02 | AD75: CONDOROMA | AE75: =CONCATENATE(AB75,AC75) -> 0802 | AF75: =CONCATENATE(AB75,AC75," - ",AD75) -> 0802 - CONDOROMA
N76: 5 | O76: 000002528 | P76: CCATCCA | Q76: 01 | R76: 15 | S76: 12 | T76: 05 | U76: 0115 | V76: 000002528 - CCATCCA | AB76: 08 | AC76: 03 | AD76: COPORAQUE | AE76: 0803 | AF76: 0803 - COPORAQUE
N77: 6 | O77: 000002529 | P77: KCAURY | Q77: 01 | R77: 15 | S77: 12 | T77: 05 | U77: 0115 | V77: 000002529 - KCAURY | AB77: 08 | AC77: 04 | AD77: OCORURO | AE77: 0804 | AF77: 0804 - OCORURO
N78: 7 | O78: 000002535 | P78: MARCAPATA | Q78: 01 | R78: 15 | S78: 12 | T78: 09 | U78: 0115 | V78: 000002535 - MARCAPATA | AB78: 08 | AC78: 05 | AD78: PALLPATA | AE78: 0805 | AF78: 0805 - PALLPATA
N79: 9 | O79: 000002536 | P79: OCONGATE | Q79: 01 | R79: 15 | S79: 12 | T79: 10 | U79: 0115 | V79: 000002536 - OCONGATE | AB79: 08 | AC79: 06 | AD79: PICHIGUA | AE79: 0806 | AF79: 0806 - PICHIGUA
N80: 10 | O80: 000006977 | P80: TINKI | Q80: 01 | R80: 15 | S80: 12 | T80: 10 | U80: =CONCATENATE(Q80,R80) -> 0115 | V80: =CONCATENATE(O80," - ",P80) -> 000006977 - TINKI | AB80: 08 | AC80: 07 | AD80: SUYCKUTAMBO | AE80: 0807 | AF80: 0807 - SUYCKUTAMBO
N81: 11 | O81: 000007110 | P81: INCACANCHA | Q81: 01 | R81: 15 | S81: 12 | T81: 09 | U81: 0115 | V81: 000007110 - INCACANCHA | AB81: 08 | AC81: 08 | AD81: ALTO PICHIGUA | AE81: 0808 | AF81: 0808 - ALTO PICHIGUA
N82: 12 | O82: 000012931 | P82: CHICHINA | Q82: 01 | R82: 15 | S82: 12 | T82: 05 | U82: 0115 | V82: 000012931 - CHICHINA | AB82: 09 | AC82: 00 | AD82: (All) | AE82: 0900 | AF82: 0900 - (All)
N83: 13 | O83: 000016335 | P83: CCAPANA | Q83: 01 | R83: 15 | S83: 12 | T83: 05 | U83: 0115 | V83: 000016335 - CCAPANA | AB83: 09 | AC83: 01 | AD83: SANTA ANA | AE83: 0901 | AF83: 0901 - SANTA ANA
N84: 0 | O84: 000000000 | P84: (All) | Q84: 01 | R84: 16 | U84: 0116 | V84: 000000000 - (All) | AB84: 09 | AC84: 02 | AD84: ECHARATE | AE84: 0902 | AF84: 0902 - ECHARATE
N85: 1 | O85: 000002300 | P85: SAN JERONIMO | Q85: 01 | R85: 16 | S85: 01 | T85: 04 | U85: 0116 | V85: 000002300 - SAN JERONIMO | AB85: 09 | AC85: 03 | AD85: HUAYOPATA | AE85: 0903 | AF85: 0903 - HUAYOPATA
N86: 2 | O86: 000002301 | P86: SAN SEBASTIAN | Q86: 01 | R86: 16 | S86: 01 | T86: 05 | U86: 0116 | V86: 000002301 - SAN SEBASTIAN | AB86: 09 | AC86: 04 | AD86: MARANURA | AE86: 0904 | AF86: 0904 - MARANURA
N87: 3 | O87: 000002303 | P87: SANTA ROSA | Q87: 01 | R87: 16 | S87: 01 | T87: 05 | U87: 0116 | V87: 000002303 - SANTA ROSA | AB87: 09 | AC87: 05 | AD87: OCOBAMBA | AE87: 0905 | AF87: 0905 - OCOBAMBA
N88: 4 | O88: 000002314 | P88: SAYLLA | Q88: 01 | R88: 16 | S88: 01 | T88: 07 | U88: 0116 | V88: 000002314 - SAYLLA | AB88: 09 | AC88: 06 | AD88: QUELLOUNO | AE88: 0906 | AF88: 0906 - QUELLOUNO
N89: 5 | O89: 000002323 | P89: RONDOCAN | Q89: 01 | R89: 16 | S89: 02 | T89: 06 | U89: 0116 | V89: 000002323 - RONDOCAN | AB89: 09 | AC89: 07 | AD89: KIMBIRI | AE89: 0907 | AF89: 0907 - KIMBIRI
N90: 6 | O90: 000007699 | P90: CONCHACALLE | Q90: 01 | R90: 16 | S90: 01 | T90: 04 | U90: 0116 | V90: 000007699 - CONCHACALLE | AB90: 09 | AC90: 08 | AD90: SANTA TERESA | AE90: 0908 | AF90: 0908 - SANTA TERESA
N91: 7 | O91: 000010065 | P91: SAN SEBASTIAN ESSALUD | Q91: 01 | R91: 16 | S91: 01 | T91: 05 | U91: 0116 | V91: 000010065 - SAN SEBASTIAN ESSALUD | AB91: 09 | AC91: 09 | AD91: VILCABAMBA | AE91: 0909 | AF91: 0909 - VILCABAMBA
N92: 8 | O92: 000011743 | P92: POLICIAL "SANTA ROSA" CUSCO | Q92: 01 | R92: 16 | S92: 01 | T92: 05 | U92: 0116 | V92: 000011743 - POLICIAL "SANTA ROSA" CUSCO | AB92: 09 | AC92: 10 | AD92: PICHARI | AE92: 0910 | AF92: 0910 - PICHARI
N93: 9 | O93: 000018926 | P93: ESTABLECIMIENTO PENITENCIARIO CUSCO VARONES | Q93: 01 | R93: 16 | S93: 01 | T93: 04 | U93: 0116 | V93: 000018926 - ESTABLECIMIENTO PENITENCIARIO CUSCO VARONES | AB93: 09 | AC93: 11 | AD93: INKAWASI | AE93: 0911 | AF93: 0911 - INKAWASI
N94: 10 | O94: 000021187 | P94: ESTABLECIMIENTO PENITENCIARIO CUSCO MUJERES | Q94: 01 | R94: 16 | S94: 01 | T94: 04 | U94: 0116 | V94: 000021187 - ESTABLECIMIENTO PENITENCIARIO CUSCO MUJERES | AB94: 09 | AC94: 12 | AD94: VILLA VIRGEN | AE94: 0912 | AF94: 0912 - VILLA VIRGEN
N95: 0 | O95: 000026181 | P95: MENTAL SAN SEBASTIAN | Q95: 01 | R95: 16 | S95: 01 | T95: 05 | U95: 0116 | V95: 000026181 - MENTAL SAN SEBASTIAN | AB95: 09 | AC95: 13 | AD95: VILLA KINTIARINA | AE95: 0913 | AF95: 0913 - VILLA KINTIARINA
N96: 1 | O96: 000030727 | P96: PATRÓN SAN SEBASTIAN | Q96: 01 | R96: 16 | S96: 01 | T96: 04 | U96: 0116 | V96: 000030727 - PATRÓN SAN SEBASTIAN | AB96: 09 | AC96: 14 | AD96: MEGANTONI | AE96: 0914 | AF96: 0914 - MEGANTONI
N97: 2 | O97: 999999999 | P97: (All) | Q97: 01 | R97: 99 | U97: 0199 | V97: 999999999 - (All) | AB97: 09 | AC97: 15 | AD97: KUMPIRUSHIATO | AE97: 0915 | AF97: 0915 - KUMPIRUSHIATO
N98: 3 | O98: 000000000 | P98: (All) | Q98: 02 | R98: 01 | U98: 0201 | V98: 000000000 - (All) | AB98: 09 | AC98: 16 | AD98: CIELO PUNCO | AE98: 0916 | AF98: 0916 - CIELO PUNCO
O99: 000002292 | P99: INDEPENDENCIA | Q99: 02 | R99: 01 | S99: 01 | T99: 01 | U99: 0201 | V99: 000002292 - INDEPENDENCIA | AB99: 09 | AC99: 17 | AD99: MANITEA | AE99: 0917 | AF99: 0917 - MANITEA
N100: 4 | O100: 000002297 | P100: CCORCCA | Q100: 02 | R100: 01 | S100: 01 | T100: 02 | U100: 0201 | V100: 000002297 - CCORCCA | AB100: 09 | AC100: 18 | AD100: UNION ASHANINKA | AE100: 0918 | AF100: 0918 - UNION ASHANINKA
N101: 5 | O101: 000002306 | P101: BELEMPAMPA | Q101: 02 | R101: 01 | S101: 01 | T101: 06 | U101: 0201 | V101: 000002306 - BELEMPAMPA | AB101: 09 | AC101: 00 | AD101: (All) | AE101: 0900 | AF101: 0900 - (All)
N102: 6 | O102: 000002308 | P102: ZARZUELA ALTA | Q102: 02 | R102: 01 | S102: 01 | T102: 06 | U102: 0201 | V102: 000002308 - ZARZUELA ALTA | AB102: 10 | AC102: 01 | AD102: PARURO | AE102: 1001 | AF102: 1001 - PARURO
O103: 000002309 | P103: DIGNIDAD NACIONAL | Q103: 02 | R103: 01 | S103: 01 | T103: 06 | U103: 0201 | V103: 000002309 - DIGNIDAD NACIONAL | AB103: 10 | AC103: 02 | AD103: ACCHA | AE103: 1002 | AF103: 1002 - ACCHA
N104: 7 | O104: 000002313 | P104: OCCOPATA | Q104: 02 | R104: 01 | S104: 01 | T104: 06 | U104: 0201 | V104: 000002313 - OCCOPATA | AB104: 10 | AC104: 03 | AD104: CCAPI | AE104: 1003 | AF104: 1003 - CCAPI
N105: 8 | O105: 000010067 | P105: C.M. SANTIAGO ESSALUD | Q105: 02 | R105: 01 | S105: 01 | T105: 06 | U105: 0201 | V105: 000010067 - C.M. SANTIAGO ESSALUD | AB105: 10 | AC105: 04 | AD105: COLCHA | AE105: 1004 | AF105: 1004 - COLCHA
N106: 9 | O106: 000010920 | P106: QUINTA BRIGADA DE MONTAÑA | Q106: 02 | R106: 01 | S106: 01 | T106: 06 | U106: 0201 | V106: 000010920 - QUINTA BRIGADA DE MONTAÑA | AB106: 10 | AC106: 05 | AD106: HUANOQUITE | AE106: 1005 | AF106: 1005 - HUANOQUITE
N107: 10 | O107: 000026182 | P107: MENTAL SANTIAGO | Q107: 02 | R107: 01 | S107: 01 | T107: 06 | U107: 0201 | V107: 000026182 - MENTAL SANTIAGO | AB107: 10 | AC107: 06 | AD107: OMACHA | AE107: 1006 | AF107: 1006 - OMACHA
N108: 11 | O108: 000000000 | P108: (All) | Q108: 02 | R108: 02 | U108: 0202 | V108: 000000000 - (All) | AB108: 10 | AC108: 07 | AD108: PACCARITAMBO | AE108: 1007 | AF108: 1007 - PACCARITAMBO
N109: 0 | O109: 000002302 | P109: CCORAO | Q109: 02 | R109: 02 | S109: 01 | T109: 05 | U109: 0202 | V109: 000002302 - CCORAO | AB109: 10 | AC109: 08 | AD109: PILLPINTO | AE109: 1008 | AF109: 1008 - PILLPINTO
N110: 1 | O110: 000002307 | P110: MANCO CAPAC | Q110: 02 | R110: 02 | S110: 01 | T110: 06 | U110: 0202 | V110: 000002307 - MANCO CAPAC | AB110: 10 | AC110: 09 | AD110: YAURISQUE | AE110: 1009 | AF110: 1009 - YAURISQUE
O111: 000002310 | P111: CHOCCO | Q111: 02 | R111: 02 | S111: 01 | T111: 06 | U111: 0202 | V111: 000002310 - CHOCCO | AB111: 11 | AC111: 00 | AD111: (All) | AE111: 1100 | AF111: 1100 - (All)
O112: 000002315 | P112: WANCHAQ | Q112: 02 | R112: 02 | S112: 01 | T112: 08 | U112: 0202 | V112: 000002315 - WANCHAQ | AB112: 11 | AC112: 01 | AD112: PAUCARTAMBO | AE112: 1101 | AF112: 1101 - PAUCARTAMBO
N113: 2 | O113: 000002316 | P113: TTIO | Q113: 02 | R113: 02 | S113: 01 | T113: 08 | U113: 0202 | V113: 000002316 - TTIO | AB113: 11 | AC113: 02 | AD113: CAICAY | AE113: 1102 | AF113: 1102 - CAICAY
N114: 3 | O114: 000010041 | P114: ADOLFO GUEVARA VELASCO | Q114: 02 | R114: 02 | S114: 01 | T114: 08 | U114: 0202 | V114: 000010041 - ADOLFO GUEVARA VELASCO | AB114: 11 | AC114: 03 | AD114: CHALLABAMBA | AE114: 1103 | AF114: 1103 - CHALLABAMBA
N115: 4 | O115: 000026183 | P115: METROPOLITANO | Q115: 02 | R115: 02 | S115: 01 | T115: 08 | U115: 0202 | V115: 000026183 - METROPOLITANO | AB115: 11 | AC115: 04 | AD115: COLQUEPATA | AE115: 1104 | AF115: 1104 - COLQUEPATA
N116: 5 | O116: 000030730 | P116: PATRON SANTIAGO | Q116: 02 | R116: 02 | S116: 01 | T116: 08 | U116: 0202 | V116: 000030730 - PATRON SANTIAGO | AB116: 11 | AC116: 05 | AD116: HUANCARANI | AE116: 1105 | AF116: 1105 - HUANCARANI
N117: 6 | O117: 000000000 | P117: (All) | Q117: 02 | R117: 03 | U117: 0203 | V117: 000000000 - (All) | AB117: 11 | AC117: 06 | AD117: KOSÑIPATA | AE117: 1106 | AF117: 1106 - KOSÑIPATA
N118: 7 | O118: 000002326 | P118: ANTA | Q118: 02 | R118: 03 | S118: 03 | T118: 01 | U118: 0203 | V118: 000002326 - ANTA | AB118: 12 | AC118: 00 | AD118: (All) | AE118: 1200 | AF118: 1200 - (All)
N119: 0 | O119: 000002327 | P119: CHACAN | Q119: 02 | R119: 03 | S119: 03 | T119: 01 | U119: 0203 | V119: 000002327 - CHACAN | AB119: 12 | AC119: 01 | AD119: URCOS | AE119: 1201 | AF119: 1201 - URCOS
N120: 1 | O120: 000002328 | P120: COMPONE | Q120: 02 | R120: 03 | S120: 03 | T120: 01 | U120: 0203 | V120: 000002328 - COMPONE | AB120: 12 | AC120: 02 | AD120: ANDAHUAYLILLAS | AE120: 1202 | AF120: 1202 - ANDAHUAYLILLAS
N121: 2 | O121: 000002329 | P121: CONCHACALLA | Q121: 02 | R121: 03 | S121: 03 | T121: 01 | U121: 0203 | V121: 000002329 - CONCHACALLA | AB121: 12 | AC121: 03 | AD121: CAMANTI | AE121: 1203 | AF121: 1203 - CAMANTI
N122: 3 | O122: 000002330 | P122: ANCAHUASI | Q122: 02 | R122: 03 | S122: 03 | T122: 02 | U122: 0203 | V122: 000002330 - ANCAHUASI | AB122: 12 | AC122: 04 | AD122: CCARHUAYO | AE122: 1204 | AF122: 1204 - CCARHUAYO
N123: 4 | O123: 000002331 | P123: CACHIMAYO | Q123: 02 | R123: 03 | S123: 03 | T123: 03 | U123: 0203 | V123: 000002331 - CACHIMAYO | AB123: 12 | AC123: 05 | AD123: CCATCA | AE123: 1205 | AF123: 1205 - CCATCA
N124: 5 | O124: 000002332 | P124: CHINCHAYPUJIO | Q124: 02 | R124: 03 | S124: 03 | T124: 04 | U124: 0203 | V124: 000002332 - CHINCHAYPUJIO | AB124: 12 | AC124: 06 | AD124: CUSIPATA | AE124: 1206 | AF124: 1206 - CUSIPATA
N125: 6 | O125: 000002333 | P125: HUAROCONDO | Q125: 02 | R125: 03 | S125: 03 | T125: 05 | U125: 0203 | V125: 000002333 - HUAROCONDO | AB125: 12 | AC125: 07 | AD125: HUARO | AE125: 1207 | AF125: 1207 - HUARO
N126: 7 | O126: 000002334 | P126: HUAYLLACOCHA | Q126: 02 | R126: 03 | S126: 03 | T126: 05 | U126: 0203 | V126: 000002334 - HUAYLLACOCHA | AB126: 12 | AC126: 08 | AD126: LUCRE | AE126: 1208 | AF126: 1208 - LUCRE
O127: 000002339 | P127: PUCYURA ANTA | Q127: 02 | R127: 03 | S127: 03 | T127: 08 | U127: 0203 | V127: 000002339 - PUCYURA ANTA | AB127: 12 | AC127: 09 | AD127: MARCAPATA | AE127: 1209 | AF127: 1209 - MARCAPATA
N128: 8 | O128: 000002340 | P128: ZURITE | Q128: 02 | R128: 03 | S128: 03 | T128: 09 | U128: 0203 | V128: 000002340 - ZURITE | AB128: 12 | AC128: 10 | AD128: OCONGATE | AE128: 1210 | AF128: 1210 - OCONGATE
N129: 9 | O129: 000006972 | P129: PANTIPATA | Q129: 02 | R129: 03 | S129: 03 | T129: 04 | U129: 0203 | V129: 000006972 - PANTIPATA | AB129: 12 | AC129: 11 | AD129: OROPESA | AE129: 1211 | AF129: 1211 - OROPESA
N130: 10 | O130: 000027790 | P130: MENTAL COMUNITARIO ANTA | Q130: 02 | R130: 03 | S130: 03 | T130: 01 | U130: 0203 | V130: 000027790 - MENTAL COMUNITARIO ANTA | AB130: 12 | AC130: 12 | AD130: QUIQUIJANA | AE130: 1212 | AF130: 1212 - QUIQUIJANA
O131: 000029514 | P131: ESSALUD ANTA | Q131: 02 | R131: 03 | S131: 03 | T131: 01 | U131: 0203 | V131: 000029514 - ESSALUD ANTA | AB131: 13 | AC131: 00 | AD131: (All) | AE131: 1300 | AF131: 1300 - (All)
O132: 000000000 | P132: (All) | Q132: 02 | R132: 04 | U132: 0204 | V132: 000000000 - (All) | AB132: 13 | AC132: 01 | AD132: URUBAMBA | AE132: 1301 | AF132: 1301 - URUBAMBA
O133: 000002336 | P133: LIMATAMBO | Q133: 02 | R133: 04 | S133: 03 | T133: 06 | U133: 0204 | V133: 000002336 - LIMATAMBO | AB133: 13 | AC133: 02 | AD133: CHINCHERO | AE133: 1302 | AF133: 1302 - CHINCHERO
O134: 000002337 | P134: PAMPACONGA | Q134: 02 | R134: 04 | S134: 03 | T134: 06 | U134: 0204 | V134: 000002337 - PAMPACONGA | AB134: 13 | AC134: 03 | AD134: HUAYLLABAMBA | AE134: 1303 | AF134: 1303 - HUAYLLABAMBA
O135: 000002338 | P135: MOLLEPATA | Q135: 02 | R135: 04 | S135: 03 | T135: 07 | U135: 0204 | V135: 000002338 - MOLLEPATA | AB135: 13 | AC135: 04 | AD135: MACHUPICCHU | AE135: 1304 | AF135: 1304 - MACHUPICCHU
O136: 000010761 | P136: URATARI | Q136: 02 | R136: 04 | S136: 03 | T136: 06 | U136: 0204 | V136: 000010761 - URATARI | AB136: 13 | AC136: 05 | AD136: MARAS | AE136: 1305 | AF136: 1305 - MARAS
O137: 000021061 | P137: HUAMANPATA | Q137: 02 | R137: 04 | S137: 03 | T137: 07 | U137: 0204 | V137: 000021061 - HUAMANPATA | AB137: 13 | AC137: 06 | AD137: OLLANTAYTAMBO | AE137: 1306 | AF137: 1306 - OLLANTAYTAMBO
O138: 000000000 | P138: (All) | Q138: 02 | R138: 05 | U138: 0205 | V138: 000000000 - (All) | AB138: 13 | AC138: 07 | AD138: YUCAY | AE138: =CONCATENATE(AB138,AC138) -> 1307 | AF138: 1307 - YUCAY
O139: 000002343 | P139: COYA | Q139: 02 | R139: 05 | S139: 04 | T139: 02 | U139: 0205 | V139: 000002343 - COYA | AB139: 00 | AC139: 00 | AD139: (All) | AE139: =CONCATENATE(AB139,AC139) -> 0000 | AF139: 0000 - (All)
O140: 000002344 | P140: LAMAY | Q140: 02 | R140: 05 | S140: 04 | T140: 03 | U140: 0205 | V140: 000002344 - LAMAY
O141: 000002348 | P141: PISAC | Q141: 02 | R141: 05 | S141: 04 | T141: 05 | U141: 0205 | V141: 000002348 - PISAC
O142: 000002349 | P142: CUYO CHICO | Q142: 02 | R142: 05 | S142: 04 | T142: 05 | U142: 0205 | V142: 000002349 - CUYO CHICO
O143: 000002350 | P143: CUYO GRANDE | Q143: 02 | R143: 05 | S143: 04 | T143: 05 | U143: 0205 | V143: 000002350 - CUYO GRANDE
O144: 000002351 | P144: QUELLO QUELLO | Q144: 02 | R144: 05 | S144: 04 | T144: 05 | U144: 0205 | V144: 000002351 - QUELLO QUELLO
O145: 000002352 | P145: SAN SALVADOR | Q145: 02 | R145: 05 | S145: 04 | T145: 06 | U145: 0205 | V145: 000002352 - SAN SALVADOR
O146: 000002353 | P146: TARAY | Q146: 02 | R146: 05 | S146: 04 | T146: 07 | U146: 0205 | V146: 000002353 - TARAY
O147: 000002354 | P147: HUANCALLE | Q147: 02 | R147: 05 | S147: 04 | T147: 07 | U147: 0205 | V147: 000002354 - HUANCALLE
O148: 000006970 | P148: TIRACANCHA | Q148: 02 | R148: 05 | S148: 04 | T148: 06 | U148: 0205 | V148: 000006970 - TIRACANCHA
O149: 000006975 | P149: SAYLLAFAYA | Q149: 02 | R149: 05 | S149: 04 | T149: 03 | U149: 0205 | V149: 000006975 - SAYLLAFAYA
O150: 000007145 | P150: HUAMA | Q150: 02 | R150: 05 | S150: 04 | T150: 03 | U150: =CONCATENATE(Q150,R150) -> 0205 | V150: =CONCATENATE(O150," - ",P150) -> 000007145 - HUAMA
O151: 000007146 | P151: POQUES | Q151: 02 | R151: 05 | S151: 04 | T151: 03 | U151: 0205 | V151: 000007146 - POQUES
O152: 000025368 | P152: HUARQUI | Q152: 02 | R152: 05 | S152: 04 | T152: 03 | U152: 0205 | V152: 000025368 - HUARQUI
O153: 000000000 | P153: (All) | Q153: 02 | R153: 06 | U153: 0206 | V153: 000000000 - (All)
O154: 000002341 | P154: CALCA | Q154: 02 | R154: 06 | S154: 04 | T154: 01 | U154: 0206 | V154: 000002341 - CALCA
O155: 000002342 | P155: AMPARAES | Q155: 02 | R155: 06 | S155: 04 | T155: 04 | U155: 0206 | V155: 000002342 - AMPARAES
O156: 000002345 | P156: CCACHIN | Q156: 02 | R156: 06 | S156: 04 | T156: 04 | U156: 0206 | V156: 000002345 - CCACHIN
O157: 000002346 | P157: CHOQUECANCHA | Q157: 02 | R157: 06 | S157: 04 | T157: 04 | U157: 0206 | V157: 000002346 - CHOQUECANCHA
O158: 000002347 | P158: LARES | Q158: 02 | R158: 06 | S158: 04 | T158: 04 | U158: 0206 | V158: 000002347 - LARES
O159: 000002361 | P159: SUYO | Q159: 02 | R159: 06 | S159: 04 | T159: 04 | U159: 0206 | V159: 000002361 - SUYO
O160: 000002515 | P160: PAROBAMBA | Q160: 02 | R160: 06 | S160: 11 | T160: 03 | U160: 0206 | V160: 000002515 - PAROBAMBA
O161: 000007143 | P161: OTOCANI | Q161: 02 | R161: 06 | S161: 11 | T161: 03 | U161: 0206 | V161: 000007143 - OTOCANI
O162: 000007144 | P162: PATABAMBA | Q162: 02 | R162: 06 | S162: 04 | T162: 07 | U162: 0206 | V162: 000007144 - PATABAMBA
O163: 000010069 | P163: ESSALUD CALCA | Q163: 02 | R163: 06 | S163: 04 | T163: 01 | U163: 0206 | V163: 000010069 - ESSALUD CALCA
O164: 000010759 | P164: HUARAN | Q164: 02 | R164: 06 | S164: 04 | T164: 01 | U164: 0206 | V164: 000010759 - HUARAN
O165: 000010762 | P165: ACCHA ALTA - PAMPALLACTA | Q165: 02 | R165: 06 | S165: 04 | T165: 01 | U165: 0206 | V165: 000010762 - ACCHA ALTA - PAMPALLACTA
O166: 000026273 | P166: MENTAL COMUNITARIO VIRGEN ASUNTA DE CALCA | Q166: 02 | R166: 06 | S166: 04 | T166: 01 | U166: 0206 | V166: 000026273 - MENTAL COMUNITARIO VIRGEN ASUNTA DE CALCA
O167: 000000000 | P167: (All) | Q167: 02 | R167: 07 | U167: 0207 | V167: 000000000 - (All)
O168: 000002540 | P168: URUBAMBA | Q168: 02 | R168: 07 | S168: 13 | T168: 01 | U168: 0207 | V168: 000002540 - URUBAMBA
O169: 000002541 | P169: YANAHUARA | Q169: 02 | R169: 07 | S169: 13 | T169: 01 | U169: 0207 | V169: 000002541 - YANAHUARA
O170: 000002543 | P170: CHINCHERO | Q170: 02 | R170: 07 | S170: 13 | T170: 02 | U170: 0207 | V170: 000002543 - CHINCHERO
O171: 000002544 | P171: OCCOTUAN | Q171: 02 | R171: 07 | S171: 13 | T171: 02 | U171: 0207 | V171: 000002544 - OCCOTUAN
O172: 000002545 | P172: HUAYLLABAMBA | Q172: 02 | R172: 07 | S172: 13 | T172: 03 | U172: 0207 | V172: 000002545 - HUAYLLABAMBA
O173: 000002546 | P173: MACHUPICCHU | Q173: 02 | R173: 07 | S173: 13 | T173: 04 | U173: 0207 | V173: 000002546 - MACHUPICCHU
O174: 000002547 | P174: COLLPANI | Q174: 02 | R174: 07 | S174: 13 | T174: 04 | U174: 0207 | V174: 000002547 - COLLPANI
O175: 000002548 | P175: MARAS | Q175: 02 | R175: 07 | S175: 13 | T175: 05 | U175: 0207 | V175: 000002548 - MARAS
O176: 000002549 | P176: OLLANTAYTAMBO | Q176: 02 | R176: 07 | S176: 13 | T176: 06 | U176: 0207 | V176: 000002549 - OLLANTAYTAMBO
O177: 000002550 | P177: CHILLCA | Q177: 02 | R177: 07 | S177: 13 | T177: 06 | U177: 0207 | V177: 000002550 - CHILLCA
O178: 000002551 | P178: YUCAY | Q178: 02 | R178: 07 | S178: 13 | T178: 07 | U178: 0207 | V178: 000002551 - YUCAY
O179: 000006974 | P179: CAMINO INCA HUAYLLABAMBA | Q179: 02 | R179: 07 | S179: 13 | T179: 04 | U179: 0207 | V179: 000006974 - CAMINO INCA HUAYLLABAMBA
O180: 000010060 | P180: CAS URUBAMBA -ESSALUD | Q180: 02 | R180: 07 | S180: 13 | T180: 01 | U180: 0207 | V180: 000010060 - CAS URUBAMBA -ESSALUD
O181: 000010073 | P181: MACHU PICCHU - ESSALUD | Q181: 02 | R181: 07 | S181: 13 | T181: 04 | U181: 0207 | V181: 000010073 - MACHU PICCHU - ESSALUD
O182: 000010758 | P182: CRUZPATA | Q182: 02 | R182: 07 | S182: 13 | T182: 05 | U182: 0207 | V182: 000010758 - CRUZPATA
O183: 000010760 | P183: PATACANCHA | Q183: 02 | R183: 07 | S183: 13 | T183: 06 | U183: 0207 | V183: 000010760 - PATACANCHA
O184: 000030666 | P184: MENTAL COMUNITARIO URUBAMBA | Q184: 02 | R184: 07 | S184: 13 | T184: 01 | U184: 0207 | V184: 000030666 - MENTAL COMUNITARIO URUBAMBA
O185: 000000000 | P185: (All) | Q185: 02 | R185: 08 | U185: 0208 | V185: 000000000 - (All)
O186: 000002355 | P186: LA QUEBRADA | Q186: 02 | R186: 08 | S186: 04 | T186: 08 | U186: 0208 | V186: 000002355 - LA QUEBRADA
O187: 000002356 | P187: CCORIMAYO | Q187: 02 | R187: 08 | S187: 04 | T187: 08 | U187: 0208 | V187: 000002356 - CCORIMAYO
O188: 000002357 | P188: COLCCA YANATILE | Q188: 02 | R188: 08 | S188: 04 | T188: 08 | U188: 0208 | V188: 000002357 - COLCCA YANATILE
O189: 000002358 | P189: MUYUPAY | Q189: 02 | R189: 08 | S189: 04 | T189: 08 | U189: 0208 | V189: 000002358 - MUYUPAY
O190: 000002359 | P190: PUTUCUSI | Q190: 02 | R190: 08 | S190: 04 | T190: 08 | U190: 0208 | V190: 000002359 - PUTUCUSI
O191: 000002360 | P191: QUESQUENTO | Q191: 02 | R191: 08 | S191: 04 | T191: 08 | U191: 0208 | V191: 000002360 - QUESQUENTO
O192: 000002362 | P192: HUACHIBAMBA | Q192: 02 | R192: 08 | S192: 04 | T192: 08 | U192: 0208 | V192: 000002362 - HUACHIBAMBA
O193: 000002464 | P193: VERSALLES | Q193: 02 | R193: 08 | S193: 09 | T193: 05 | U193: 0208 | V193: 000002464 - VERSALLES
O194: 000002467 | P194: PUENTE SANTIAGO | Q194: 02 | R194: 08 | S194: 09 | T194: 06 | U194: 0208 | V194: 000002467 - PUENTE SANTIAGO
O195: 000006971 | P195: COMBAPATA YANATILE | Q195: 02 | R195: 08 | S195: 04 | T195: 08 | U195: 0208 | V195: 000006971 - COMBAPATA YANATILE
O196: 000006973 | P196: BELLAVISTA | Q196: 02 | R196: 08 | S196: 04 | T196: 08 | U196: 0208 | V196: 000006973 - BELLAVISTA
O197: 000007142 | P197: CHANCAMAYO | Q197: 02 | R197: 08 | S197: 04 | T197: 08 | U197: 0208 | V197: 000007142 - CHANCAMAYO
O198: 000000000 | P198: (All) | Q198: 02 | R198: 09 | U198: 0209 | V198: 000000000 - (All)
O199: 000002290 | P199: SAN PEDRO CUSCO | Q199: 02 | R199: 09 | S199: 01 | T199: 01 | U199: 0209 | V199: 000002290 - SAN PEDRO CUSCO
O200: 000002291 | P200: SIETE CUARTONES | Q200: 02 | R200: 09 | S200: 01 | T200: 01 | U200: 0209 | V200: 000002291 - SIETE CUARTONES
O201: 000002293 | P201: MIRAFLORES | Q201: 02 | R201: 09 | S201: 01 | T201: 01 | U201: 0209 | V201: 000002293 - MIRAFLORES
O202: 000002294 | P202: PICCHU LA RINCONADA | Q202: 02 | R202: 09 | S202: 01 | T202: 01 | U202: 0209 | V202: 000002294 - PICCHU LA RINCONADA
O203: 000002295 | P203: BUENA VISTA | Q203: 02 | R203: 09 | S203: 01 | T203: 01 | U203: 0209 | V203: 000002295 - BUENA VISTA
O204: 000002299 | P204: POROY | Q204: 02 | R204: 09 | S204: 01 | T204: 03 | U204: 0209 | V204: 000002299 - POROY
O205: 999999999 | P205: (All) | Q205: 02 | R205: 99 | U205: 0299 | V205: 999999999 - (All)
O206: 000002421 | P206: QUILLABAMBA | Q206: 03 | R206: 00 | S206: 09 | T206: 01 | U206: 0300 | V206: 000002421 - QUILLABAMBA
O207: 000000000 | P207: (All) | Q207: 03 | R207: 01 | U207: 0301 | V207: 000000000 - (All)
O208: 000002422 | P208: HUAYANAY | Q208: 03 | R208: 01 | S208: 09 | T208: 01 | U208: 0301 | V208: 000002422 - HUAYANAY
... 236 more rows
